Workbook

Sheet Trips
E1: Pass Option
E2: e-cash | F2: Annual
A3: Date | B3: Day | C3: Comment | D3: Trips | E3: =SUM(E4:E214) -> 650.95 | F3: 1001.4
A4: 2017-10-02 | B4: =TEXT(A4,"dddd") -> Monday | D4: 0 | E4: =D4*'Pass Options'!C$2 -> 0
A5: 2017-10-03 | B5: =TEXT(A5,"dddd") -> Tuesday | D5: 0 | E5: =D5*'Pass Options'!C$2 -> 0
A6: 2017-10-04 | B6: Wednesday | D6: 0 | E6: =D6*'Pass Options'!C$2 -> 0
A7: 2017-10-05 | B7: Thursday | D7: 0 | E7: =D7*'Pass Options'!C$2 -> 0
A8: 2017-10-06 | B8: Friday | D8: 0 | E8: =D8*'Pass Options'!C$2 -> 0
A9: 2017-10-07 | B9: Saturday | D9: 0 | E9: =D9*'Pass Options'!C$2 -> 0
A10: 2017-10-08 | B10: Sunday | D10: 0 | E10: =D10*'Pass Options'!C$2 -> 0
A11: 2017-10-09 | B11: Monday | C11: Thanksgiving | D11: 0 | E11: =D11*'Pass Options'!C$2 -> 0
A12: 2017-10-10 | B12: Tuesday | D12: 2 | E12: =D12*'Pass Options'!C$2 -> 4.7
A13: 2017-10-11 | B13: Wednesday | D13: 2 | E13: =D13*'Pass Options'!C$2 -> 4.7
A14: 2017-10-12 | B14: Thursday | D14: 2 | E14: =D14*'Pass Options'!C$2 -> 4.7
A15: 2017-10-13 | B15: Friday | D15: 2 | E15: =D15*'Pass Options'!C$2 -> 4.7
A16: 2017-10-14 | B16: Saturday | D16: 0 | E16: =D16*'Pass Options'!C$2 -> 0
A17: 2017-10-15 | B17: Sunday | D17: 0 | E17: =D17*'Pass Options'!C$2 -> 0
A18: 2017-10-16 | B18: Monday | D18: 2 | E18: =D18*'Pass Options'!C$2 -> 4.7
A19: 2017-10-17 | B19: Tuesday | D19: 2 | E19: =D19*'Pass Options'!C$2 -> 4.7
A20: 2017-10-18 | B20: Wednesday | D20: 2 | E20: =D20*'Pass Options'!C$2 -> 4.7
A21: 2017-10-19 | B21: Thursday | D21: 2 | E21: =D21*'Pass Options'!C$2 -> 4.7
A22: 2017-10-20 | B22: Friday | D22: 2 | E22: =D22*'Pass Options'!C$2 -> 4.7
A23: 2017-10-21 | B23: Saturday | D23: 0 | E23: =D23*'Pass Options'!C$2 -> 0
A24: 2017-10-22 | B24: Sunday | D24: 0 | E24: =D24*'Pass Options'!C$2 -> 0
A25: 2017-10-23 | B25: Monday | D25: 2 | E25: =D25*'Pass Options'!C$2 -> 4.7
A26: 2017-10-24 | B26: Tuesday | D26: 2 | E26: =D26*'Pass Options'!C$2 -> 4.7
A27: 2017-10-25 | B27: Wednesday | D27: 2 | E27: =D27*'Pass Options'!C$2 -> 4.7
A28: 2017-10-26 | B28: Thursday | D28: 2 | E28: =D28*'Pass Options'!C$2 -> 4.7
A29: 2017-10-27 | B29: Friday | D29: 2 | E29: =D29*'Pass Options'!C$2 -> 4.7
A30: 2017-10-28 | B30: Saturday | D30: 0 | E30: =D30*'Pass Options'!C$2 -> 0
A31: 2017-10-29 | B31: Sunday | D31: 0 | E31: =D31*'Pass Options'!C$2 -> 0
A32: 2017-10-30 | B32: Monday | D32: 2 | E32: =D32*'Pass Options'!C$2 -> 4.7
A33: 2017-10-31 | B33: Tuesday | D33: 2 | E33: =D33*'Pass Options'!C$2 -> 4.7
A34: 2017-11-01 | B34: Wednesday | D34: 2 | E34: =D34*'Pass Options'!C$2 -> 4.7
A35: 2017-11-02 | B35: Thursday | D35: 2 | E35: =D35*'Pass Options'!C$2 -> 4.7
A36: 2017-11-03 | B36: Friday | D36: 2 | E36: =D36*'Pass Options'!C$2 -> 4.7
A37: 2017-11-04 | B37: Saturday | D37: 0 | E37: =D37*'Pass Options'!C$2 -> 0
A38: 2017-11-05 | B38: Sunday | D38: 0 | E38: =D38*'Pass Options'!C$2 -> 0
A39: 2017-11-06 | B39: Monday | D39: 2 | E39: =D39*'Pass Options'!C$2 -> 4.7
A40: 2017-11-07 | B40: Tuesday | D40: 2 | E40: =D40*'Pass Options'!C$2 -> 4.7
A41: 2017-11-08 | B41: Wednesday | C41: Doctor's appointment | D41: 1 | E41: =D41*'Pass Options'!C$2 -> 2.35
A42: 2017-11-09 | B42: Thursday | D42: 2 | E42: =D42*'Pass Options'!C$2 -> 4.7
A43: 2017-11-10 | B43: Friday | D43: 2 | E43: =D43*'Pass Options'!C$2 -> 4.7
A44: 2017-11-11 | B44: Saturday | D44: 0 | E44: =D44*'Pass Options'!C$2 -> 0
A45: 2017-11-12 | B45: Sunday | D45: 0 | E45: =D45*'Pass Options'!C$2 -> 0
A46: 2017-11-13 | B46: Monday | C46: Remembrance Day | D46: 0 | E46: =D46*'Pass Options'!C$2 -> 0
A47: 2017-11-14 | B47: Tuesday | D47: 2 | E47: =D47*'Pass Options'!C$2 -> 4.7
A48: 2017-11-15 | B48: Wednesday | D48: 2 | E48: =D48*'Pass Options'!C$2 -> 4.7
A49: 2017-11-16 | B49: Thursday | D49: 2 | E49: =D49*'Pass Options'!C$2 -> 4.7
A50: 2017-11-17 | B50: Friday | D50: 2 | E50: =D50*'Pass Options'!C$2 -> 4.7
A51: 2017-11-18 | B51: Saturday | D51: 0 | E51: =D51*'Pass Options'!C$2 -> 0
A52: 2017-11-19 | B52: Sunday | D52: 0 | E52: =D52*'Pass Options'!C$2 -> 0
A53: 2017-11-20 | B53: Monday | D53: 2 | E53: =D53*'Pass Options'!C$2 -> 4.7
A54: 2017-11-21 | B54: Tuesday | D54: 2 | E54: =D54*'Pass Options'!C$2 -> 4.7
A55: 2017-11-22 | B55: Wednesday | D55: 2 | E55: =D55*'Pass Options'!C$2 -> 4.7
A56: 2017-11-23 | B56: Thursday | D56: 2 | E56: =D56*'Pass Options'!C$2 -> 4.7
A57: 2017-11-24 | B57: Friday | D57: 2 | E57: =D57*'Pass Options'!C$2 -> 4.7
A58: 2017-11-25 | B58: Saturday | D58: 0 | E58: =D58*'Pass Options'!C$2 -> 0
A59: 2017-11-26 | B59: Sunday | D59: 0 | E59: =D59*'Pass Options'!C$2 -> 0
A60: 2017-11-27 | B60: Monday | D60: 2 | E60: =D60*'Pass Options'!C$2 -> 4.7
A61: 2017-11-28 | B61: Tuesday | D61: 2 | E61: =D61*'Pass Options'!C$2 -> 4.7
A62: 2017-11-29 | B62: Wednesday | D62: 2 | E62: =D62*'Pass Options'!C$2 -> 4.7
A63: 2017-11-30 | B63: Thursday | D63: 2 | E63: =D63*'Pass Options'!C$2 -> 4.7
A64: 2017-12-01 | B64: Friday | D64: 2 | E64: =D64*'Pass Options'!C$2 -> 4.7
A65: 2017-12-02 | B65: Saturday | D65: 0 | E65: =D65*'Pass Options'!C$2 -> 0
A66: 2017-12-03 | B66: Sunday | D66: 0 | E66: =D66*'Pass Options'!C$2 -> 0
A67: 2017-12-04 | B67: Monday | D67: 2 | E67: =D67*'Pass Options'!C$2 -> 4.7
A68: 2017-12-05 | B68: Tuesday | D68: 2 | E68: =D68*'Pass Options'!C$2 -> 4.7
A69: 2017-12-06 | B69: =TEXT(A69,"dddd") -> Wednesday | D69: 2 | E69: =D69*'Pass Options'!C$2 -> 4.7
A70: 2017-12-07 | B70: Thursday | D70: 2 | E70: =D70*'Pass Options'!C$2 -> 4.7
A71: 2017-12-08 | B71: Friday | D71: 2 | E71: =D71*'Pass Options'!C$2 -> 4.7
A72: 2017-12-09 | B72: Saturday | D72: 0 | E72: =D72*'Pass Options'!C$2 -> 0
A73: 2017-12-10 | B73: Sunday | D73: 0 | E73: =D73*'Pass Options'!C$2 -> 0
A74: 2017-12-11 | B74: Monday | D74: 2 | E74: =D74*'Pass Options'!C$2 -> 4.7
A75: 2017-12-12 | B75: Tuesday | D75: 2 | E75: =D75*'Pass Options'!C$2 -> 4.7
A76: 2017-12-13 | B76: Wednesday | D76: 2 | E76: =D76*'Pass Options'!C$2 -> 4.7
A77: 2017-12-14 | B77: Thursday | D77: 2 | E77: =D77*'Pass Options'!C$2 -> 4.7
A78: 2017-12-15 | B78: Friday | D78: 2 | E78: =D78*'Pass Options'!C$2 -> 4.7
A79: 2017-12-16 | B79: Saturday | D79: 0 | E79: =D79*'Pass Options'!C$2 -> 0
A80: 2017-12-17 | B80: Sunday | D80: 0 | E80: =D80*'Pass Options'!C$2 -> 0
A81: 2017-12-18 | B81: Monday | D81: 2 | E81: =D81*'Pass Options'!C$2 -> 4.7
A82: 2017-12-19 | B82: Tuesday | D82: 2 | E82: =D82*'Pass Options'!C$2 -> 4.7
A83: 2017-12-20 | B83: Wednesday | D83: 2 | E83: =D83*'Pass Options'!C$2 -> 4.7
A84: 2017-12-21 | B84: Thursday | D84: 2 | E84: =D84*'Pass Options'!C$2 -> 4.7
A85: 2017-12-22 | B85: Friday | D85: 2 | E85: =D85*'Pass Options'!C$2 -> 4.7
A86: 2017-12-23 | B86: Saturday | D86: 0 | E86: =D86*'Pass Options'!C$2 -> 0
A87: 2017-12-24 | B87: Sunday | D87: 0 | E87: =D87*'Pass Options'!C$2 -> 0
A88: 2017-12-25 | B88: Monday | C88: Christmas | D88: 0 | E88: =D88*'Pass Options'!C$2 -> 0
A89: 2017-12-26 | B89: Tuesday | C89: Boxing Day | D89: 0 | E89: =D89*'Pass Options'!C$2 -> 0
A90: 2017-12-27 | B90: Wednesday | D90: 2 | E90: =D90*'Pass Options'!C$2 -> 4.7
A91: 2017-12-28 | B91: Thursday | D91: 2 | E91: =D91*'Pass Options'!C$2 -> 4.7
A92: 2017-12-29 | B92: Friday | D92: 2 | E92: =D92*'Pass Options'!C$2 -> 4.7
A93: 2017-12-30 | B93: Saturday | D93: 0 | E93: =D93*'Pass Options'!C$2 -> 0
A94: 2017-12-31 | B94: Sunday | D94: 0 | E94: =D94*'Pass Options'!C$2 -> 0
A95: 2018-01-01 | B95: Monday | C95: New Years Day | D95: 0 | E95: =D95*'Pass Options'!C$2 -> 0
A96: 2018-01-02 | B96: Tuesday | D96: 2 | E96: =D96*'Pass Options'!C$2 -> 4.7
A97: 2018-01-03 | B97: Wednesday | D97: 2 | E97: =D97*'Pass Options'!C$2 -> 4.7
A98: 2018-01-04 | B98: Thursday | D98: 2 | E98: =D98*'Pass Options'!C$2 -> 4.7
A99: 2018-01-05 | B99: Friday | D99: 2 | E99: =D99*'Pass Options'!C$2 -> 4.7
A100: 2018-01-06 | B100: Saturday | D100: 0 | E100: =D100*'Pass Options'!C$2 -> 0
A101: 2018-01-07 | B101: Sunday | D101: 0 | E101: =D101*'Pass Options'!C$2 -> 0
A102: 2018-01-08 | B102: Monday | D102: 2 | E102: =D102*'Pass Options'!C$2 -> 4.7
A103: 2018-01-09 | B103: Tuesday | D103: 2 | E103: =D103*'Pass Options'!C$2 -> 4.7
A104: 2018-01-10 | B104: Wednesday | D104: 2 | E104: =D104*'Pass Options'!C$2 -> 4.7
A105: 2018-01-11 | B105: Thursday | D105: 2 | E105: =D105*'Pass Options'!C$2 -> 4.7
A106: 2018-01-12 | B106: Friday | D106: 2 | E106: =D106*'Pass Options'!C$2 -> 4.7
A107: 2018-01-13 | B107: Saturday | D107: 0 | E107: =D107*'Pass Options'!C$2 -> 0
A108: 2018-01-14 | B108: Sunday | D108: 0 | E108: =D108*'Pass Options'!C$2 -> 0
A109: 2018-01-15 | B109: Monday | D109: 2 | E109: =D109*'Pass Options'!C$2 -> 4.7
A110: 2018-01-16 | B110: Tuesday | D110: 2 | E110: =D110*'Pass Options'!C$2 -> 4.7
A111: 2018-01-17 | B111: Wednesday | D111: 2 | E111: =D111*'Pass Options'!C$2 -> 4.7
A112: 2018-01-18 | B112: Thursday | D112: 2 | E112: =D112*'Pass Options'!C$2 -> 4.7
A113: 2018-01-19 | B113: Friday | D113: 2 | E113: =D113*'Pass Options'!C$2 -> 4.7
A114: 2018-01-20 | B114: Saturday | D114: 0 | E114: =D114*'Pass Options'!C$2 -> 0
A115: 2018-01-21 | B115: Sunday | D115: 0 | E115: =D115*'Pass Options'!C$2 -> 0
A116: 2018-01-22 | B116: Monday | D116: 2 | E116: =D116*'Pass Options'!C$2 -> 4.7
A117: 2018-01-23 | B117: Tuesday | D117: 2 | E117: =D117*'Pass Options'!C$2 -> 4.7
A118: 2018-01-24 | B118: Wednesday | D118: 2 | E118: =D118*'Pass Options'!C$2 -> 4.7
A119: 2018-01-25 | B119: Thursday | D119: 2 | E119: =D119*'Pass Options'!C$2 -> 4.7
A120: 2018-01-26 | B120: Friday | D120: 2 | E120: =D120*'Pass Options'!C$2 -> 4.7
A121: 2018-01-27 | B121: Saturday | D121: 0 | E121: =D121*'Pass Options'!C$2 -> 0
A122: 2018-01-28 | B122: Sunday | D122: 0 | E122: =D122*'Pass Options'!C$2 -> 0
A123: 2018-01-29 | B123: Monday | D123: 2 | E123: =D123*'Pass Options'!C$2 -> 4.7
A124: 2018-01-30 | B124: Tuesday | D124: 2 | E124: =D124*'Pass Options'!C$2 -> 4.7
A125: 2018-01-31 | B125: Wednesday | D125: 2 | E125: =D125*'Pass Options'!C$2 -> 4.7
A126: 2018-02-01 | B126: Thursday | D126: 2 | E126: =D126*'Pass Options'!C$2 -> 4.7
A127: 2018-02-02 | B127: Friday | D127: 2 | E127: =D127*'Pass Options'!C$2 -> 4.7
A128: 2018-02-03 | B128: Saturday | D128: 0 | E128: =D128*'Pass Options'!C$2 -> 0
A129: 2018-02-04 | B129: Sunday | D129: 0 | E129: =D129*'Pass Options'!C$2 -> 0
A130: 2018-02-05 | B130: Monday | D130: 2 | E130: =D130*'Pass Options'!C$2 -> 4.7
A131: 2018-02-06 | B131: Tuesday | D131: 2 | E131: =D131*'Pass Options'!C$2 -> 4.7
A132: 2018-02-07 | B132: Wednesday | D132: 2 | E132: =D132*'Pass Options'!C$2 -> 4.7
A133: 2018-02-08 | B133: =TEXT(A133,"dddd") -> Thursday | D133: 2 | E133: =D133*'Pass Options'!C$2 -> 4.7
A134: 2018-02-09 | B134: Friday | D134: 2 | E134: =D134*'Pass Options'!C$2 -> 4.7
A135: 2018-02-10 | B135: Saturday | D135: 0 | E135: =D135*'Pass Options'!C$2 -> 0
A136: 2018-02-11 | B136: Sunday | D136: 0 | E136: =D136*'Pass Options'!C$2 -> 0
A137: 2018-02-12 | B137: Monday | D137: 2 | E137: =D137*'Pass Options'!C$2 -> 4.7
A138: 2018-02-13 | B138: Tuesday | D138: 2 | E138: =D138*'Pass Options'!C$2 -> 4.7
A139: 2018-02-14 | B139: Wednesday | D139: 2 | E139: =D139*'Pass Options'!C$2 -> 4.7
A140: 2018-02-15 | B140: Thursday | D140: 2 | E140: =D140*'Pass Options'!C$2 -> 4.7
A141: 2018-02-16 | B141: Friday | D141: 2 | E141: =D141*'Pass Options'!C$2 -> 4.7
A142: 2018-02-17 | B142: Saturday | D142: 0 | E142: =D142*'Pass Options'!C$2 -> 0
A143: 2018-02-18 | B143: Sunday | D143: 0 | E143: =D143*'Pass Options'!C$2 -> 0
A144: 2018-02-19 | B144: Monday | C144: Louis Riel | D144: 0 | E144: =D144*'Pass Options'!C$2 -> 0
A145: 2018-02-20 | B145: Tuesday | D145: 2 | E145: =D145*'Pass Options'!C$2 -> 4.7
A146: 2018-02-21 | B146: Wednesday | D146: 2 | E146: =D146*'Pass Options'!C$2 -> 4.7
A147: 2018-02-22 | B147: Thursday | D147: 2 | E147: =D147*'Pass Options'!C$2 -> 4.7
A148: 2018-02-23 | B148: Friday | D148: 2 | E148: =D148*'Pass Options'!C$2 -> 4.7
A149: 2018-02-24 | B149: Saturday | D149: 0 | E149: =D149*'Pass Options'!C$2 -> 0
A150: 2018-02-25 | B150: Sunday | D150: 0 | E150: =D150*'Pass Options'!C$2 -> 0
A151: 2018-02-26 | B151: Monday | D151: 2 | E151: =D151*'Pass Options'!C$2 -> 4.7
A152: 2018-02-27 | B152: Tuesday | D152: 2 | E152: =D152*'Pass Options'!C$2 -> 4.7
A153: 2018-02-28 | B153: Wednesday | D153: 2 | E153: =D153*'Pass Options'!C$2 -> 4.7
A154: 2018-03-01 | B154: Thursday | D154: 2 | E154: =D154*'Pass Options'!C$2 -> 4.7
A155: 2018-03-02 | B155: Friday | D155: 2 | E155: =D155*'Pass Options'!C$2 -> 4.7
A156: 2018-03-03 | B156: Saturday | D156: 0 | E156: =D156*'Pass Options'!C$2 -> 0
A157: 2018-03-04 | B157: Sunday | D157: 0 | E157: =D157*'Pass Options'!C$2 -> 0
A158: 2018-03-05 | B158: Monday | D158: 2 | E158: =D158*'Pass Options'!C$2 -> 4.7
A159: 2018-03-06 | B159: Tuesday | D159: 2 | E159: =D159*'Pass Options'!C$2 -> 4.7
A160: 2018-03-07 | B160: Wednesday | D160: 2 | E160: =D160*'Pass Options'!C$2 -> 4.7
A161: 2018-03-08 | B161: Thursday | D161: 2 | E161: =D161*'Pass Options'!C$2 -> 4.7
A162: 2018-03-09 | B162: Friday | D162: 2 | E162: =D162*'Pass Options'!C$2 -> 4.7
A163: 2018-03-10 | B163: Saturday | D163: 0 | E163: =D163*'Pass Options'!C$2 -> 0
A164: 2018-03-11 | B164: Sunday | D164: 0 | E164: =D164*'Pass Options'!C$2 -> 0
A165: 2018-03-12 | B165: Monday | D165: 2 | E165: =D165*'Pass Options'!C$2 -> 4.7
A166: 2018-03-13 | B166: Tuesday | D166: 2 | E166: =D166*'Pass Options'!C$2 -> 4.7
A167: 2018-03-14 | B167: Wednesday | D167: 2 | E167: =D167*'Pass Options'!C$2 -> 4.7
A168: 2018-03-15 | B168: Thursday | D168: 2 | E168: =D168*'Pass Options'!C$2 -> 4.7
A169: 2018-03-16 | B169: Friday | D169: 2 | E169: =D169*'Pass Options'!C$2 -> 4.7
A170: 2018-03-17 | B170: Saturday | D170: 0 | E170: =D170*'Pass Options'!C$2 -> 0
A171: 2018-03-18 | B171: Sunday | D171: 0 | E171: =D171*'Pass Options'!C$2 -> 0
A172: 2018-03-19 | B172: Monday | D172: 2 | E172: =D172*'Pass Options'!C$2 -> 4.7
A173: 2018-03-20 | B173: Tuesday | D173: 2 | E173: =D173*'Pass Options'!C$2 -> 4.7
A174: 2018-03-21 | B174: Wednesday | D174: 2 | E174: =D174*'Pass Options'!C$2 -> 4.7
A175: 2018-03-22 | B175: Thursday | D175: 2 | E175: =D175*'Pass Options'!C$2 -> 4.7
A176: 2018-03-23 | B176: Friday | D176: 2 | E176: =D176*'Pass Options'!C$2 -> 4.7
A177: 2018-03-24 | B177: Saturday | D177: 0 | E177: =D177*'Pass Options'!C$2 -> 0
A178: 2018-03-25 | B178: Sunday | D178: 0 | E178: =D178*'Pass Options'!C$2 -> 0
A179: 2018-03-26 | B179: Monday | D179: 2 | E179: =D179*'Pass Options'!C$2 -> 4.7
A180: 2018-03-27 | B180: Tuesday | D180: 2 | E180: =D180*'Pass Options'!C$2 -> 4.7
A181: 2018-03-28 | B181: Wednesday | D181: 2 | E181: =D181*'Pass Options'!C$2 -> 4.7
A182: 2018-03-29 | B182: Thursday | D182: 2 | E182: =D182*'Pass Options'!C$2 -> 4.7
A183: 2018-03-30 | B183: Friday | C183: Good Friday | D183: 0 | E183: =D183*'Pass Options'!C$2 -> 0
A184: 2018-03-31 | B184: Saturday | D184: 0 | E184: =D184*'Pass Options'!C$2 -> 0
A185: 2018-04-01 | B185: Sunday | D185: 0 | E185: =D185*'Pass Options'!C$2 -> 0
A186: 2018-04-02 | B186: Monday | D186: 2 | E186: =D186*'Pass Options'!C$2 -> 4.7
A187: 2018-04-03 | B187: Tuesday | D187: 2 | E187: =D187*'Pass Options'!C$2 -> 4.7
A188: 2018-04-04 | B188: Wednesday | D188: 2 | E188: =D188*'Pass Options'!C$2 -> 4.7
A189: 2018-04-05 | B189: Thursday | D189: 2 | E189: =D189*'Pass Options'!C$2 -> 4.7
A190: 2018-04-06 | B190: Friday | D190: 2 | E190: =D190*'Pass Options'!C$2 -> 4.7
A191: 2018-04-07 | B191: Saturday | D191: 0 | E191: =D191*'Pass Options'!C$2 -> 0
A192: 2018-04-08 | B192: Sunday | D192: 0 | E192: =D192*'Pass Options'!C$2 -> 0
A193: 2018-04-09 | B193: Monday | D193: 2 | E193: =D193*'Pass Options'!C$2 -> 4.7
A194: 2018-04-10 | B194: Tuesday | D194: 2 | E194: =D194*'Pass Options'!C$2 -> 4.7
A195: 2018-04-11 | B195: Wednesday | D195: 2 | E195: =D195*'Pass Options'!C$2 -> 4.7
A196: 2018-04-12 | B196: Thursday | D196: 2 | E196: =D196*'Pass Options'!C$2 -> 4.7
A197: 2018-04-13 | B197: =TEXT(A197,"dddd") -> Friday | D197: 2 | E197: =D197*'Pass Options'!C$2 -> 4.7
A198: 2018-04-14 | B198: Saturday | D198: 0 | E198: =D198*'Pass Options'!C$2 -> 0
A199: 2018-04-15 | B199: Sunday | D199: 0 | E199: =D199*'Pass Options'!C$2 -> 0
A200: 2018-04-16 | B200: Monday | D200: 2 | E200: =D200*'Pass Options'!C$2 -> 4.7
... 14 more rows

Sheet Pass Options
A1: Pass | B1: Pass Cost | C1: Trip Cost | D1: Length | E1: Units
A2: ecash | B2: 0 | C2: 2.35 | D2: 1 | E2: day
A3: 24 hour e-pass | B3: 8.7 | C3: 0 | D3: 1 | E3: day
A4: 3 day e-pass | B4: 17.65 | C4: 0 | D4: 3 | E4: day
A5: 5 day e-pass | B5: 21.15 | C5: 0 | D5: 5 | E5: day
A6: 7 day e-pass | B6: 23.5 | C6: 0 | D6: 7 | E6: day
A7: 14 day e-pass | B7: 43.5 | C7: 0 | D7: 14 | E7: day
A8: 21 day e-pass | B8: 64.65 | C8: 0 | D8: 21 | E8: day
A9: 28 day e-pass | B9: 83.45 | C9: 0 | D9: 28 | E9: day
A10: Monthly e-pass | B10: 90.5 | C10: 0 | D10: 1 | E10: month
A11: None | B11: 0 | C11: 1000 | D11: 1 | E11: day

Sheet Solutions
F3: 2017-10-02 | H3: 2017-10-03 | J3: 2017-10-04 | L3: 2017-10-05 | N3: 2017-10-06 | P3: 2017-10-07 | R3: 2017-10-08 | T3: 2017-10-09 | V3: 2017-10-10 | X3: 2017-10-11 | Z3: 2017-10-12 | AB3: 2017-10-13 | AD3: 2017-10-14 | AF3: 2017-10-15 | AH3: 2017-10-16 | AJ3: 2017-10-17 | AL3: 2017-10-18 | AN3: 2017-10-19 | AP3: 2017-10-20 | AR3: 2017-10-21 | AT3: 2017-10-22 | AV3: 2017-10-23 | AX3: 2017-10-24 | AZ3: 2017-10-25 | BB3: 2017-10-26 | BD3: 2017-10-27 | BF3: 2017-10-28 | BH3: 2017-10-29 | BJ3: 2017-10-30 | BL3: 2017-10-31 | BN3: 2017-11-01 | BP3: 2017-11-02 | BR3: 2017-11-03 | BT3: 2017-11-04 | BV3: 2017-11-05 | BX3: 2017-11-06 | BZ3: 2017-11-07 | CB3: 2017-11-08 | CD3: 2017-11-09 | CF3: 2017-11-10 | CH3: 2017-11-11 | CJ3: 2017-11-12 | CL3: 2017-11-13 | CN3: 2017-11-14 | CP3: 2017-11-15 | CR3: 2017-11-16 | CT3: 2017-11-17 | CV3: 2017-11-18 | CX3: 2017-11-19 | CZ3: 2017-11-20 | DB3: 2017-11-21 | DD3: 2017-11-22 | DF3: 2017-11-23 | DH3: 2017-11-24 | DJ3: 2017-11-25 | DL3: 2017-11-26 | DN3: 2017-11-27 | DP3: 2017-11-28 | DR3: 2017-11-29 | DT3: 2017-11-30 | DV3: 2017-12-01 | DX3: 2017-12-02 | DZ3: 2017-12-03 | EB3: 2017-12-04 | ED3: 2017-12-05 | EF3: 2017-12-06 | EH3: 2017-12-07 | EJ3: 2017-12-08 | EL3: 2017-12-09 | EN3: 2017-12-10 | EP3: 2017-12-11 | ER3: 2017-12-12 | ET3: 2017-12-13 | EV3: 2017-12-14 | EX3: 2017-12-15 | EZ3: 2017-12-16 | FB3: 2017-12-17 | FD3: 2017-12-18 | FF3: 2017-12-19 | FH3: 2017-12-20 | FJ3: 2017-12-21 | FL3: 2017-12-22 | FN3: 2017-12-23 | FP3: 2017-12-24 | FR3: 2017-12-25 | FT3: 2017-12-26 | FV3: 2017-12-27 | FX3: 2017-12-28 | FZ3: 2017-12-29 | GB3: 2017-12-30 | GD3: 2017-12-31 | GF3: 2018-01-01 | GH3: 2018-01-02 | GJ3: 2018-01-03 | GL3: 2018-01-04 | GN3: 2018-01-05 | GP3: 2018-01-06 | GR3: 2018-01-07 | GT3: 2018-01-08 | GV3: 2018-01-09 | GX3: 2018-01-10 | GZ3: 2018-01-11 | HB3: 2018-01-12 | HD3: 2018-01-13 | HF3: 2018-01-14 | HH3: 2018-01-15 | HJ3: 2018-01-16 | HL3: 2018-01-17 | HN3: 2018-01-18 | HP3: 2018-01-19 | HR3: 2018-01-20 | HT3: 2018-01-21 | HV3: 2018-01-22 | HX3: 2018-01-23 | HZ3: 2018-01-24 | IB3: 2018-01-25 | ID3: 2018-01-26 | IF3: 2018-01-27 | IH3: 2018-01-28 | IJ3: 2018-01-29 | IL3: 2018-01-30 | IN3: 2018-01-31 | IP3: 2018-02-01 | IR3: 2018-02-02 | IT3: 2018-02-03 | IV3: 2018-02-04 | IX3: 2018-02-05 | IZ3: 2018-02-06 | JB3: 2018-02-07 | JD3: 2018-02-08 | JF3: 2018-02-09 | JH3: 2018-02-10 | JJ3: 2018-02-11 | JL3: 2018-02-12 | JN3: 2018-02-13 | JP3: 2018-02-14 | JR3: 2018-02-15 | JT3: 2018-02-16 | JV3: 2018-02-17 | JX3: 2018-02-18 | JZ3: 2018-02-19 | KB3: 2018-02-20 | KD3: 2018-02-21 | KF3: 2018-02-22 | KH3: 2018-02-23 | KJ3: 2018-02-24 | KL3: 2018-02-25 | KN3: 2018-02-26 | KP3: 2018-02-27 | KR3: 2018-02-28 | KT3: 2018-03-01 | KV3: 2018-03-02 | KX3: 2018-03-03 | KZ3: 2018-03-04 | LB3: 2018-03-05 | LD3: 2018-03-06 | LF3: 2018-03-07 | LH3: 2018-03-08 | LJ3: 2018-03-09 | LL3: 2018-03-10 | LN3: 2018-03-11 | LP3: 2018-03-12 | LR3: 2018-03-13 | LT3: 2018-03-14 | LV3: 2018-03-15 | LX3: 2018-03-16 | LZ3: 2018-03-17 | MB3: 2018-03-18 | MD3: 2018-03-19 | MF3: 2018-03-20 | MH3: 2018-03-21 | MJ3: 2018-03-22 | ML3: 2018-03-23 | MN3: 2018-03-24 | MP3: 2018-03-25 | MR3: 2018-03-26 | MT3: 2018-03-27 | MV3: 2018-03-28 | MX3: 2018-03-29 | MZ3: 2018-03-30 | NB3: 2018-03-31 | ND3: 2018-04-01 | NF3: 2018-04-02 | NH3: 2018-04-03 | NJ3: 2018-04-04 | NL3: 2018-04-05 | NN3: 2018-04-06 | NP3: 2018-04-07 | NR3: 2018-04-08 | NT3: 2018-04-09 | NV3: 2018-04-10 | NX3: 2018-04-11 | NZ3: 2018-04-12 | OB3: 2018-04-13 | OD3: 2018-04-14 | OF3: 2018-04-15 | OH3: 2018-04-16 | OJ3: 2018-04-17 | OL3: 2018-04-18 | ON3: 2018-04-19 | OP3: 2018-04-20 | OR3: 2018-04-21 | OT3: 2018-04-22 | OV3: 2018-04-23 | OX3: 2018-04-24 | OZ3: 2018-04-25 | PB3: 2018-04-26 | PD3: 2018-04-27 | PF3: 2018-04-28 | PH3: 2018-04-29 | PJ3: 2018-04-30
A4: Date | B4: Day | C4: Comment | D4: Trips | F4: =SUM( $F$5:$F$215) -> 0 | H4: =SUM( $H$5:$H$215) -> 0 | J4: =SUM( $J$5:$J$215) -> 0 | L4: =SUM( $L$5:$L$215) -> 0 | N4: =SUM( $N$5:$N$215) -> 0 | P4: =SUM( $P$5:$P$215) -> 0 | R4: =SUM( $R$5:$R$215) -> 0 | T4: =SUM( $T$5:$T$215) -> 0 | V4: =SUM( $V$5:$V$215) -> 4.7 | X4: =SUM( $X$5:$X$215) -> 9.4 | Z4: =SUM( $Z$5:$Z$215) -> 14.1 | AB4: =SUM( $AB$5:$AB$215) -> 18.8 | AD4: =SUM( $AD$5:$AD$215) -> 18.8 | AF4: =SUM( $AF$5:$AF$215) -> 18.8 | AH4: =SUM( $AH$5:$AH$215) -> 23.5 | AJ4: =SUM( $AJ$5:$AJ$215) -> 28.2 | AL4: =SUM( $AL$5:$AL$215) -> 32.9 | AN4: =SUM( $AN$5:$AN$215) -> 37.6 | AP4: =SUM( $AP$5:$AP$215) -> 39.95 | AR4: =SUM( $AR$5:$AR$215) -> 39.95 | AT4: =SUM( $AT$5:$AT$215) -> 39.95 | AV4: =SUM( $AV$5:$AV$215) -> 43.5 | AX4: =SUM( $AX$5:$AX$215) -> 48.2 | AZ4: =SUM( $AZ$5:$AZ$215) -> 52.9 | BB4: =SUM( $BB$5:$BB$215) -> 57.6 | BD4: =SUM( $BD$5:$BD$215) -> 61.1 | BF4: =SUM( $BF$5:$BF$215) -> 61.1 | BH4: =SUM( $BH$5:$BH$215) -> 61.1 | BJ4: =SUM( $BJ$5:$BJ$215) -> 64.65 | BL4: =SUM( $BL$5:$BL$215) -> 69.35 | BN4: =SUM( $BN$5:$BN$215) -> 74.05 | BP4: =SUM( $BP$5:$BP$215) -> 78.75 | BR4: =SUM( $BR$5:$BR$215) -> 82.25 | BT4: =SUM( $BT$5:$BT$215) -> 82.25 | BV4: =SUM( $BV$5:$BV$215) -> 82.25 | BX4: =SUM( $BX$5:$BX$215) -> 83.45 | BZ4: =SUM( $BZ$5:$BZ$215) -> 88.15 | CB4: =SUM( $CB$5:$CB$215) -> 90.5 | CD4: =SUM( $CD$5:$CD$215) -> 95.2 | CF4: =SUM( $CF$5:$CF$215) -> 99.9 | CH4: =SUM( $CH$5:$CH$215) -> 99.9 | CJ4: =SUM( $CJ$5:$CJ$215) -> 99.9 | CL4: =SUM( $CL$5:$CL$215) -> 99.9 | CN4: =SUM( $CN$5:$CN$215) -> 104.6 | CP4: =SUM( $CP$5:$CP$215) -> 109.3 | CR4: =SUM( $CR$5:$CR$215) -> 114 | CT4: =SUM( $CT$5:$CT$215) -> 118.7 | CV4: =SUM( $CV$5:$CV$215) -> 118.7 | CX4: =SUM( $CX$5:$CX$215) -> 118.7 | CZ4: =SUM( $CZ$5:$CZ$215) -> 123.4 | DB4: =SUM( $DB$5:$DB$215) -> 128.1 | DD4: =SUM( $DD$5:$DD$215) -> 132.8 | DF4: =SUM( $DF$5:$DF$215) -> 137.5 | DH4: =SUM( $DH$5:$DH$215) -> 139.85 | DJ4: =SUM( $DJ$5:$DJ$215) -> 139.85 | DL4: =SUM( $DL$5:$DL$215) -> 139.85 | DN4: =SUM( $DN$5:$DN$215) -> 143.4 | DP4: =SUM( $DP$5:$DP$215) -> 148.1 | DR4: =SUM( $DR$5:$DR$215) -> 152.8 | DT4: =SUM( $DT$5:$DT$215) -> 157.5 | DV4: =SUM( $DV$5:$DV$215) -> 161 | DX4: =SUM( $DX$5:$DX$215) -> 161 | DZ4: =SUM( $DZ$5:$DZ$215) -> 161 | EB4: =SUM( $EB$5:$EB$215) -> 164.55 | ED4: =SUM( $ED$5:$ED$215) -> 169.25 | EF4: =SUM( $EF$5:$EF$215) -> 173.95 | EH4: =SUM( $EH$5:$EH$215) -> 178.65 | EJ4: =SUM( $EJ$5:$EJ$215) -> 182.15 | EL4: =SUM( $EL$5:$EL$215) -> 182.15 | EN4: =SUM( $EN$5:$EN$215) -> 182.15 | EP4: =SUM( $EP$5:$EP$215) -> 183.35 | ER4: =SUM( $ER$5:$ER$215) -> 188.05 | ET4: =SUM( $ET$5:$ET$215) -> 192.75 | EV4: =SUM( $EV$5:$EV$215) -> 197.45 | EX4: =SUM( $EX$5:$EX$215) -> 202.15 | EZ4: =SUM( $EZ$5:$EZ$215) -> 202.15 | FB4: =SUM( $FB$5:$FB$215) -> 202.15 | FD4: =SUM( $FD$5:$FD$215) -> 206.85 | FF4: =SUM( $FF$5:$FF$215) -> 211.55 | FH4: =SUM( $FH$5:$FH$215) -> 216.25 | FJ4: =SUM( $FJ$5:$FJ$215) -> 220.95 | FL4: =SUM( $FL$5:$FL$215) -> 223.3 | FN4: =SUM( $FN$5:$FN$215) -> 223.3 | FP4: =SUM( $FP$5:$FP$215) -> 223.3 | FR4: =SUM( $FR$5:$FR$215) -> 223.3 | FT4: =SUM( $FT$5:$FT$215) -> 223.3 | FV4: =SUM( $FV$5:$FV$215) -> 228 | FX4: =SUM( $FX$5:$FX$215) -> 232.7 | FZ4: =SUM( $FZ$5:$FZ$215) -> 237.4 | GB4: =SUM( $GB$5:$GB$215) -> 237.4 | GD4: =SUM( $GD$5:$GD$215) -> 237.4 | GF4: =SUM( $GF$5:$GF$215) -> 237.4 | GH4: =SUM( $GH$5:$GH$215) -> 242.1 | GJ4: =SUM( $GJ$5:$GJ$215) -> 246.8 | GL4: =SUM( $GL$5:$GL$215) -> 251.5 | GN4: =SUM( $GN$5:$GN$215) -> 256.2 | GP4: =SUM( $GP$5:$GP$215) -> 256.2 | GR4: =SUM( $GR$5:$GR$215) -> 256.2 | GT4: =SUM( $GT$5:$GT$215) -> 260.9 | GV4: =SUM( $GV$5:$GV$215) -> 265.6 | GX4: =SUM( $GX$5:$GX$215) -> 270.3 | GZ4: =SUM( $GZ$5:$GZ$215) -> 275 | HB4: =SUM( $HB$5:$HB$215) -> 277.35 | HD4: =SUM( $HD$5:$HD$215) -> 277.35 | HF4: =SUM( $HF$5:$HF$215) -> 277.35 | HH4: =SUM( $HH$5:$HH$215) -> 280.9 | HJ4: =SUM( $HJ$5:$HJ$215) -> 285.6 | HL4: =SUM( $HL$5:$HL$215) -> 290.3 | HN4: =SUM( $HN$5:$HN$215) -> 295 | HP4: =SUM( $HP$5:$HP$215) -> 298.5 | HR4: =SUM( $HR$5:$HR$215) -> 298.5 | HT4: =SUM( $HT$5:$HT$215) -> 298.5 | HV4: =SUM( $HV$5:$HV$215) -> 302.05 | HX4: =SUM( $HX$5:$HX$215) -> 306.75 | HZ4: =SUM( $HZ$5:$HZ$215) -> 311.45 | IB4: =SUM( $IB$5:$IB$215) -> 316.15 | ID4: =SUM( $ID$5:$ID$215) -> 319.65 | IF4: =SUM( $IF$5:$IF$215) -> 319.65 | IH4: =SUM( $IH$5:$IH$215) -> 319.65 | IJ4: =SUM( $IJ$5:$IJ$215) -> 320.85 | IL4: =SUM( $IL$5:$IL$215) -> 325.55 | IN4: =SUM( $IN$5:$IN$215) -> 327.9 | IP4: =SUM( $IP$5:$IP$215) -> 332.6 | IR4: =SUM( $IR$5:$IR$215) -> 337.3 | IT4: =SUM( $IT$5:$IT$215) -> 337.3 | IV4: =SUM( $IV$5:$IV$215) -> 337.3 | IX4: =SUM( $IX$5:$IX$215) -> 342 | IZ4: =SUM( $IZ$5:$IZ$215) -> 346.7 | JB4: =SUM( $JB$5:$JB$215) -> 351.4 | JD4: =SUM( $JD$5:$JD$215) -> 356.1 | JF4: =SUM( $JF$5:$JF$215) -> 358.45 | JH4: =SUM( $JH$5:$JH$215) -> 358.45 | JJ4: =SUM( $JJ$5:$JJ$215) -> 358.45 | JL4: =SUM( $JL$5:$JL$215) -> 363.15 | JN4: =SUM( $JN$5:$JN$215) -> 367.85 | JP4: =SUM( $JP$5:$JP$215) -> 371.4 | JR4: =SUM( $JR$5:$JR$215) -> 376.1 | JT4: =SUM( $JT$5:$JT$215) -> 379.6 | JV4: =SUM( $JV$5:$JV$215) -> 379.6 | JX4: =SUM( $JX$5:$JX$215) -> 379.6 | JZ4: =SUM( $JZ$5:$JZ$215) -> 379.6 | KB4: =SUM( $KB$5:$KB$215) -> 384.3 | KD4: =SUM( $KD$5:$KD$215) -> 389 | KF4: =SUM( $KF$5:$KF$215) -> 393.7 | KH4: =SUM( $KH$5:$KH$215) -> 398.4 | KJ4: =SUM( $KJ$5:$KJ$215) -> 398.4 | KL4: =SUM( $KL$5:$KL$215) -> 398.4 | KN4: =SUM( $KN$5:$KN$215) -> 403.1 | KP4: =SUM( $KP$5:$KP$215) -> 407.8 | KR4: =SUM( $KR$5:$KR$215) -> 411.35 | KT4: =SUM( $KT$5:$KT$215) -> 416.05 | KV4: =SUM( $KV$5:$KV$215) -> 419.55 | KX4: =SUM( $KX$5:$KX$215) -> 419.55 | KZ4: =SUM( $KZ$5:$KZ$215) -> 419.55 | LB4: =SUM( $LB$5:$LB$215) -> 423.1 | LD4: =SUM( $LD$5:$LD$215) -> 427.8 | LF4: =SUM( $LF$5:$LF$215) -> 432.5 | LH4: =SUM( $LH$5:$LH$215) -> 437.2 | LJ4: =SUM( $LJ$5:$LJ$215) -> 440.7 | LL4: =SUM( $LL$5:$LL$215) -> 440.7 | LN4: =SUM( $LN$5:$LN$215) -> 440.7 | LP4: =SUM( $LP$5:$LP$215) -> 444.25 | LR4: =SUM( $LR$5:$LR$215) -> 448.95 | LT4: =SUM( $LT$5:$LT$215) -> 453.65 | LV4: =SUM( $LV$5:$LV$215) -> 458.35 | LX4: =SUM( $LX$5:$LX$215) -> 461.85 | LZ4: =SUM( $LZ$5:$LZ$215) -> 461.85 | MB4: =SUM( $MB$5:$MB$215) -> 461.85 | MD4: =SUM( $MD$5:$MD$215) -> 463.05 | MF4: =SUM( $MF$5:$MF$215) -> 467.75 | MH4: =SUM( $MH$5:$MH$215) -> 472.45 | MJ4: =SUM( $MJ$5:$MJ$215) -> 477.15 | ML4: =SUM( $ML$5:$ML$215) -> 481.85 | MN4: =SUM( $MN$5:$MN$215) -> 481.85 | MP4: =SUM( $MP$5:$MP$215) -> 481.85 | MR4: =SUM( $MR$5:$MR$215) -> 486.55 | MT4: =SUM( $MT$5:$MT$215) -> 491.25 | MV4: =SUM( $MV$5:$MV$215) -> 494.8 | MX4: =SUM( $MX$5:$MX$215) -> 499.5 | MZ4: =SUM( $MZ$5:$MZ$215) -> 499.5 | NB4: =SUM( $NB$5:$NB$215) -> 499.5 | ND4: =SUM( $ND$5:$ND$215) -> 499.5 | NF4: =SUM( $NF$5:$NF$215) -> 504.2 | NH4: =SUM( $NH$5:$NH$215) -> 508.9 | NJ4: =SUM( $NJ$5:$NJ$215) -> 513.6 | NL4: =SUM( $NL$5:$NL$215) -> 518.3 | NN4: =SUM( $NN$5:$NN$215) -> 520.65 | NP4: =SUM( $NP$5:$NP$215) -> 520.65 | NR4: =SUM( $NR$5:$NR$215) -> 520.65 | NT4: =SUM( $NT$5:$NT$215) -> 525.35 | NV4: =SUM( $NV$5:$NV$215) -> 530.05 | NX4: =SUM( $NX$5:$NX$215) -> 534.75 | NZ4: =SUM( $NZ$5:$NZ$215) -> 539.45 | OB4: =SUM( $OB$5:$OB$215) -> 541.8 | OD4: =SUM( $OD$5:$OD$215) -> 541.8 | OF4: =SUM( $OF$5:$OF$215) -> 541.8 | OH4: =SUM( $OH$5:$OH$215) -> 546.5 | OJ4: =SUM( $OJ$5:$OJ$215) -> 551.2 | OL4: =SUM( $OL$5:$OL$215) -> 555.9 | ON4: =SUM( $ON$5:$ON$215) -> 560.6 | OP4: =SUM( $OP$5:$OP$215) -> 562.95 | OR4: =SUM( $OR$5:$OR$215) -> 562.95 | OT4: =SUM( $OT$5:$OT$215) -> 562.95 | OV4: =SUM( $OV$5:$OV$215) -> 567.65 | OX4: =SUM( $OX$5:$OX$215) -> 572.35 | OZ4: =SUM( $OZ$5:$OZ$215) -> 577.05 | PB4: =SUM( $PB$5:$PB$215) -> 581.75 | PD4: =SUM( $PD$5:$PD$215) -> 582.95 | PF4: =SUM( $PF$5:$PF$215) -> 582.95 | PH4: =SUM( $PH$5:$PH$215) -> 582.95 | PJ4: =SUM( $PJ$5:$PJ$215) -> 587.65
A5: 2017-10-02 | B5: =TEXT(A5,"dddd") -> Monday | D5: 0 | F5: 0 | G5: ecash | H5: 0 | I5: ecash | J5: 0 | K5: ecash | L5: 0 | M5: ecash | N5: 0 | O5: ecash | P5: 0 | Q5: ecash | R5: 0 | S5: ecash | T5: 0 | U5: ecash | V5: 0 | W5: ecash | X5: 0 | Y5: ecash | Z5: 0 | AA5: ecash | AB5: 0 | AC5: ecash | AD5: 0 | AE5: ecash | AF5: 0 | AG5: ecash | AH5: 0 | AI5: ecash | AJ5: 0 | AK5: ecash | AL5: 0 | AM5: ecash | AN5: 0 | AO5: ecash | AP5: 0 | AQ5: ecash | AR5: 0 | AS5: ecash | AT5: 0 | AU5: ecash | AV5: 0 | AW5: ecash | AX5: 0 | AY5: ecash | AZ5: 0 | BA5: ecash | BB5: 0 | BC5: ecash | BD5: 0 | BE5: ecash | BF5: 0 | BG5: ecash | BH5: 0 | BI5: ecash | BJ5: 0 | BK5: ecash | BL5: 0 | BM5: ecash | BN5: 0 | BO5: ecash | BP5: 0 | BQ5: ecash | BR5: 0 | BS5: ecash | BT5: 0 | BU5: ecash | BV5: 0 | BW5: ecash | BX5: 0 | BY5: ecash | BZ5: 0 | CA5: ecash | CB5: 0 | CC5: ecash | CD5: 0 | CE5: ecash | CF5: 0 | CG5: ecash | CH5: 0 | CI5: ecash | CJ5: 0 | CK5: ecash | CL5: 0 | CM5: ecash | CN5: 0 | CO5: ecash | CP5: 0 | CQ5: ecash | CR5: 0 | CS5: ecash | CT5: 0 | CU5: ecash | CV5: 0 | CW5: ecash | CX5: 0 | CY5: ecash | CZ5: 0 | DA5: ecash | DB5: 0 | DC5: ecash | DD5: 0 | DE5: ecash | DF5: 0 | DG5: ecash | DH5: 0 | DI5: ecash | DJ5: 0 | DK5: ecash | DL5: 0 | DM5: ecash | DN5: 0 | DO5: ecash | DP5: 0 | DQ5: ecash | DR5: 0 | DS5: ecash | DT5: 0 | DU5: ecash | DV5: 0 | DW5: ecash | DX5: 0 | DY5: ecash | DZ5: 0 | EA5: ecash | EB5: 0 | EC5: ecash | ED5: 0 | EE5: ecash | EF5: 0 | EG5: ecash | EH5: 0 | EI5: ecash | EJ5: 0 | EK5: ecash | EL5: 0 | EM5: ecash | EN5: 0 | EO5: ecash | EP5: 0 | EQ5: ecash | ER5: 0 | ES5: ecash | ET5: 0 | EU5: ecash | EV5: 0 | EW5: ecash | EX5: 0 | EY5: ecash | EZ5: 0 | FA5: ecash | FB5: 0 | FC5: ecash | FD5: 0 | FE5: ecash | FF5: 0 | FG5: ecash | FH5: 0 | FI5: ecash | FJ5: 0 | FK5: ecash | FL5: 0 | FM5: ecash | FN5: 0 | FO5: ecash | FP5: 0 | FQ5: ecash | FR5: 0 | FS5: ecash | FT5: 0 | FU5: ecash | FV5: 0 | FW5: ecash | FX5: 0 | FY5: ecash | FZ5: 0 | GA5: ecash | GB5: 0 | GC5: ecash | GD5: 0 | GE5: ecash | GF5: 0 | GG5: ecash | GH5: 0 | GI5: ecash | GJ5: 0 | GK5: ecash | GL5: 0 | GM5: ecash | GN5: 0 | GO5: ecash | GP5: 0 | GQ5: ecash | GR5: 0 | GS5: ecash | GT5: 0 | GU5: ecash | GV5: 0 | GW5: ecash | GX5: 0 | GY5: ecash | GZ5: 0 | HA5: ecash | HB5: 0 | HC5: ecash | HD5: 0 | HE5: ecash | HF5: 0 | HG5: ecash | HH5: 0 | HI5: ecash | HJ5: 0 | HK5: ecash | HL5: 0 | HM5: ecash | HN5: 0 | HO5: ecash | HP5: 0 | HQ5: ecash | HR5: 0 | HS5: ecash | HT5: 0 | HU5: ecash | HV5: 0 | HW5: ecash | HX5: 0 | HY5: ecash | HZ5: 0 | IA5: ecash | IB5: 0 | IC5: ecash | ID5: 0 | IE5: ecash | IF5: 0 | IG5: ecash | IH5: 0 | II5: ecash | IJ5: 0 | IK5: ecash | IL5: 0 | IM5: ecash | IN5: 0 | IO5: ecash | IP5: 0 | IQ5: ecash | IR5: 0 | IS5: ecash | IT5: 0 | IU5: ecash | IV5: 0 | IW5: ecash | IX5: 0 | IY5: ecash | IZ5: 0 | JA5: ecash | JB5: 0 | JC5: ecash | JD5: 0 | JE5: ecash | JF5: 0 | JG5: ecash | JH5: 0 | JI5: ecash | JJ5: 0 | JK5: ecash | JL5: 0 | JM5: ecash | JN5: 0 | JO5: ecash | JP5: 0 | JQ5: ecash | JR5: 0 | JS5: ecash | JT5: 0 | JU5: ecash | JV5: 0 | JW5: ecash | JX5: 0 | JY5: ecash | JZ5: 0 | KA5: ecash | KB5: 0 | KC5: ecash | KD5: 0 | KE5: ecash | KF5: 0 | KG5: ecash | KH5: 0 | KI5: ecash | KJ5: 0 | KK5: ecash | KL5: 0 | KM5: ecash | KN5: 0 | KO5: ecash | KP5: 0 | KQ5: ecash | KR5: 0 | KS5: ecash | KT5: 0 | KU5: ecash | KV5: 0 | KW5: ecash | KX5: 0 | KY5: ecash | KZ5: 0 | LA5: ecash | LB5: 0 | LC5: ecash | LD5: 0 | LE5: ecash | LF5: 0 | LG5: ecash | LH5: 0 | LI5: ecash | LJ5: 0 | LK5: ecash | LL5: 0 | LM5: ecash | LN5: 0 | LO5: ecash | LP5: 0 | LQ5: ecash | LR5: 0 | LS5: ecash | LT5: 0 | LU5: ecash | LV5: 0 | LW5: ecash | LX5: 0 | LY5: ecash | LZ5: 0 | MA5: ecash | MB5: 0 | MC5: ecash | MD5: 0 | ME5: ecash | MF5: 0 | MG5: ecash | MH5: 0 | MI5: ecash | MJ5: 0 | MK5: ecash | ML5: 0 | MM5: ecash | MN5: 0 | MO5: ecash | MP5: 0 | MQ5: ecash | MR5: 0 | MS5: ecash | MT5: 0 | MU5: ecash | MV5: 0 | MW5: ecash | MX5: 0 | MY5: ecash | MZ5: 0 | NA5: ecash | NB5: 0 | NC5: ecash | ND5: 0 | NE5: ecash | NF5: 0 | NG5: ecash | NH5: 0 | NI5: ecash | NJ5: 0 | NK5: ecash | NL5: 0 | NM5: ecash | NN5: 0 | NO5: ecash | NP5: 0 | NQ5: ecash | NR5: 0 | NS5: ecash | NT5: 0 | NU5: ecash | NV5: 0 | NW5: ecash | NX5: 0 | NY5: ecash | NZ5: 0 | OA5: ecash | OB5: 0 | OC5: ecash | OD5: 0 | OE5: ecash | OF5: 0 | OG5: ecash | OH5: 0 | OI5: ecash | OJ5: 0 | OK5: ecash | OL5: 0 | OM5: ecash | ON5: 0 | OO5: ecash | OP5: 0 | OQ5: ecash | OR5: 0 | OS5: ecash | OT5: 0 | OU5: ecash | OV5: 0 | OW5: ecash | OX5: 0 | OY5: ecash | OZ5: 0 | PA5: ecash | PB5: 0 | PC5: ecash | PD5: 0 | PE5: ecash | PF5: 0 | PG5: ecash | PH5: 0 | PI5: ecash | PJ5: 0 | PK5: ecash
A6: 2017-10-03 | B6: =TEXT(A6,"dddd") -> Tuesday | D6: 0 | H6: 0 | I6: ecash | J6: 0 | K6: ecash | L6: 0 | M6: ecash | N6: 0 | O6: ecash | P6: 0 | Q6: ecash | R6: 0 | S6: ecash | T6: 0 | U6: ecash | V6: 0 | W6: ecash | X6: 0 | Y6: ecash | Z6: 0 | AA6: ecash | AB6: 0 | AC6: ecash | AD6: 0 | AE6: ecash | AF6: 0 | AG6: ecash | AH6: 0 | AI6: ecash | AJ6: 0 | AK6: ecash | AL6: 0 | AM6: ecash | AN6: 0 | AO6: ecash | AP6: 0 | AQ6: ecash | AR6: 0 | AS6: ecash | AT6: 0 | AU6: ecash | AV6: 0 | AW6: ecash | AX6: 0 | AY6: ecash | AZ6: 0 | BA6: ecash | BB6: 0 | BC6: ecash | BD6: 0 | BE6: ecash | BF6: 0 | BG6: ecash | BH6: 0 | BI6: ecash | BJ6: 0 | BK6: ecash | BL6: 0 | BM6: ecash | BN6: 0 | BO6: ecash | BP6: 0 | BQ6: ecash | BR6: 0 | BS6: ecash | BT6: 0 | BU6: ecash | BV6: 0 | BW6: ecash | BX6: 0 | BY6: ecash | BZ6: 0 | CA6: ecash | CB6: 0 | CC6: ecash | CD6: 0 | CE6: ecash | CF6: 0 | CG6: ecash | CH6: 0 | CI6: ecash | CJ6: 0 | CK6: ecash | CL6: 0 | CM6: ecash | CN6: 0 | CO6: ecash | CP6: 0 | CQ6: ecash | CR6: 0 | CS6: ecash | CT6: 0 | CU6: ecash | CV6: 0 | CW6: ecash | CX6: 0 | CY6: ecash | CZ6: 0 | DA6: ecash | DB6: 0 | DC6: ecash | DD6: 0 | DE6: ecash | DF6: 0 | DG6: ecash | DH6: 0 | DI6: ecash | DJ6: 0 | DK6: ecash | DL6: 0 | DM6: ecash | DN6: 0 | DO6: ecash | DP6: 0 | DQ6: ecash | DR6: 0 | DS6: ecash | DT6: 0 | DU6: ecash | DV6: 0 | DW6: ecash | DX6: 0 | DY6: ecash | DZ6: 0 | EA6: ecash | EB6: 0 | EC6: ecash | ED6: 0 | EE6: ecash | EF6: 0 | EG6: ecash | EH6: 0 | EI6: ecash | EJ6: 0 | EK6: ecash | EL6: 0 | EM6: ecash | EN6: 0 | EO6: ecash | EP6: 0 | EQ6: ecash | ER6: 0 | ES6: ecash | ET6: 0 | EU6: ecash | EV6: 0 | EW6: ecash | EX6: 0 | EY6: ecash | EZ6: 0 | FA6: ecash | FB6: 0 | FC6: ecash | FD6: 0 | FE6: ecash | FF6: 0 | FG6: ecash | FH6: 0 | FI6: ecash | FJ6: 0 | FK6: ecash | FL6: 0 | FM6: ecash | FN6: 0 | FO6: ecash | FP6: 0 | FQ6: ecash | FR6: 0 | FS6: ecash | FT6: 0 | FU6: ecash | FV6: 0 | FW6: ecash | FX6: 0 | FY6: ecash | FZ6: 0 | GA6: ecash | GB6: 0 | GC6: ecash | GD6: 0 | GE6: ecash | GF6: 0 | GG6: ecash | GH6: 0 | GI6: ecash | GJ6: 0 | GK6: ecash | GL6: 0 | GM6: ecash | GN6: 0 | GO6: ecash | GP6: 0 | GQ6: ecash | GR6: 0 | GS6: ecash | GT6: 0 | GU6: ecash | GV6: 0 | GW6: ecash | GX6: 0 | GY6: ecash | GZ6: 0 | HA6: ecash | HB6: 0 | HC6: ecash | HD6: 0 | HE6: ecash | HF6: 0 | HG6: ecash | HH6: 0 | HI6: ecash | HJ6: 0 | HK6: ecash | HL6: 0 | HM6: ecash | HN6: 0 | HO6: ecash | HP6: 0 | HQ6: ecash | HR6: 0 | HS6: ecash | HT6: 0 | HU6: ecash | HV6: 0 | HW6: ecash | HX6: 0 | HY6: ecash | HZ6: 0 | IA6: ecash | IB6: 0 | IC6: ecash | ID6: 0 | IE6: ecash | IF6: 0 | IG6: ecash | IH6: 0 | II6: ecash | IJ6: 0 | IK6: ecash | IL6: 0 | IM6: ecash | IN6: 0 | IO6: ecash | IP6: 0 | IQ6: ecash | IR6: 0 | IS6: ecash | IT6: 0 | IU6: ecash | IV6: 0 | IW6: ecash | IX6: 0 | IY6: ecash | IZ6: 0 | JA6: ecash | JB6: 0 | JC6: ecash | JD6: 0 | JE6: ecash | JF6: 0 | JG6: ecash | JH6: 0 | JI6: ecash | JJ6: 0 | JK6: ecash | JL6: 0 | JM6: ecash | JN6: 0 | JO6: ecash | JP6: 0 | JQ6: ecash | JR6: 0 | JS6: ecash | JT6: 0 | JU6: ecash | JV6: 0 | JW6: ecash | JX6: 0 | JY6: ecash | JZ6: 0 | KA6: ecash | KB6: 0 | KC6: ecash | KD6: 0 | KE6: ecash | KF6: 0 | KG6: ecash | KH6: 0 | KI6: ecash | KJ6: 0 | KK6: ecash | KL6: 0 | KM6: ecash | KN6: 0 | KO6: ecash | KP6: 0 | KQ6: ecash | KR6: 0 | KS6: ecash | KT6: 0 | KU6: ecash | KV6: 0 | KW6: ecash | KX6: 0 | KY6: ecash | KZ6: 0 | LA6: ecash | LB6: 0 | LC6: ecash | LD6: 0 | LE6: ecash | LF6: 0 | LG6: ecash | LH6: 0 | LI6: ecash | LJ6: 0 | LK6: ecash | LL6: 0 | LM6: ecash | LN6: 0 | LO6: ecash | LP6: 0 | LQ6: ecash | LR6: 0 | LS6: ecash | LT6: 0 | LU6: ecash | LV6: 0 | LW6: ecash | LX6: 0 | LY6: ecash | LZ6: 0 | MA6: ecash | MB6: 0 | MC6: ecash | MD6: 0 | ME6: ecash | MF6: 0 | MG6: ecash | MH6: 0 | MI6: ecash | MJ6: 0 | MK6: ecash | ML6: 0 | MM6: ecash | MN6: 0 | MO6: ecash | MP6: 0 | MQ6: ecash | MR6: 0 | MS6: ecash | MT6: 0 | MU6: ecash | MV6: 0 | MW6: ecash | MX6: 0 | MY6: ecash | MZ6: 0 | NA6: ecash | NB6: 0 | NC6: ecash | ND6: 0 | NE6: ecash | NF6: 0 | NG6: ecash | NH6: 0 | NI6: ecash | NJ6: 0 | NK6: ecash | NL6: 0 | NM6: ecash | NN6: 0 | NO6: ecash | NP6: 0 | NQ6: ecash | NR6: 0 | NS6: ecash | NT6: 0 | NU6: ecash | NV6: 0 | NW6: ecash | NX6: 0 | NY6: ecash | NZ6: 0 | OA6: ecash | OB6: 0 | OC6: ecash | OD6: 0 | OE6: ecash | OF6: 0 | OG6: ecash | OH6: 0 | OI6: ecash | OJ6: 0 | OK6: ecash | OL6: 0 | OM6: ecash | ON6: 0 | OO6: ecash | OP6: 0 | OQ6: ecash | OR6: 0 | OS6: ecash | OT6: 0 | OU6: ecash | OV6: 0 | OW6: ecash | OX6: 0 | OY6: ecash | OZ6: 0 | PA6: ecash | PB6: 0 | PC6: ecash | PD6: 0 | PE6: ecash | PF6: 0 | PG6: ecash | PH6: 0 | PI6: ecash | PJ6: 0 | PK6: ecash
A7: 2017-10-04 | B7: Wednesday | D7: 0 | J7: 0 | K7: ecash | L7: 0 | M7: ecash | N7: 0 | O7: ecash | P7: 0 | Q7: ecash | R7: 0 | S7: ecash | T7: 0 | U7: ecash | V7: 0 | W7: ecash | X7: 0 | Y7: ecash | Z7: 0 | AA7: ecash | AB7: 0 | AC7: ecash | AD7: 0 | AE7: ecash | AF7: 0 | AG7: ecash | AH7: 0 | AI7: ecash | AJ7: 0 | AK7: ecash | AL7: 0 | AM7: ecash | AN7: 0 | AO7: ecash | AP7: 0 | AQ7: ecash | AR7: 0 | AS7: ecash | AT7: 0 | AU7: ecash | AV7: 0 | AW7: ecash | AX7: 0 | AY7: ecash | AZ7: 0 | BA7: ecash | BB7: 0 | BC7: ecash | BD7: 0 | BE7: ecash | BF7: 0 | BG7: ecash | BH7: 0 | BI7: ecash | BJ7: 0 | BK7: ecash | BL7: 0 | BM7: ecash | BN7: 0 | BO7: ecash | BP7: 0 | BQ7: ecash | BR7: 0 | BS7: ecash | BT7: 0 | BU7: ecash | BV7: 0 | BW7: ecash | BX7: 0 | BY7: ecash | BZ7: 0 | CA7: ecash | CB7: 0 | CC7: ecash | CD7: 0 | CE7: ecash | CF7: 0 | CG7: ecash | CH7: 0 | CI7: ecash | CJ7: 0 | CK7: ecash | CL7: 0 | CM7: ecash | CN7: 0 | CO7: ecash | CP7: 0 | CQ7: ecash | CR7: 0 | CS7: ecash | CT7: 0 | CU7: ecash | CV7: 0 | CW7: ecash | CX7: 0 | CY7: ecash | CZ7: 0 | DA7: ecash | DB7: 0 | DC7: ecash | DD7: 0 | DE7: ecash | DF7: 0 | DG7: ecash | DH7: 0 | DI7: ecash | DJ7: 0 | DK7: ecash | DL7: 0 | DM7: ecash | DN7: 0 | DO7: ecash | DP7: 0 | DQ7: ecash | DR7: 0 | DS7: ecash | DT7: 0 | DU7: ecash | DV7: 0 | DW7: ecash | DX7: 0 | DY7: ecash | DZ7: 0 | EA7: ecash | EB7: 0 | EC7: ecash | ED7: 0 | EE7: ecash | EF7: 0 | EG7: ecash | EH7: 0 | EI7: ecash | EJ7: 0 | EK7: ecash | EL7: 0 | EM7: ecash | EN7: 0 | EO7: ecash | EP7: 0 | EQ7: ecash | ER7: 0 | ES7: ecash | ET7: 0 | EU7: ecash | EV7: 0 | EW7: ecash | EX7: 0 | EY7: ecash | EZ7: 0 | FA7: ecash | FB7: 0 | FC7: ecash | FD7: 0 | FE7: ecash | FF7: 0 | FG7: ecash | FH7: 0 | FI7: ecash | FJ7: 0 | FK7: ecash | FL7: 0 | FM7: ecash | FN7: 0 | FO7: ecash | FP7: 0 | FQ7: ecash | FR7: 0 | FS7: ecash | FT7: 0 | FU7: ecash | FV7: 0 | FW7: ecash | FX7: 0 | FY7: ecash | FZ7: 0 | GA7: ecash | GB7: 0 | GC7: ecash | GD7: 0 | GE7: ecash | GF7: 0 | GG7: ecash | GH7: 0 | GI7: ecash | GJ7: 0 | GK7: ecash | GL7: 0 | GM7: ecash | GN7: 0 | GO7: ecash | GP7: 0 | GQ7: ecash | GR7: 0 | GS7: ecash | GT7: 0 | GU7: ecash | GV7: 0 | GW7: ecash | GX7: 0 | GY7: ecash | GZ7: 0 | HA7: ecash | HB7: 0 | HC7: ecash | HD7: 0 | HE7: ecash | HF7: 0 | HG7: ecash | HH7: 0 | HI7: ecash | HJ7: 0 | HK7: ecash | HL7: 0 | HM7: ecash | HN7: 0 | HO7: ecash | HP7: 0 | HQ7: ecash | HR7: 0 | HS7: ecash | HT7: 0 | HU7: ecash | HV7: 0 | HW7: ecash | HX7: 0 | HY7: ecash | HZ7: 0 | IA7: ecash | IB7: 0 | IC7: ecash | ID7: 0 | IE7: ecash | IF7: 0 | IG7: ecash | IH7: 0 | II7: ecash | IJ7: 0 | IK7: ecash | IL7: 0 | IM7: ecash | IN7: 0 | IO7: ecash | IP7: 0 | IQ7: ecash | IR7: 0 | IS7: ecash | IT7: 0 | IU7: ecash | IV7: 0 | IW7: ecash | IX7: 0 | IY7: ecash | IZ7: 0 | JA7: ecash | JB7: 0 | JC7: ecash | JD7: 0 | JE7: ecash | JF7: 0 | JG7: ecash | JH7: 0 | JI7: ecash | JJ7: 0 | JK7: ecash | JL7: 0 | JM7: ecash | JN7: 0 | JO7: ecash | JP7: 0 | JQ7: ecash | JR7: 0 | JS7: ecash | JT7: 0 | JU7: ecash | JV7: 0 | JW7: ecash | JX7: 0 | JY7: ecash | JZ7: 0 | KA7: ecash | KB7: 0 | KC7: ecash | KD7: 0 | KE7: ecash | KF7: 0 | KG7: ecash | KH7: 0 | KI7: ecash | KJ7: 0 | KK7: ecash | KL7: 0 | KM7: ecash | KN7: 0 | KO7: ecash | KP7: 0 | KQ7: ecash | KR7: 0 | KS7: ecash | KT7: 0 | KU7: ecash | KV7: 0 | KW7: ecash | KX7: 0 | KY7: ecash | KZ7: 0 | LA7: ecash | LB7: 0 | LC7: ecash | LD7: 0 | LE7: ecash | LF7: 0 | LG7: ecash | LH7: 0 | LI7: ecash | LJ7: 0 | LK7: ecash | LL7: 0 | LM7: ecash | LN7: 0 | LO7: ecash | LP7: 0 | LQ7: ecash | LR7: 0 | LS7: ecash | LT7: 0 | LU7: ecash | LV7: 0 | LW7: ecash | LX7: 0 | LY7: ecash | LZ7: 0 | MA7: ecash | MB7: 0 | MC7: ecash | MD7: 0 | ME7: ecash | MF7: 0 | MG7: ecash | MH7: 0 | MI7: ecash | MJ7: 0 | MK7: ecash | ML7: 0 | MM7: ecash | MN7: 0 | MO7: ecash | MP7: 0 | MQ7: ecash | MR7: 0 | MS7: ecash | MT7: 0 | MU7: ecash | MV7: 0 | MW7: ecash | MX7: 0 | MY7: ecash | MZ7: 0 | NA7: ecash | NB7: 0 | NC7: ecash | ND7: 0 | NE7: ecash | NF7: 0 | NG7: ecash | NH7: 0 | NI7: ecash | NJ7: 0 | NK7: ecash | NL7: 0 | NM7: ecash | NN7: 0 | NO7: ecash | NP7: 0 | NQ7: ecash | NR7: 0 | NS7: ecash | NT7: 0 | NU7: ecash | NV7: 0 | NW7: ecash | NX7: 0 | NY7: ecash | NZ7: 0 | OA7: ecash | OB7: 0 | OC7: ecash | OD7: 0 | OE7: ecash | OF7: 0 | OG7: ecash | OH7: 0 | OI7: ecash | OJ7: 0 | OK7: ecash | OL7: 0 | OM7: ecash | ON7: 0 | OO7: ecash | OP7: 0 | OQ7: ecash | OR7: 0 | OS7: ecash | OT7: 0 | OU7: ecash | OV7: 0 | OW7: ecash | OX7: 0 | OY7: ecash | OZ7: 0 | PA7: ecash | PB7: 0 | PC7: ecash | PD7: 0 | PE7: ecash | PF7: 0 | PG7: ecash | PH7: 0 | PI7: ecash | PJ7: 0 | PK7: ecash
A8: 2017-10-05 | B8: Thursday | D8: 0 | L8: 0 | M8: ecash | N8: 0 | O8: ecash | P8: 0 | Q8: ecash | R8: 0 | S8: ecash | T8: 0 | U8: ecash | V8: 0 | W8: ecash | X8: 0 | Y8: ecash | Z8: 0 | AA8: ecash | AB8: 0 | AC8: ecash | AD8: 0 | AE8: ecash | AF8: 0 | AG8: ecash | AH8: 0 | AI8: ecash | AJ8: 0 | AK8: ecash | AL8: 0 | AM8: ecash | AN8: 0 | AO8: ecash | AP8: 0 | AQ8: ecash | AR8: 0 | AS8: ecash | AT8: 0 | AU8: ecash | AV8: 0 | AW8: ecash | AX8: 0 | AY8: ecash | AZ8: 0 | BA8: ecash | BB8: 0 | BC8: ecash | BD8: 0 | BE8: ecash | BF8: 0 | BG8: ecash | BH8: 0 | BI8: ecash | BJ8: 0 | BK8: ecash | BL8: 0 | BM8: ecash | BN8: 0 | BO8: ecash | BP8: 0 | BQ8: ecash | BR8: 0 | BS8: ecash | BT8: 0 | BU8: ecash | BV8: 0 | BW8: ecash | BX8: 0 | BY8: ecash | BZ8: 0 | CA8: ecash | CB8: 0 | CC8: ecash | CD8: 0 | CE8: ecash | CF8: 0 | CG8: ecash | CH8: 0 | CI8: ecash | CJ8: 0 | CK8: ecash | CL8: 0 | CM8: ecash | CN8: 0 | CO8: ecash | CP8: 0 | CQ8: ecash | CR8: 0 | CS8: ecash | CT8: 0 | CU8: ecash | CV8: 0 | CW8: ecash | CX8: 0 | CY8: ecash | CZ8: 0 | DA8: ecash | DB8: 0 | DC8: ecash | DD8: 0 | DE8: ecash | DF8: 0 | DG8: ecash | DH8: 0 | DI8: ecash | DJ8: 0 | DK8: ecash | DL8: 0 | DM8: ecash | DN8: 0 | DO8: ecash | DP8: 0 | DQ8: ecash | DR8: 0 | DS8: ecash | DT8: 0 | DU8: ecash | DV8: 0 | DW8: ecash | DX8: 0 | DY8: ecash | DZ8: 0 | EA8: ecash | EB8: 0 | EC8: ecash | ED8: 0 | EE8: ecash | EF8: 0 | EG8: ecash | EH8: 0 | EI8: ecash | EJ8: 0 | EK8: ecash | EL8: 0 | EM8: ecash | EN8: 0 | EO8: ecash | EP8: 0 | EQ8: ecash | ER8: 0 | ES8: ecash | ET8: 0 | EU8: ecash | EV8: 0 | EW8: ecash | EX8: 0 | EY8: ecash | EZ8: 0 | FA8: ecash | FB8: 0 | FC8: ecash | FD8: 0 | FE8: ecash | FF8: 0 | FG8: ecash | FH8: 0 | FI8: ecash | FJ8: 0 | FK8: ecash | FL8: 0 | FM8: ecash | FN8: 0 | FO8: ecash | FP8: 0 | FQ8: ecash | FR8: 0 | FS8: ecash | FT8: 0 | FU8: ecash | FV8: 0 | FW8: ecash | FX8: 0 | FY8: ecash | FZ8: 0 | GA8: ecash | GB8: 0 | GC8: ecash | GD8: 0 | GE8: ecash | GF8: 0 | GG8: ecash | GH8: 0 | GI8: ecash | GJ8: 0 | GK8: ecash | GL8: 0 | GM8: ecash | GN8: 0 | GO8: ecash | GP8: 0 | GQ8: ecash | GR8: 0 | GS8: ecash | GT8: 0 | GU8: ecash | GV8: 0 | GW8: ecash | GX8: 0 | GY8: ecash | GZ8: 0 | HA8: ecash | HB8: 0 | HC8: ecash | HD8: 0 | HE8: ecash | HF8: 0 | HG8: ecash | HH8: 0 | HI8: ecash | HJ8: 0 | HK8: ecash | HL8: 0 | HM8: ecash | HN8: 0 | HO8: ecash | HP8: 0 | HQ8: ecash | HR8: 0 | HS8: ecash | HT8: 0 | HU8: ecash | HV8: 0 | HW8: ecash | HX8: 0 | HY8: ecash | HZ8: 0 | IA8: ecash | IB8: 0 | IC8: ecash | ID8: 0 | IE8: ecash | IF8: 0 | IG8: ecash | IH8: 0 | II8: ecash | IJ8: 0 | IK8: ecash | IL8: 0 | IM8: ecash | IN8: 0 | IO8: ecash | IP8: 0 | IQ8: ecash | IR8: 0 | IS8: ecash | IT8: 0 | IU8: ecash | IV8: 0 | IW8: ecash | IX8: 0 | IY8: ecash | IZ8: 0 | JA8: ecash | JB8: 0 | JC8: ecash | JD8: 0 | JE8: ecash | JF8: 0 | JG8: ecash | JH8: 0 | JI8: ecash | JJ8: 0 | JK8: ecash | JL8: 0 | JM8: ecash | JN8: 0 | JO8: ecash | JP8: 0 | JQ8: ecash | JR8: 0 | JS8: ecash | JT8: 0 | JU8: ecash | JV8: 0 | JW8: ecash | JX8: 0 | JY8: ecash | JZ8: 0 | KA8: ecash | KB8: 0 | KC8: ecash | KD8: 0 | KE8: ecash | KF8: 0 | KG8: ecash | KH8: 0 | KI8: ecash | KJ8: 0 | KK8: ecash | KL8: 0 | KM8: ecash | KN8: 0 | KO8: ecash | KP8: 0 | KQ8: ecash | KR8: 0 | KS8: ecash | KT8: 0 | KU8: ecash | KV8: 0 | KW8: ecash | KX8: 0 | KY8: ecash | KZ8: 0 | LA8: ecash | LB8: 0 | LC8: ecash | LD8: 0 | LE8: ecash | LF8: 0 | LG8: ecash | LH8: 0 | LI8: ecash | LJ8: 0 | LK8: ecash | LL8: 0 | LM8: ecash | LN8: 0 | LO8: ecash | LP8: 0 | LQ8: ecash | LR8: 0 | LS8: ecash | LT8: 0 | LU8: ecash | LV8: 0 | LW8: ecash | LX8: 0 | LY8: ecash | LZ8: 0 | MA8: ecash | MB8: 0 | MC8: ecash | MD8: 0 | ME8: ecash | MF8: 0 | MG8: ecash | MH8: 0 | MI8: ecash | MJ8: 0 | MK8: ecash | ML8: 0 | MM8: ecash | MN8: 0 | MO8: ecash | MP8: 0 | MQ8: ecash | MR8: 0 | MS8: ecash | MT8: 0 | MU8: ecash | MV8: 0 | MW8: ecash | MX8: 0 | MY8: ecash | MZ8: 0 | NA8: ecash | NB8: 0 | NC8: ecash | ND8: 0 | NE8: ecash | NF8: 0 | NG8: ecash | NH8: 0 | NI8: ecash | NJ8: 0 | NK8: ecash | NL8: 0 | NM8: ecash | NN8: 0 | NO8: ecash | NP8: 0 | NQ8: ecash | NR8: 0 | NS8: ecash | NT8: 0 | NU8: ecash | NV8: 0 | NW8: ecash | NX8: 0 | NY8: ecash | NZ8: 0 | OA8: ecash | OB8: 0 | OC8: ecash | OD8: 0 | OE8: ecash | OF8: 0 | OG8: ecash | OH8: 0 | OI8: ecash | OJ8: 0 | OK8: ecash | OL8: 0 | OM8: ecash | ON8: 0 | OO8: ecash | OP8: 0 | OQ8: ecash | OR8: 0 | OS8: ecash | OT8: 0 | OU8: ecash | OV8: 0 | OW8: ecash | OX8: 0 | OY8: ecash | OZ8: 0 | PA8: ecash | PB8: 0 | PC8: ecash | PD8: 0 | PE8: ecash | PF8: 0 | PG8: ecash | PH8: 0 | PI8: ecash | PJ8: 0 | PK8: ecash
A9: 2017-10-06 | B9: Friday | D9: 0 | N9: 0 | O9: ecash | P9: 0 | Q9: ecash | R9: 0 | S9: ecash | T9: 0 | U9: ecash | V9: 0 | W9: ecash | X9: 0 | Y9: ecash | Z9: 0 | AA9: ecash | AB9: 0 | AC9: ecash | AD9: 0 | AE9: ecash | AF9: 0 | AG9: ecash | AH9: 0 | AI9: ecash | AJ9: 0 | AK9: ecash | AL9: 0 | AM9: ecash | AN9: 0 | AO9: ecash | AP9: 0 | AQ9: ecash | AR9: 0 | AS9: ecash | AT9: 0 | AU9: ecash | AV9: 0 | AW9: ecash | AX9: 0 | AY9: ecash | AZ9: 0 | BA9: ecash | BB9: 0 | BC9: ecash | BD9: 0 | BE9: ecash | BF9: 0 | BG9: ecash | BH9: 0 | BI9: ecash | BJ9: 0 | BK9: ecash | BL9: 0 | BM9: ecash | BN9: 0 | BO9: ecash | BP9: 0 | BQ9: ecash | BR9: 0 | BS9: ecash | BT9: 0 | BU9: ecash | BV9: 0 | BW9: ecash | BX9: 0 | BY9: ecash | BZ9: 0 | CA9: ecash | CB9: 0 | CC9: ecash | CD9: 0 | CE9: ecash | CF9: 0 | CG9: ecash | CH9: 0 | CI9: ecash | CJ9: 0 | CK9: ecash | CL9: 0 | CM9: ecash | CN9: 0 | CO9: ecash | CP9: 0 | CQ9: ecash | CR9: 0 | CS9: ecash | CT9: 0 | CU9: ecash | CV9: 0 | CW9: ecash | CX9: 0 | CY9: ecash | CZ9: 0 | DA9: ecash | DB9: 0 | DC9: ecash | DD9: 0 | DE9: ecash | DF9: 0 | DG9: ecash | DH9: 0 | DI9: ecash | DJ9: 0 | DK9: ecash | DL9: 0 | DM9: ecash | DN9: 0 | DO9: ecash | DP9: 0 | DQ9: ecash | DR9: 0 | DS9: ecash | DT9: 0 | DU9: ecash | DV9: 0 | DW9: ecash | DX9: 0 | DY9: ecash | DZ9: 0 | EA9: ecash | EB9: 0 | EC9: ecash | ED9: 0 | EE9: ecash | EF9: 0 | EG9: ecash | EH9: 0 | EI9: ecash | EJ9: 0 | EK9: ecash | EL9: 0 | EM9: ecash | EN9: 0 | EO9: ecash | EP9: 0 | EQ9: ecash | ER9: 0 | ES9: ecash | ET9: 0 | EU9: ecash | EV9: 0 | EW9: ecash | EX9: 0 | EY9: ecash | EZ9: 0 | FA9: ecash | FB9: 0 | FC9: ecash | FD9: 0 | FE9: ecash | FF9: 0 | FG9: ecash | FH9: 0 | FI9: ecash | FJ9: 0 | FK9: ecash | FL9: 0 | FM9: ecash | FN9: 0 | FO9: ecash | FP9: 0 | FQ9: ecash | FR9: 0 | FS9: ecash | FT9: 0 | FU9: ecash | FV9: 0 | FW9: ecash | FX9: 0 | FY9: ecash | FZ9: 0 | GA9: ecash | GB9: 0 | GC9: ecash | GD9: 0 | GE9: ecash | GF9: 0 | GG9: ecash | GH9: 0 | GI9: ecash | GJ9: 0 | GK9: ecash | GL9: 0 | GM9: ecash | GN9: 0 | GO9: ecash | GP9: 0 | GQ9: ecash | GR9: 0 | GS9: ecash | GT9: 0 | GU9: ecash | GV9: 0 | GW9: ecash | GX9: 0 | GY9: ecash | GZ9: 0 | HA9: ecash | HB9: 0 | HC9: ecash | HD9: 0 | HE9: ecash | HF9: 0 | HG9: ecash | HH9: 0 | HI9: ecash | HJ9: 0 | HK9: ecash | HL9: 0 | HM9: ecash | HN9: 0 | HO9: ecash | HP9: 0 | HQ9: ecash | HR9: 0 | HS9: ecash | HT9: 0 | HU9: ecash | HV9: 0 | HW9: ecash | HX9: 0 | HY9: ecash | HZ9: 0 | IA9: ecash | IB9: 0 | IC9: ecash | ID9: 0 | IE9: ecash | IF9: 0 | IG9: ecash | IH9: 0 | II9: ecash | IJ9: 0 | IK9: ecash | IL9: 0 | IM9: ecash | IN9: 0 | IO9: ecash | IP9: 0 | IQ9: ecash | IR9: 0 | IS9: ecash | IT9: 0 | IU9: ecash | IV9: 0 | IW9: ecash | IX9: 0 | IY9: ecash | IZ9: 0 | JA9: ecash | JB9: 0 | JC9: ecash | JD9: 0 | JE9: ecash | JF9: 0 | JG9: ecash | JH9: 0 | JI9: ecash | JJ9: 0 | JK9: ecash | JL9: 0 | JM9: ecash | JN9: 0 | JO9: ecash | JP9: 0 | JQ9: ecash | JR9: 0 | JS9: ecash | JT9: 0 | JU9: ecash | JV9: 0 | JW9: ecash | JX9: 0 | JY9: ecash | JZ9: 0 | KA9: ecash | KB9: 0 | KC9: ecash | KD9: 0 | KE9: ecash | KF9: 0 | KG9: ecash | KH9: 0 | KI9: ecash | KJ9: 0 | KK9: ecash | KL9: 0 | KM9: ecash | KN9: 0 | KO9: ecash | KP9: 0 | KQ9: ecash | KR9: 0 | KS9: ecash | KT9: 0 | KU9: ecash | KV9: 0 | KW9: ecash | KX9: 0 | KY9: ecash | KZ9: 0 | LA9: ecash | LB9: 0 | LC9: ecash | LD9: 0 | LE9: ecash | LF9: 0 | LG9: ecash | LH9: 0 | LI9: ecash | LJ9: 0 | LK9: ecash | LL9: 0 | LM9: ecash | LN9: 0 | LO9: ecash | LP9: 0 | LQ9: ecash | LR9: 0 | LS9: ecash | LT9: 0 | LU9: ecash | LV9: 0 | LW9: ecash | LX9: 0 | LY9: ecash | LZ9: 0 | MA9: ecash | MB9: 0 | MC9: ecash | MD9: 0 | ME9: ecash | MF9: 0 | MG9: ecash | MH9: 0 | MI9: ecash | MJ9: 0 | MK9: ecash | ML9: 0 | MM9: ecash | MN9: 0 | MO9: ecash | MP9: 0 | MQ9: ecash | MR9: 0 | MS9: ecash | MT9: 0 | MU9: ecash | MV9: 0 | MW9: ecash | MX9: 0 | MY9: ecash | MZ9: 0 | NA9: ecash | NB9: 0 | NC9: ecash | ND9: 0 | NE9: ecash | NF9: 0 | NG9: ecash | NH9: 0 | NI9: ecash | NJ9: 0 | NK9: ecash | NL9: 0 | NM9: ecash | NN9: 0 | NO9: ecash | NP9: 0 | NQ9: ecash | NR9: 0 | NS9: ecash | NT9: 0 | NU9: ecash | NV9: 0 | NW9: ecash | NX9: 0 | NY9: ecash | NZ9: 0 | OA9: ecash | OB9: 0 | OC9: ecash | OD9: 0 | OE9: ecash | OF9: 0 | OG9: ecash | OH9: 0 | OI9: ecash | OJ9: 0 | OK9: ecash | OL9: 0 | OM9: ecash | ON9: 0 | OO9: ecash | OP9: 0 | OQ9: ecash | OR9: 0 | OS9: ecash | OT9: 0 | OU9: ecash | OV9: 0 | OW9: ecash | OX9: 0 | OY9: ecash | OZ9: 0 | PA9: ecash | PB9: 0 | PC9: ecash | PD9: 0 | PE9: ecash | PF9: 0 | PG9: ecash | PH9: 0 | PI9: ecash | PJ9: 0 | PK9: ecash
A10: 2017-10-07 | B10: Saturday | D10: 0 | P10: 0 | Q10: ecash | R10: 0 | S10: ecash | T10: 0 | U10: ecash | V10: 0 | W10: ecash | X10: 0 | Y10: ecash | Z10: 0 | AA10: ecash | AB10: 0 | AC10: ecash | AD10: 0 | AE10: ecash | AF10: 0 | AG10: ecash | AH10: 0 | AI10: ecash | AJ10: 0 | AK10: ecash | AL10: 0 | AM10: ecash | AN10: 0 | AO10: ecash | AP10: 0 | AQ10: ecash | AR10: 0 | AS10: ecash | AT10: 0 | AU10: ecash | AV10: 0 | AW10: ecash | AX10: 0 | AY10: ecash | AZ10: 0 | BA10: ecash | BB10: 0 | BC10: ecash | BD10: 0 | BE10: ecash | BF10: 0 | BG10: ecash | BH10: 0 | BI10: ecash | BJ10: 0 | BK10: ecash | BL10: 0 | BM10: ecash | BN10: 0 | BO10: ecash | BP10: 0 | BQ10: ecash | BR10: 0 | BS10: ecash | BT10: 0 | BU10: ecash | BV10: 0 | BW10: ecash | BX10: 0 | BY10: ecash | BZ10: 0 | CA10: ecash | CB10: 0 | CC10: ecash | CD10: 0 | CE10: ecash | CF10: 0 | CG10: ecash | CH10: 0 | CI10: ecash | CJ10: 0 | CK10: ecash | CL10: 0 | CM10: ecash | CN10: 0 | CO10: ecash | CP10: 0 | CQ10: ecash | CR10: 0 | CS10: ecash | CT10: 0 | CU10: ecash | CV10: 0 | CW10: ecash | CX10: 0 | CY10: ecash | CZ10: 0 | DA10: ecash | DB10: 0 | DC10: ecash | DD10: 0 | DE10: ecash | DF10: 0 | DG10: ecash | DH10: 0 | DI10: ecash | DJ10: 0 | DK10: ecash | DL10: 0 | DM10: ecash | DN10: 0 | DO10: ecash | DP10: 0 | DQ10: ecash | DR10: 0 | DS10: ecash | DT10: 0 | DU10: ecash | DV10: 0 | DW10: ecash | DX10: 0 | DY10: ecash | DZ10: 0 | EA10: ecash | EB10: 0 | EC10: ecash | ED10: 0 | EE10: ecash | EF10: 0 | EG10: ecash | EH10: 0 | EI10: ecash | EJ10: 0 | EK10: ecash | EL10: 0 | EM10: ecash | EN10: 0 | EO10: ecash | EP10: 0 | EQ10: ecash | ER10: 0 | ES10: ecash | ET10: 0 | EU10: ecash | EV10: 0 | EW10: ecash | EX10: 0 | EY10: ecash | EZ10: 0 | FA10: ecash | FB10: 0 | FC10: ecash | FD10: 0 | FE10: ecash | FF10: 0 | FG10: ecash | FH10: 0 | FI10: ecash | FJ10: 0 | FK10: ecash | FL10: 0 | FM10: ecash | FN10: 0 | FO10: ecash | FP10: 0 | FQ10: ecash | FR10: 0 | FS10: ecash | FT10: 0 | FU10: ecash | FV10: 0 | FW10: ecash | FX10: 0 | FY10: ecash | FZ10: 0 | GA10: ecash | GB10: 0 | GC10: ecash | GD10: 0 | GE10: ecash | GF10: 0 | GG10: ecash | GH10: 0 | GI10: ecash | GJ10: 0 | GK10: ecash | GL10: 0 | GM10: ecash | GN10: 0 | GO10: ecash | GP10: 0 | GQ10: ecash | GR10: 0 | GS10: ecash | GT10: 0 | GU10: ecash | GV10: 0 | GW10: ecash | GX10: 0 | GY10: ecash | GZ10: 0 | HA10: ecash | HB10: 0 | HC10: ecash | HD10: 0 | HE10: ecash | HF10: 0 | HG10: ecash | HH10: 0 | HI10: ecash | HJ10: 0 | HK10: ecash | HL10: 0 | HM10: ecash | HN10: 0 | HO10: ecash | HP10: 0 | HQ10: ecash | HR10: 0 | HS10: ecash | HT10: 0 | HU10: ecash | HV10: 0 | HW10: ecash | HX10: 0 | HY10: ecash | HZ10: 0 | IA10: ecash | IB10: 0 | IC10: ecash | ID10: 0 | IE10: ecash | IF10: 0 | IG10: ecash | IH10: 0 | II10: ecash | IJ10: 0 | IK10: ecash | IL10: 0 | IM10: ecash | IN10: 0 | IO10: ecash | IP10: 0 | IQ10: ecash | IR10: 0 | IS10: ecash | IT10: 0 | IU10: ecash | IV10: 0 | IW10: ecash | IX10: 0 | IY10: ecash | IZ10: 0 | JA10: ecash | JB10: 0 | JC10: ecash | JD10: 0 | JE10: ecash | JF10: 0 | JG10: ecash | JH10: 0 | JI10: ecash | JJ10: 0 | JK10: ecash | JL10: 0 | JM10: ecash | JN10: 0 | JO10: ecash | JP10: 0 | JQ10: ecash | JR10: 0 | JS10: ecash | JT10: 0 | JU10: ecash | JV10: 0 | JW10: ecash | JX10: 0 | JY10: ecash | JZ10: 0 | KA10: ecash | KB10: 0 | KC10: ecash | KD10: 0 | KE10: ecash | KF10: 0 | KG10: ecash | KH10: 0 | KI10: ecash | KJ10: 0 | KK10: ecash | KL10: 0 | KM10: ecash | KN10: 0 | KO10: ecash | KP10: 0 | KQ10: ecash | KR10: 0 | KS10: ecash | KT10: 0 | KU10: ecash | KV10: 0 | KW10: ecash | KX10: 0 | KY10: ecash | KZ10: 0 | LA10: ecash | LB10: 0 | LC10: ecash | LD10: 0 | LE10: ecash | LF10: 0 | LG10: ecash | LH10: 0 | LI10: ecash | LJ10: 0 | LK10: ecash | LL10: 0 | LM10: ecash | LN10: 0 | LO10: ecash | LP10: 0 | LQ10: ecash | LR10: 0 | LS10: ecash | LT10: 0 | LU10: ecash | LV10: 0 | LW10: ecash | LX10: 0 | LY10: ecash | LZ10: 0 | MA10: ecash | MB10: 0 | MC10: ecash | MD10: 0 | ME10: ecash | MF10: 0 | MG10: ecash | MH10: 0 | MI10: ecash | MJ10: 0 | MK10: ecash | ML10: 0 | MM10: ecash | MN10: 0 | MO10: ecash | MP10: 0 | MQ10: ecash | MR10: 0 | MS10: ecash | MT10: 0 | MU10: ecash | MV10: 0 | MW10: ecash | MX10: 0 | MY10: ecash | MZ10: 0 | NA10: ecash | NB10: 0 | NC10: ecash | ND10: 0 | NE10: ecash | NF10: 0 | NG10: ecash | NH10: 0 | NI10: ecash | NJ10: 0 | NK10: ecash | NL10: 0 | NM10: ecash | NN10: 0 | NO10: ecash | NP10: 0 | NQ10: ecash | NR10: 0 | NS10: ecash | NT10: 0 | NU10: ecash | NV10: 0 | NW10: ecash | NX10: 0 | NY10: ecash | NZ10: 0 | OA10: ecash | OB10: 0 | OC10: ecash | OD10: 0 | OE10: ecash | OF10: 0 | OG10: ecash | OH10: 0 | OI10: ecash | OJ10: 0 | OK10: ecash | OL10: 0 | OM10: ecash | ON10: 0 | OO10: ecash | OP10: 0 | OQ10: ecash | OR10: 0 | OS10: ecash | OT10: 0 | OU10: ecash | OV10: 0 | OW10: ecash | OX10: 0 | OY10: ecash | OZ10: 0 | PA10: ecash | PB10: 0 | PC10: ecash | PD10: 0 | PE10: ecash | PF10: 0 | PG10: ecash | PH10: 0 | PI10: ecash | PJ10: 0 | PK10: ecash
A11: 2017-10-08 | B11: Sunday | D11: 0 | R11: 0 | S11: ecash | T11: 0 | U11: ecash | V11: 0 | W11: ecash | X11: 0 | Y11: ecash | Z11: 0 | AA11: ecash | AB11: 0 | AC11: ecash | AD11: 0 | AE11: ecash | AF11: 0 | AG11: ecash | AH11: 0 | AI11: ecash | AJ11: 0 | AK11: ecash | AL11: 0 | AM11: ecash | AN11: 0 | AO11: ecash | AP11: 0 | AQ11: ecash | AR11: 0 | AS11: ecash | AT11: 0 | AU11: ecash | AV11: 0 | AW11: ecash | AX11: 0 | AY11: ecash | AZ11: 0 | BA11: ecash | BB11: 0 | BC11: ecash | BD11: 0 | BE11: ecash | BF11: 0 | BG11: ecash | BH11: 0 | BI11: ecash | BJ11: 0 | BK11: ecash | BL11: 0 | BM11: ecash | BN11: 0 | BO11: ecash | BP11: 0 | BQ11: ecash | BR11: 0 | BS11: ecash | BT11: 0 | BU11: ecash | BV11: 0 | BW11: ecash | BX11: 0 | BY11: ecash | BZ11: 0 | CA11: ecash | CB11: 0 | CC11: ecash | CD11: 0 | CE11: ecash | CF11: 0 | CG11: ecash | CH11: 0 | CI11: ecash | CJ11: 0 | CK11: ecash | CL11: 0 | CM11: ecash | CN11: 0 | CO11: ecash | CP11: 0 | CQ11: ecash | CR11: 0 | CS11: ecash | CT11: 0 | CU11: ecash | CV11: 0 | CW11: ecash | CX11: 0 | CY11: ecash | CZ11: 0 | DA11: ecash | DB11: 0 | DC11: ecash | DD11: 0 | DE11: ecash | DF11: 0 | DG11: ecash | DH11: 0 | DI11: ecash | DJ11: 0 | DK11: ecash | DL11: 0 | DM11: ecash | DN11: 0 | DO11: ecash | DP11: 0 | DQ11: ecash | DR11: 0 | DS11: ecash | DT11: 0 | DU11: ecash | DV11: 0 | DW11: ecash | DX11: 0 | DY11: ecash | DZ11: 0 | EA11: ecash | EB11: 0 | EC11: ecash | ED11: 0 | EE11: ecash | EF11: 0 | EG11: ecash | EH11: 0 | EI11: ecash | EJ11: 0 | EK11: ecash | EL11: 0 | EM11: ecash | EN11: 0 | EO11: ecash | EP11: 0 | EQ11: ecash | ER11: 0 | ES11: ecash | ET11: 0 | EU11: ecash | EV11: 0 | EW11: ecash | EX11: 0 | EY11: ecash | EZ11: 0 | FA11: ecash | FB11: 0 | FC11: ecash | FD11: 0 | FE11: ecash | FF11: 0 | FG11: ecash | FH11: 0 | FI11: ecash | FJ11: 0 | FK11: ecash | FL11: 0 | FM11: ecash | FN11: 0 | FO11: ecash | FP11: 0 | FQ11: ecash | FR11: 0 | FS11: ecash | FT11: 0 | FU11: ecash | FV11: 0 | FW11: ecash | FX11: 0 | FY11: ecash | FZ11: 0 | GA11: ecash | GB11: 0 | GC11: ecash | GD11: 0 | GE11: ecash | GF11: 0 | GG11: ecash | GH11: 0 | GI11: ecash | GJ11: 0 | GK11: ecash | GL11: 0 | GM11: ecash | GN11: 0 | GO11: ecash | GP11: 0 | GQ11: ecash | GR11: 0 | GS11: ecash | GT11: 0 | GU11: ecash | GV11: 0 | GW11: ecash | GX11: 0 | GY11: ecash | GZ11: 0 | HA11: ecash | HB11: 0 | HC11: ecash | HD11: 0 | HE11: ecash | HF11: 0 | HG11: ecash | HH11: 0 | HI11: ecash | HJ11: 0 | HK11: ecash | HL11: 0 | HM11: ecash | HN11: 0 | HO11: ecash | HP11: 0 | HQ11: ecash | HR11: 0 | HS11: ecash | HT11: 0 | HU11: ecash | HV11: 0 | HW11: ecash | HX11: 0 | HY11: ecash | HZ11: 0 | IA11: ecash | IB11: 0 | IC11: ecash | ID11: 0 | IE11: ecash | IF11: 0 | IG11: ecash | IH11: 0 | II11: ecash | IJ11: 0 | IK11: ecash | IL11: 0 | IM11: ecash | IN11: 0 | IO11: ecash | IP11: 0 | IQ11: ecash | IR11: 0 | IS11: ecash | IT11: 0 | IU11: ecash | IV11: 0 | IW11: ecash | IX11: 0 | IY11: ecash | IZ11: 0 | JA11: ecash | JB11: 0 | JC11: ecash | JD11: 0 | JE11: ecash | JF11: 0 | JG11: ecash | JH11: 0 | JI11: ecash | JJ11: 0 | JK11: ecash | JL11: 0 | JM11: ecash | JN11: 0 | JO11: ecash | JP11: 0 | JQ11: ecash | JR11: 0 | JS11: ecash | JT11: 0 | JU11: ecash | JV11: 0 | JW11: ecash | JX11: 0 | JY11: ecash | JZ11: 0 | KA11: ecash | KB11: 0 | KC11: ecash | KD11: 0 | KE11: ecash | KF11: 0 | KG11: ecash | KH11: 0 | KI11: ecash | KJ11: 0 | KK11: ecash | KL11: 0 | KM11: ecash | KN11: 0 | KO11: ecash | KP11: 0 | KQ11: ecash | KR11: 0 | KS11: ecash | KT11: 0 | KU11: ecash | KV11: 0 | KW11: ecash | KX11: 0 | KY11: ecash | KZ11: 0 | LA11: ecash | LB11: 0 | LC11: ecash | LD11: 0 | LE11: ecash | LF11: 0 | LG11: ecash | LH11: 0 | LI11: ecash | LJ11: 0 | LK11: ecash | LL11: 0 | LM11: ecash | LN11: 0 | LO11: ecash | LP11: 0 | LQ11: ecash | LR11: 0 | LS11: ecash | LT11: 0 | LU11: ecash | LV11: 0 | LW11: ecash | LX11: 0 | LY11: ecash | LZ11: 0 | MA11: ecash | MB11: 0 | MC11: ecash | MD11: 0 | ME11: ecash | MF11: 0 | MG11: ecash | MH11: 0 | MI11: ecash | MJ11: 0 | MK11: ecash | ML11: 0 | MM11: ecash | MN11: 0 | MO11: ecash | MP11: 0 | MQ11: ecash | MR11: 0 | MS11: ecash | MT11: 0 | MU11: ecash | MV11: 0 | MW11: ecash | MX11: 0 | MY11: ecash | MZ11: 0 | NA11: ecash | NB11: 0 | NC11: ecash | ND11: 0 | NE11: ecash | NF11: 0 | NG11: ecash | NH11: 0 | NI11: ecash | NJ11: 0 | NK11: ecash | NL11: 0 | NM11: ecash | NN11: 0 | NO11: ecash | NP11: 0 | NQ11: ecash | NR11: 0 | NS11: ecash | NT11: 0 | NU11: ecash | NV11: 0 | NW11: ecash | NX11: 0 | NY11: ecash | NZ11: 0 | OA11: ecash | OB11: 0 | OC11: ecash | OD11: 0 | OE11: ecash | OF11: 0 | OG11: ecash | OH11: 0 | OI11: ecash | OJ11: 0 | OK11: ecash | OL11: 0 | OM11: ecash | ON11: 0 | OO11: ecash | OP11: 0 | OQ11: ecash | OR11: 0 | OS11: ecash | OT11: 0 | OU11: ecash | OV11: 0 | OW11: ecash | OX11: 0 | OY11: ecash | OZ11: 0 | PA11: ecash | PB11: 0 | PC11: ecash | PD11: 0 | PE11: ecash | PF11: 0 | PG11: ecash | PH11: 0 | PI11: ecash | PJ11: 0 | PK11: ecash
A12: 2017-10-09 | B12: Monday | C12: Thanksgiving | D12: 0 | T12: 0 | U12: ecash | V12: 0 | W12: ecash | X12: 0 | Y12: ecash | Z12: 0 | AA12: ecash | AB12: 0 | AC12: ecash | AD12: 0 | AE12: ecash | AF12: 0 | AG12: ecash | AH12: 0 | AI12: ecash | AJ12: 0 | AK12: ecash | AL12: 0 | AM12: ecash | AN12: 0 | AO12: ecash | AP12: 0 | AQ12: ecash | AR12: 0 | AS12: ecash | AT12: 0 | AU12: ecash | AV12: 0 | AW12: ecash | AX12: 0 | AY12: ecash | AZ12: 0 | BA12: ecash | BB12: 0 | BC12: ecash | BD12: 0 | BE12: ecash | BF12: 0 | BG12: ecash | BH12: 0 | BI12: ecash | BJ12: 0 | BK12: ecash | BL12: 0 | BM12: ecash | BN12: 0 | BO12: ecash | BP12: 0 | BQ12: ecash | BR12: 0 | BS12: ecash | BT12: 0 | BU12: ecash | BV12: 0 | BW12: ecash | BX12: 0 | BY12: ecash | BZ12: 0 | CA12: ecash | CB12: 0 | CC12: ecash | CD12: 0 | CE12: ecash | CF12: 0 | CG12: ecash | CH12: 0 | CI12: ecash | CJ12: 0 | CK12: ecash | CL12: 0 | CM12: ecash | CN12: 0 | CO12: ecash | CP12: 0 | CQ12: ecash | CR12: 0 | CS12: ecash | CT12: 0 | CU12: ecash | CV12: 0 | CW12: ecash | CX12: 0 | CY12: ecash | CZ12: 0 | DA12: ecash | DB12: 0 | DC12: ecash | DD12: 0 | DE12: ecash | DF12: 0 | DG12: ecash | DH12: 0 | DI12: ecash | DJ12: 0 | DK12: ecash | DL12: 0 | DM12: ecash | DN12: 0 | DO12: ecash | DP12: 0 | DQ12: ecash | DR12: 0 | DS12: ecash | DT12: 0 | DU12: ecash | DV12: 0 | DW12: ecash | DX12: 0 | DY12: ecash | DZ12: 0 | EA12: ecash | EB12: 0 | EC12: ecash | ED12: 0 | EE12: ecash | EF12: 0 | EG12: ecash | EH12: 0 | EI12: ecash | EJ12: 0 | EK12: ecash | EL12: 0 | EM12: ecash | EN12: 0 | EO12: ecash | EP12: 0 | EQ12: ecash | ER12: 0 | ES12: ecash | ET12: 0 | EU12: ecash | EV12: 0 | EW12: ecash | EX12: 0 | EY12: ecash | EZ12: 0 | FA12: ecash | FB12: 0 | FC12: ecash | FD12: 0 | FE12: ecash | FF12: 0 | FG12: ecash | FH12: 0 | FI12: ecash | FJ12: 0 | FK12: ecash | FL12: 0 | FM12: ecash | FN12: 0 | FO12: ecash | FP12: 0 | FQ12: ecash | FR12: 0 | FS12: ecash | FT12: 0 | FU12: ecash | FV12: 0 | FW12: ecash | FX12: 0 | FY12: ecash | FZ12: 0 | GA12: ecash | GB12: 0 | GC12: ecash | GD12: 0 | GE12: ecash | GF12: 0 | GG12: ecash | GH12: 0 | GI12: ecash | GJ12: 0 | GK12: ecash | GL12: 0 | GM12: ecash | GN12: 0 | GO12: ecash | GP12: 0 | GQ12: ecash | GR12: 0 | GS12: ecash | GT12: 0 | GU12: ecash | GV12: 0 | GW12: ecash | GX12: 0 | GY12: ecash | GZ12: 0 | HA12: ecash | HB12: 0 | HC12: ecash | HD12: 0 | HE12: ecash | HF12: 0 | HG12: ecash | HH12: 0 | HI12: ecash | HJ12: 0 | HK12: ecash | HL12: 0 | HM12: ecash | HN12: 0 | HO12: ecash | HP12: 0 | HQ12: ecash | HR12: 0 | HS12: ecash | HT12: 0 | HU12: ecash | HV12: 0 | HW12: ecash | HX12: 0 | HY12: ecash | HZ12: 0 | IA12: ecash | IB12: 0 | IC12: ecash | ID12: 0 | IE12: ecash | IF12: 0 | IG12: ecash | IH12: 0 | II12: ecash | IJ12: 0 | IK12: ecash | IL12: 0 | IM12: ecash | IN12: 0 | IO12: ecash | IP12: 0 | IQ12: ecash | IR12: 0 | IS12: ecash | IT12: 0 | IU12: ecash | IV12: 0 | IW12: ecash | IX12: 0 | IY12: ecash | IZ12: 0 | JA12: ecash | JB12: 0 | JC12: ecash | JD12: 0 | JE12: ecash | JF12: 0 | JG12: ecash | JH12: 0 | JI12: ecash | JJ12: 0 | JK12: ecash | JL12: 0 | JM12: ecash | JN12: 0 | JO12: ecash | JP12: 0 | JQ12: ecash | JR12: 0 | JS12: ecash | JT12: 0 | JU12: ecash | JV12: 0 | JW12: ecash | JX12: 0 | JY12: ecash | JZ12: 0 | KA12: ecash | KB12: 0 | KC12: ecash | KD12: 0 | KE12: ecash | KF12: 0 | KG12: ecash | KH12: 0 | KI12: ecash | KJ12: 0 | KK12: ecash | KL12: 0 | KM12: ecash | KN12: 0 | KO12: ecash | KP12: 0 | KQ12: ecash | KR12: 0 | KS12: ecash | KT12: 0 | KU12: ecash | KV12: 0 | KW12: ecash | KX12: 0 | KY12: ecash | KZ12: 0 | LA12: ecash | LB12: 0 | LC12: ecash | LD12: 0 | LE12: ecash | LF12: 0 | LG12: ecash | LH12: 0 | LI12: ecash | LJ12: 0 | LK12: ecash | LL12: 0 | LM12: ecash | LN12: 0 | LO12: ecash | LP12: 0 | LQ12: ecash | LR12: 0 | LS12: ecash | LT12: 0 | LU12: ecash | LV12: 0 | LW12: ecash | LX12: 0 | LY12: ecash | LZ12: 0 | MA12: ecash | MB12: 0 | MC12: ecash | MD12: 0 | ME12: ecash | MF12: 0 | MG12: ecash | MH12: 0 | MI12: ecash | MJ12: 0 | MK12: ecash | ML12: 0 | MM12: ecash | MN12: 0 | MO12: ecash | MP12: 0 | MQ12: ecash | MR12: 0 | MS12: ecash | MT12: 0 | MU12: ecash | MV12: 0 | MW12: ecash | MX12: 0 | MY12: ecash | MZ12: 0 | NA12: ecash | NB12: 0 | NC12: ecash | ND12: 0 | NE12: ecash | NF12: 0 | NG12: ecash | NH12: 0 | NI12: ecash | NJ12: 0 | NK12: ecash | NL12: 0 | NM12: ecash | NN12: 0 | NO12: ecash | NP12: 0 | NQ12: ecash | NR12: 0 | NS12: ecash | NT12: 0 | NU12: ecash | NV12: 0 | NW12: ecash | NX12: 0 | NY12: ecash | NZ12: 0 | OA12: ecash | OB12: 0 | OC12: ecash | OD12: 0 | OE12: ecash | OF12: 0 | OG12: ecash | OH12: 0 | OI12: ecash | OJ12: 0 | OK12: ecash | OL12: 0 | OM12: ecash | ON12: 0 | OO12: ecash | OP12: 0 | OQ12: ecash | OR12: 0 | OS12: ecash | OT12: 0 | OU12: ecash | OV12: 0 | OW12: ecash | OX12: 0 | OY12: ecash | OZ12: 0 | PA12: ecash | PB12: 0 | PC12: ecash | PD12: 0 | PE12: ecash | PF12: 0 | PG12: ecash | PH12: 0 | PI12: ecash | PJ12: 0 | PK12: ecash
A13: 2017-10-10 | B13: Tuesday | D13: 2 | V13: 4.7 | W13: ecash | X13: 4.7 | Y13: ecash | Z13: 4.7 | AA13: ecash | AB13: 4.7 | AC13: ecash | AD13: 4.7 | AE13: ecash | AF13: 4.7 | AG13: ecash | AH13: 4.7 | AI13: ecash | AJ13: 4.7 | AK13: ecash | AL13: 4.7 | AM13: ecash | AN13: 4.7 | AO13: ecash | AP13: 4.7 | AQ13: ecash | AR13: 4.7 | AS13: ecash | AT13: 4.7 | AU13: ecash | AV13: 43.5 | AW13: 14 day e-pass | AX13: 43.5 | AY13: 14 day e-pass | AZ13: 4.7 | BA13: ecash | BB13: 4.7 | BC13: ecash | BD13: 4.7 | BE13: ecash | BF13: 4.7 | BG13: ecash | BH13: 4.7 | BI13: ecash | BJ13: 64.65 | BK13: 21 day e-pass | BL13: 64.65 | BM13: 21 day e-pass | BN13: 64.65 | BO13: 21 day e-pass | BP13: 4.7 | BQ13: ecash | BR13: 4.7 | BS13: ecash | BT13: 4.7 | BU13: ecash | BV13: 4.7 | BW13: ecash | BX13: 83.45 | BY13: 28 day e-pass | BZ13: 83.45 | CA13: 28 day e-pass | CB13: 83.45 | CC13: 28 day e-pass | CD13: 83.45 | CE13: 28 day e-pass | CF13: 83.45 | CG13: 28 day e-pass | CH13: 83.45 | CI13: 28 day e-pass | CJ13: 83.45 | CK13: 28 day e-pass | CL13: 83.45 | CM13: 28 day e-pass | CN13: 83.45 | CO13: 28 day e-pass | CP13: 83.45 | CQ13: 28 day e-pass | CR13: 83.45 | CS13: 28 day e-pass | CT13: 83.45 | CU13: 28 day e-pass | CV13: 83.45 | CW13: 28 day e-pass | CX13: 83.45 | CY13: 28 day e-pass | CZ13: 83.45 | DA13: 28 day e-pass | DB13: 83.45 | DC13: 28 day e-pass | DD13: 83.45 | DE13: 28 day e-pass | DF13: 83.45 | DG13: 28 day e-pass | DH13: 83.45 | DI13: 28 day e-pass | DJ13: 83.45 | DK13: 28 day e-pass | DL13: 83.45 | DM13: 28 day e-pass | DN13: 83.45 | DO13: 28 day e-pass | DP13: 83.45 | DQ13: 28 day e-pass | DR13: 83.45 | DS13: 28 day e-pass | DT13: 83.45 | DU13: 28 day e-pass | DV13: 83.45 | DW13: 28 day e-pass | DX13: 83.45 | DY13: 28 day e-pass | DZ13: 83.45 | EA13: 28 day e-pass | EB13: 83.45 | EC13: 28 day e-pass | ED13: 83.45 | EE13: 28 day e-pass | EF13: 83.45 | EG13: 28 day e-pass | EH13: 83.45 | EI13: 28 day e-pass | EJ13: 83.45 | EK13: 28 day e-pass | EL13: 83.45 | EM13: 28 day e-pass | EN13: 83.45 | EO13: 28 day e-pass | EP13: 83.45 | EQ13: 28 day e-pass | ER13: 83.45 | ES13: 28 day e-pass | ET13: 83.45 | EU13: 28 day e-pass | EV13: 83.45 | EW13: 28 day e-pass | EX13: 83.45 | EY13: 28 day e-pass | EZ13: 83.45 | FA13: 28 day e-pass | FB13: 83.45 | FC13: 28 day e-pass | FD13: 83.45 | FE13: 28 day e-pass | FF13: 83.45 | FG13: 28 day e-pass | FH13: 83.45 | FI13: 28 day e-pass | FJ13: 83.45 | FK13: 28 day e-pass | FL13: 83.45 | FM13: 28 day e-pass | FN13: 83.45 | FO13: 28 day e-pass | FP13: 83.45 | FQ13: 28 day e-pass | FR13: 83.45 | FS13: 28 day e-pass | FT13: 83.45 | FU13: 28 day e-pass | FV13: 83.45 | FW13: 28 day e-pass | FX13: 83.45 | FY13: 28 day e-pass | FZ13: 83.45 | GA13: 28 day e-pass | GB13: 83.45 | GC13: 28 day e-pass | GD13: 83.45 | GE13: 28 day e-pass | GF13: 83.45 | GG13: 28 day e-pass | GH13: 83.45 | GI13: 28 day e-pass | GJ13: 83.45 | GK13: 28 day e-pass | GL13: 83.45 | GM13: 28 day e-pass | GN13: 83.45 | GO13: 28 day e-pass | GP13: 83.45 | GQ13: 28 day e-pass | GR13: 83.45 | GS13: 28 day e-pass | GT13: 83.45 | GU13: 28 day e-pass | GV13: 83.45 | GW13: 28 day e-pass | GX13: 83.45 | GY13: 28 day e-pass | GZ13: 83.45 | HA13: 28 day e-pass | HB13: 83.45 | HC13: 28 day e-pass | HD13: 83.45 | HE13: 28 day e-pass | HF13: 83.45 | HG13: 28 day e-pass | HH13: 83.45 | HI13: 28 day e-pass | HJ13: 83.45 | HK13: 28 day e-pass | HL13: 83.45 | HM13: 28 day e-pass | HN13: 83.45 | HO13: 28 day e-pass | HP13: 83.45 | HQ13: 28 day e-pass | HR13: 83.45 | HS13: 28 day e-pass | HT13: 83.45 | HU13: 28 day e-pass | HV13: 83.45 | HW13: 28 day e-pass | HX13: 83.45 | HY13: 28 day e-pass | HZ13: 83.45 | IA13: 28 day e-pass | IB13: 83.45 | IC13: 28 day e-pass | ID13: 83.45 | IE13: 28 day e-pass | IF13: 83.45 | IG13: 28 day e-pass | IH13: 83.45 | II13: 28 day e-pass | IJ13: 83.45 | IK13: 28 day e-pass | IL13: 83.45 | IM13: 28 day e-pass | IN13: 83.45 | IO13: 28 day e-pass | IP13: 83.45 | IQ13: 28 day e-pass | IR13: 83.45 | IS13: 28 day e-pass | IT13: 83.45 | IU13: 28 day e-pass | IV13: 83.45 | IW13: 28 day e-pass | IX13: 83.45 | IY13: 28 day e-pass | IZ13: 83.45 | JA13: 28 day e-pass | JB13: 83.45 | JC13: 28 day e-pass | JD13: 83.45 | JE13: 28 day e-pass | JF13: 83.45 | JG13: 28 day e-pass | JH13: 83.45 | JI13: 28 day e-pass | JJ13: 83.45 | JK13: 28 day e-pass | JL13: 83.45 | JM13: 28 day e-pass | JN13: 83.45 | JO13: 28 day e-pass | JP13: 83.45 | JQ13: 28 day e-pass | JR13: 83.45 | JS13: 28 day e-pass | JT13: 83.45 | JU13: 28 day e-pass | JV13: 83.45 | JW13: 28 day e-pass | JX13: 83.45 | JY13: 28 day e-pass | JZ13: 83.45 | KA13: 28 day e-pass | KB13: 83.45 | KC13: 28 day e-pass | KD13: 83.45 | KE13: 28 day e-pass | KF13: 83.45 | KG13: 28 day e-pass | KH13: 83.45 | KI13: 28 day e-pass | KJ13: 83.45 | KK13: 28 day e-pass | KL13: 83.45 | KM13: 28 day e-pass | KN13: 83.45 | KO13: 28 day e-pass | KP13: 83.45 | KQ13: 28 day e-pass | KR13: 83.45 | KS13: 28 day e-pass | KT13: 83.45 | KU13: 28 day e-pass | KV13: 83.45 | KW13: 28 day e-pass | KX13: 83.45 | KY13: 28 day e-pass | KZ13: 83.45 | LA13: 28 day e-pass | LB13: 83.45 | LC13: 28 day e-pass | LD13: 83.45 | LE13: 28 day e-pass | LF13: 83.45 | LG13: 28 day e-pass | LH13: 83.45 | LI13: 28 day e-pass | LJ13: 83.45 | LK13: 28 day e-pass | LL13: 83.45 | LM13: 28 day e-pass | LN13: 83.45 | LO13: 28 day e-pass | LP13: 83.45 | LQ13: 28 day e-pass | LR13: 83.45 | LS13: 28 day e-pass | LT13: 83.45 | LU13: 28 day e-pass | LV13: 83.45 | LW13: 28 day e-pass | LX13: 83.45 | LY13: 28 day e-pass | LZ13: 83.45 | MA13: 28 day e-pass | MB13: 83.45 | MC13: 28 day e-pass | MD13: 83.45 | ME13: 28 day e-pass | MF13: 83.45 | MG13: 28 day e-pass | MH13: 83.45 | MI13: 28 day e-pass | MJ13: 83.45 | MK13: 28 day e-pass | ML13: 83.45 | MM13: 28 day e-pass | MN13: 83.45 | MO13: 28 day e-pass | MP13: 83.45 | MQ13: 28 day e-pass | MR13: 83.45 | MS13: 28 day e-pass | MT13: 83.45 | MU13: 28 day e-pass | MV13: 83.45 | MW13: 28 day e-pass | MX13: 83.45 | MY13: 28 day e-pass | MZ13: 83.45 | NA13: 28 day e-pass | NB13: 83.45 | NC13: 28 day e-pass | ND13: 83.45 | NE13: 28 day e-pass | NF13: 83.45 | NG13: 28 day e-pass | NH13: 83.45 | NI13: 28 day e-pass | NJ13: 83.45 | NK13: 28 day e-pass | NL13: 83.45 | NM13: 28 day e-pass | NN13: 83.45 | NO13: 28 day e-pass | NP13: 83.45 | NQ13: 28 day e-pass | NR13: 83.45 | NS13: 28 day e-pass | NT13: 83.45 | NU13: 28 day e-pass | NV13: 83.45 | NW13: 28 day e-pass | NX13: 83.45 | NY13: 28 day e-pass | NZ13: 83.45 | OA13: 28 day e-pass | OB13: 83.45 | OC13: 28 day e-pass | OD13: 83.45 | OE13: 28 day e-pass | OF13: 83.45 | OG13: 28 day e-pass | OH13: 83.45 | OI13: 28 day e-pass | OJ13: 83.45 | OK13: 28 day e-pass | OL13: 83.45 | OM13: 28 day e-pass | ON13: 83.45 | OO13: 28 day e-pass | OP13: 83.45 | OQ13: 28 day e-pass | OR13: 83.45 | OS13: 28 day e-pass | OT13: 83.45 | OU13: 28 day e-pass | OV13: 83.45 | OW13: 28 day e-pass | OX13: 83.45 | OY13: 28 day e-pass | OZ13: 83.45 | PA13: 28 day e-pass | PB13: 83.45 | PC13: 28 day e-pass | PD13: 83.45 | PE13: 28 day e-pass | PF13: 83.45 | PG13: 28 day e-pass | PH13: 83.45 | PI13: 28 day e-pass | PJ13: 83.45 | PK13: 28 day e-pass
A14: 2017-10-11 | B14: Wednesday | D14: 2 | X14: 4.7 | Y14: ecash | Z14: 4.7 | AA14: ecash | AB14: 4.7 | AC14: ecash | AD14: 4.7 | AE14: ecash | AF14: 4.7 | AG14: ecash | AH14: 4.7 | AI14: ecash | AJ14: 4.7 | AK14: ecash | AL14: 4.7 | AM14: ecash | AN14: 4.7 | AO14: ecash | AP14: 4.7 | AQ14: ecash | AR14: 4.7 | AS14: ecash | AT14: 4.7 | AU14: ecash | AZ14: 4.7 | BA14: ecash | BB14: 4.7 | BC14: ecash | BD14: 4.7 | BE14: ecash | BF14: 4.7 | BG14: ecash | BH14: 4.7 | BI14: ecash | BP14: 4.7 | BQ14: ecash | BR14: 4.7 | BS14: ecash | BT14: 4.7 | BU14: ecash | BV14: 4.7 | BW14: ecash
A15: 2017-10-12 | B15: Thursday | D15: 2 | Z15: 4.7 | AA15: ecash | AB15: 4.7 | AC15: ecash | AD15: 4.7 | AE15: ecash | AF15: 4.7 | AG15: ecash | AH15: 4.7 | AI15: ecash | AJ15: 4.7 | AK15: ecash | AL15: 4.7 | AM15: ecash | AN15: 4.7 | AO15: ecash | AP15: 4.7 | AQ15: ecash | AR15: 4.7 | AS15: ecash | AT15: 4.7 | AU15: ecash | AZ15: 43.5 | BA15: 14 day e-pass | BB15: 43.5 | BC15: 14 day e-pass | BD15: 4.7 | BE15: ecash | BF15: 4.7 | BG15: ecash | BH15: 4.7 | BI15: ecash | BP15: 4.7 | BQ15: ecash | BR15: 4.7 | BS15: ecash | BT15: 4.7 | BU15: ecash | BV15: 4.7 | BW15: ecash
A16: 2017-10-13 | B16: Friday | D16: 2 | AB16: 4.7 | AC16: ecash | AD16: 4.7 | AE16: ecash | AF16: 4.7 | AG16: ecash | AH16: 4.7 | AI16: ecash | AJ16: 4.7 | AK16: ecash | AL16: 4.7 | AM16: ecash | AN16: 4.7 | AO16: ecash | AP16: 4.7 | AQ16: ecash | AR16: 4.7 | AS16: ecash | AT16: 4.7 | AU16: ecash | BD16: 4.7 | BE16: ecash | BF16: 4.7 | BG16: ecash | BH16: 4.7 | BI16: ecash | BP16: 64.65 | BQ16: 21 day e-pass | BR16: 4.7 | BS16: ecash | BT16: 4.7 | BU16: ecash | BV16: 4.7 | BW16: ecash
A17: 2017-10-14 | B17: Saturday | D17: 0 | AD17: 0 | AE17: ecash | AF17: 0 | AG17: ecash | AH17: 0 | AI17: ecash | AJ17: 0 | AK17: ecash | AL17: 0 | AM17: ecash | AN17: 0 | AO17: ecash | AP17: 0 | AQ17: ecash | AR17: 0 | AS17: ecash | AT17: 0 | AU17: ecash | BD17: 0 | BE17: ecash | BF17: 0 | BG17: ecash | BH17: 0 | BI17: ecash | BR17: 0 | BS17: ecash | BT17: 0 | BU17: ecash | BV17: 0 | BW17: ecash
A18: 2017-10-15 | B18: Sunday | D18: 0 | AF18: 0 | AG18: ecash | AH18: 0 | AI18: ecash | AJ18: 0 | AK18: ecash | AL18: 0 | AM18: ecash | AN18: 0 | AO18: ecash | AP18: 0 | AQ18: ecash | AR18: 0 | AS18: ecash | AT18: 0 | AU18: ecash | BD18: 0 | BE18: ecash | BF18: 0 | BG18: ecash | BH18: 0 | BI18: ecash | BR18: 0 | BS18: ecash | BT18: 0 | BU18: ecash | BV18: 0 | BW18: ecash
A19: 2017-10-16 | B19: Monday | D19: 2 | AH19: 4.7 | AI19: ecash | AJ19: 4.7 | AK19: ecash | AL19: 4.7 | AM19: ecash | AN19: 4.7 | AO19: ecash | AP19: 21.15 | AQ19: 5 day e-pass | AR19: 21.15 | AS19: 5 day e-pass | AT19: 21.15 | AU19: 5 day e-pass | BD19: 21.15 | BE19: 5 day e-pass | BF19: 21.15 | BG19: 5 day e-pass | BH19: 21.15 | BI19: 5 day e-pass | BR19: 21.15 | BS19: 5 day e-pass | BT19: 21.15 | BU19: 5 day e-pass | BV19: 21.15 | BW19: 5 day e-pass
A20: 2017-10-17 | B20: Tuesday | D20: 2 | AJ20: 4.7 | AK20: ecash | AL20: 4.7 | AM20: ecash | AN20: 4.7 | AO20: ecash
A21: 2017-10-18 | B21: Wednesday | D21: 2 | AL21: 4.7 | AM21: ecash | AN21: 4.7 | AO21: ecash
A22: 2017-10-19 | B22: Thursday | D22: 2 | AN22: 4.7 | AO22: ecash
A23: 2017-10-20 | B23: Friday | D23: 2
A24: 2017-10-21 | B24: Saturday | D24: 0 | AR24: 0 | AS24: ecash | AT24: 0 | AU24: ecash | BD24: 0 | BE24: ecash | BF24: 0 | BG24: ecash | BH24: 0 | BI24: ecash | BR24: 0 | BS24: ecash | BT24: 0 | BU24: ecash | BV24: 0 | BW24: ecash
A25: 2017-10-22 | B25: Sunday | D25: 0 | AT25: 0 | AU25: ecash | BD25: 0 | BE25: ecash | BF25: 0 | BG25: ecash | BH25: 0 | BI25: ecash | BR25: 0 | BS25: ecash | BT25: 0 | BU25: ecash | BV25: 0 | BW25: ecash
A26: 2017-10-23 | B26: Monday | D26: 2 | BD26: 21.15 | BE26: 5 day e-pass | BF26: 21.15 | BG26: 5 day e-pass | BH26: 21.15 | BI26: 5 day e-pass | BR26: 21.15 | BS26: 5 day e-pass | BT26: 21.15 | BU26: 5 day e-pass | BV26: 21.15 | BW26: 5 day e-pass
A27: 2017-10-24 | B27: Tuesday | D27: 2 | AX27: 4.7 | AY27: ecash
A28: 2017-10-25 | B28: Wednesday | D28: 2
A29: 2017-10-26 | B29: Thursday | D29: 2 | BB29: 4.7 | BC29: ecash
A30: 2017-10-27 | B30: Friday | D30: 2
A31: 2017-10-28 | B31: Saturday | D31: 0 | BF31: 0 | BG31: ecash | BH31: 0 | BI31: ecash | BR31: 0 | BS31: ecash | BT31: 0 | BU31: ecash | BV31: 0 | BW31: ecash
A32: 2017-10-29 | B32: Sunday | D32: 0 | BH32: 0 | BI32: ecash | BR32: 0 | BS32: ecash | BT32: 0 | BU32: ecash | BV32: 0 | BW32: ecash
A33: 2017-10-30 | B33: Monday | D33: 2 | BR33: 21.15 | BS33: 5 day e-pass | BT33: 21.15 | BU33: 5 day e-pass | BV33: 21.15 | BW33: 5 day e-pass
A34: 2017-10-31 | B34: Tuesday | D34: 2 | BL34: 4.7 | BM34: ecash | BN34: 4.7 | BO34: ecash
A35: 2017-11-01 | B35: Wednesday | D35: 2 | BN35: 4.7 | BO35: ecash
A36: 2017-11-02 | B36: Thursday | D36: 2
A37: 2017-11-03 | B37: Friday | D37: 2
A38: 2017-11-04 | B38: Saturday | D38: 0 | BT38: 0 | BU38: ecash | BV38: 0 | BW38: ecash
A39: 2017-11-05 | B39: Sunday | D39: 0 | BV39: 0 | BW39: ecash
A40: 2017-11-06 | B40: Monday | D40: 2
A41: 2017-11-07 | B41: Tuesday | D41: 2 | BZ41: 4.7 | CA41: ecash | CB41: 4.7 | CC41: ecash | CD41: 4.7 | CE41: ecash | CF41: 4.7 | CG41: ecash | CH41: 4.7 | CI41: ecash | CJ41: 4.7 | CK41: ecash | CL41: 4.7 | CM41: ecash | CN41: 4.7 | CO41: ecash | CP41: 4.7 | CQ41: ecash | CR41: 4.7 | CS41: ecash | CT41: 4.7 | CU41: ecash | CV41: 4.7 | CW41: ecash | CX41: 4.7 | CY41: ecash | CZ41: 4.7 | DA41: ecash | DB41: 4.7 | DC41: ecash | DD41: 4.7 | DE41: ecash | DF41: 4.7 | DG41: ecash | DH41: 4.7 | DI41: ecash | DJ41: 4.7 | DK41: ecash | DL41: 4.7 | DM41: ecash | DN41: 4.7 | DO41: ecash | DP41: 4.7 | DQ41: ecash | DR41: 4.7 | DS41: ecash | DT41: 4.7 | DU41: ecash | DV41: 4.7 | DW41: ecash | DX41: 4.7 | DY41: ecash | DZ41: 4.7 | EA41: ecash | EB41: 4.7 | EC41: ecash | ED41: 4.7 | EE41: ecash | EF41: 4.7 | EG41: ecash | EH41: 4.7 | EI41: ecash | EJ41: 4.7 | EK41: ecash | EL41: 4.7 | EM41: ecash | EN41: 4.7 | EO41: ecash | EP41: 4.7 | EQ41: ecash | ER41: 4.7 | ES41: ecash | ET41: 4.7 | EU41: ecash | EV41: 4.7 | EW41: ecash | EX41: 4.7 | EY41: ecash | EZ41: 4.7 | FA41: ecash | FB41: 4.7 | FC41: ecash | FD41: 4.7 | FE41: ecash | FF41: 4.7 | FG41: ecash | FH41: 4.7 | FI41: ecash | FJ41: 4.7 | FK41: ecash | FL41: 4.7 | FM41: ecash | FN41: 4.7 | FO41: ecash | FP41: 4.7 | FQ41: ecash | FR41: 4.7 | FS41: ecash | FT41: 4.7 | FU41: ecash | FV41: 4.7 | FW41: ecash | FX41: 4.7 | FY41: ecash | FZ41: 4.7 | GA41: ecash | GB41: 4.7 | GC41: ecash | GD41: 4.7 | GE41: ecash | GF41: 4.7 | GG41: ecash | GH41: 4.7 | GI41: ecash | GJ41: 4.7 | GK41: ecash | GL41: 4.7 | GM41: ecash | GN41: 4.7 | GO41: ecash | GP41: 4.7 | GQ41: ecash | GR41: 4.7 | GS41: ecash | GT41: 4.7 | GU41: ecash | GV41: 4.7 | GW41: ecash | GX41: 4.7 | GY41: ecash | GZ41: 4.7 | HA41: ecash | HB41: 4.7 | HC41: ecash | HD41: 4.7 | HE41: ecash | HF41: 4.7 | HG41: ecash | HH41: 4.7 | HI41: ecash | HJ41: 4.7 | HK41: ecash | HL41: 4.7 | HM41: ecash | HN41: 4.7 | HO41: ecash | HP41: 4.7 | HQ41: ecash | HR41: 4.7 | HS41: ecash | HT41: 4.7 | HU41: ecash | HV41: 4.7 | HW41: ecash | HX41: 4.7 | HY41: ecash | HZ41: 4.7 | IA41: ecash | IB41: 4.7 | IC41: ecash | ID41: 4.7 | IE41: ecash | IF41: 4.7 | IG41: ecash | IH41: 4.7 | II41: ecash | IJ41: 4.7 | IK41: ecash | IL41: 4.7 | IM41: ecash | IN41: 4.7 | IO41: ecash | IP41: 4.7 | IQ41: ecash | IR41: 4.7 | IS41: ecash | IT41: 4.7 | IU41: ecash | IV41: 4.7 | IW41: ecash | IX41: 4.7 | IY41: ecash | IZ41: 4.7 | JA41: ecash | JB41: 4.7 | JC41: ecash | JD41: 4.7 | JE41: ecash | JF41: 4.7 | JG41: ecash | JH41: 4.7 | JI41: ecash | JJ41: 4.7 | JK41: ecash | JL41: 4.7 | JM41: ecash | JN41: 4.7 | JO41: ecash | JP41: 4.7 | JQ41: ecash | JR41: 4.7 | JS41: ecash | JT41: 4.7 | JU41: ecash | JV41: 4.7 | JW41: ecash | JX41: 4.7 | JY41: ecash | JZ41: 4.7 | KA41: ecash | KB41: 4.7 | KC41: ecash | KD41: 4.7 | KE41: ecash | KF41: 4.7 | KG41: ecash | KH41: 4.7 | KI41: ecash | KJ41: 4.7 | KK41: ecash | KL41: 4.7 | KM41: ecash | KN41: 4.7 | KO41: ecash | KP41: 4.7 | KQ41: ecash | KR41: 4.7 | KS41: ecash | KT41: 4.7 | KU41: ecash | KV41: 4.7 | KW41: ecash | KX41: 4.7 | KY41: ecash | KZ41: 4.7 | LA41: ecash | LB41: 4.7 | LC41: ecash | LD41: 4.7 | LE41: ecash | LF41: 4.7 | LG41: ecash | LH41: 4.7 | LI41: ecash | LJ41: 4.7 | LK41: ecash | LL41: 4.7 | LM41: ecash | LN41: 4.7 | LO41: ecash | LP41: 4.7 | LQ41: ecash | LR41: 4.7 | LS41: ecash | LT41: 4.7 | LU41: ecash | LV41: 4.7 | LW41: ecash | LX41: 4.7 | LY41: ecash | LZ41: 4.7 | MA41: ecash | MB41: 4.7 | MC41: ecash | MD41: 4.7 | ME41: ecash | MF41: 4.7 | MG41: ecash | MH41: 4.7 | MI41: ecash | MJ41: 4.7 | MK41: ecash | ML41: 4.7 | MM41: ecash | MN41: 4.7 | MO41: ecash | MP41: 4.7 | MQ41: ecash | MR41: 4.7 | MS41: ecash | MT41: 4.7 | MU41: ecash | MV41: 4.7 | MW41: ecash | MX41: 4.7 | MY41: ecash | MZ41: 4.7 | NA41: ecash | NB41: 4.7 | NC41: ecash | ND41: 4.7 | NE41: ecash | NF41: 4.7 | NG41: ecash | NH41: 4.7 | NI41: ecash | NJ41: 4.7 | NK41: ecash | NL41: 4.7 | NM41: ecash | NN41: 4.7 | NO41: ecash | NP41: 4.7 | NQ41: ecash | NR41: 4.7 | NS41: ecash | NT41: 4.7 | NU41: ecash | NV41: 4.7 | NW41: ecash | NX41: 4.7 | NY41: ecash | NZ41: 4.7 | OA41: ecash | OB41: 4.7 | OC41: ecash | OD41: 4.7 | OE41: ecash | OF41: 4.7 | OG41: ecash | OH41: 4.7 | OI41: ecash | OJ41: 4.7 | OK41: ecash | OL41: 4.7 | OM41: ecash | ON41: 4.7 | OO41: ecash | OP41: 4.7 | OQ41: ecash | OR41: 4.7 | OS41: ecash | OT41: 4.7 | OU41: ecash | OV41: 4.7 | OW41: ecash | OX41: 4.7 | OY41: ecash | OZ41: 4.7 | PA41: ecash | PB41: 4.7 | PC41: ecash | PD41: 4.7 | PE41: ecash | PF41: 4.7 | PG41: ecash | PH41: 4.7 | PI41: ecash | PJ41: 4.7 | PK41: ecash
A42: 2017-11-08 | B42: Wednesday | C42: Doctor's appointment | D42: 1 | CB42: 2.35 | CC42: ecash | CD42: 2.35 | CE42: ecash | CF42: 2.35 | CG42: ecash | CH42: 2.35 | CI42: ecash | CJ42: 2.35 | CK42: ecash | CL42: 2.35 | CM42: ecash | CN42: 2.35 | CO42: ecash | CP42: 2.35 | CQ42: ecash | CR42: 2.35 | CS42: ecash | CT42: 2.35 | CU42: ecash | CV42: 2.35 | CW42: ecash | CX42: 2.35 | CY42: ecash | CZ42: 2.35 | DA42: ecash | DB42: 2.35 | DC42: ecash | DD42: 2.35 | DE42: ecash | DF42: 2.35 | DG42: ecash | DH42: 2.35 | DI42: ecash | DJ42: 2.35 | DK42: ecash | DL42: 2.35 | DM42: ecash | DN42: 2.35 | DO42: ecash | DP42: 2.35 | DQ42: ecash | DR42: 2.35 | DS42: ecash | DT42: 2.35 | DU42: ecash | DV42: 2.35 | DW42: ecash | DX42: 2.35 | DY42: ecash | DZ42: 2.35 | EA42: ecash | EB42: 2.35 | EC42: ecash | ED42: 2.35 | EE42: ecash | EF42: 2.35 | EG42: ecash | EH42: 2.35 | EI42: ecash | EJ42: 2.35 | EK42: ecash | EL42: 2.35 | EM42: ecash | EN42: 2.35 | EO42: ecash | EP42: 2.35 | EQ42: ecash | ER42: 2.35 | ES42: ecash | ET42: 2.35 | EU42: ecash | EV42: 2.35 | EW42: ecash | EX42: 2.35 | EY42: ecash | EZ42: 2.35 | FA42: ecash | FB42: 2.35 | FC42: ecash | FD42: 2.35 | FE42: ecash | FF42: 2.35 | FG42: ecash | FH42: 2.35 | FI42: ecash | FJ42: 2.35 | FK42: ecash | FL42: 2.35 | FM42: ecash | FN42: 2.35 | FO42: ecash | FP42: 2.35 | FQ42: ecash | FR42: 2.35 | FS42: ecash | FT42: 2.35 | FU42: ecash | FV42: 2.35 | FW42: ecash | FX42: 2.35 | FY42: ecash | FZ42: 2.35 | GA42: ecash | GB42: 2.35 | GC42: ecash | GD42: 2.35 | GE42: ecash | GF42: 2.35 | GG42: ecash | GH42: 2.35 | GI42: ecash | GJ42: 2.35 | GK42: ecash | GL42: 2.35 | GM42: ecash | GN42: 2.35 | GO42: ecash | GP42: 2.35 | GQ42: ecash | GR42: 2.35 | GS42: ecash | GT42: 2.35 | GU42: ecash | GV42: 2.35 | GW42: ecash | GX42: 2.35 | GY42: ecash | GZ42: 2.35 | HA42: ecash | HB42: 2.35 | HC42: ecash | HD42: 2.35 | HE42: ecash | HF42: 2.35 | HG42: ecash | HH42: 2.35 | HI42: ecash | HJ42: 2.35 | HK42: ecash | HL42: 2.35 | HM42: ecash | HN42: 2.35 | HO42: ecash | HP42: 2.35 | HQ42: ecash | HR42: 2.35 | HS42: ecash | HT42: 2.35 | HU42: ecash | HV42: 2.35 | HW42: ecash | HX42: 2.35 | HY42: ecash | HZ42: 2.35 | IA42: ecash | IB42: 2.35 | IC42: ecash | ID42: 2.35 | IE42: ecash | IF42: 2.35 | IG42: ecash | IH42: 2.35 | II42: ecash | IJ42: 2.35 | IK42: ecash | IL42: 2.35 | IM42: ecash | IN42: 2.35 | IO42: ecash | IP42: 2.35 | IQ42: ecash | IR42: 2.35 | IS42: ecash | IT42: 2.35 | IU42: ecash | IV42: 2.35 | IW42: ecash | IX42: 2.35 | IY42: ecash | IZ42: 2.35 | JA42: ecash | JB42: 2.35 | JC42: ecash | JD42: 2.35 | JE42: ecash | JF42: 2.35 | JG42: ecash | JH42: 2.35 | JI42: ecash | JJ42: 2.35 | JK42: ecash | JL42: 2.35 | JM42: ecash | JN42: 2.35 | JO42: ecash | JP42: 2.35 | JQ42: ecash | JR42: 2.35 | JS42: ecash | JT42: 2.35 | JU42: ecash | JV42: 2.35 | JW42: ecash | JX42: 2.35 | JY42: ecash | JZ42: 2.35 | KA42: ecash | KB42: 2.35 | KC42: ecash | KD42: 2.35 | KE42: ecash | KF42: 2.35 | KG42: ecash | KH42: 2.35 | KI42: ecash | KJ42: 2.35 | KK42: ecash | KL42: 2.35 | KM42: ecash | KN42: 2.35 | KO42: ecash | KP42: 2.35 | KQ42: ecash | KR42: 2.35 | KS42: ecash | KT42: 2.35 | KU42: ecash | KV42: 2.35 | KW42: ecash | KX42: 2.35 | KY42: ecash | KZ42: 2.35 | LA42: ecash | LB42: 2.35 | LC42: ecash | LD42: 2.35 | LE42: ecash | LF42: 2.35 | LG42: ecash | LH42: 2.35 | LI42: ecash | LJ42: 2.35 | LK42: ecash | LL42: 2.35 | LM42: ecash | LN42: 2.35 | LO42: ecash | LP42: 2.35 | LQ42: ecash | LR42: 2.35 | LS42: ecash | LT42: 2.35 | LU42: ecash | LV42: 2.35 | LW42: ecash | LX42: 2.35 | LY42: ecash | LZ42: 2.35 | MA42: ecash | MB42: 2.35 | MC42: ecash | MD42: 2.35 | ME42: ecash | MF42: 2.35 | MG42: ecash | MH42: 2.35 | MI42: ecash | MJ42: 2.35 | MK42: ecash | ML42: 2.35 | MM42: ecash | MN42: 2.35 | MO42: ecash | MP42: 2.35 | MQ42: ecash | MR42: 2.35 | MS42: ecash | MT42: 2.35 | MU42: ecash | MV42: 2.35 | MW42: ecash | MX42: 2.35 | MY42: ecash | MZ42: 2.35 | NA42: ecash | NB42: 2.35 | NC42: ecash | ND42: 2.35 | NE42: ecash | NF42: 2.35 | NG42: ecash | NH42: 2.35 | NI42: ecash | NJ42: 2.35 | NK42: ecash | NL42: 2.35 | NM42: ecash | NN42: 2.35 | NO42: ecash | NP42: 2.35 | NQ42: ecash | NR42: 2.35 | NS42: ecash | NT42: 2.35 | NU42: ecash | NV42: 2.35 | NW42: ecash | NX42: 2.35 | NY42: ecash | NZ42: 2.35 | OA42: ecash | OB42: 2.35 | OC42: ecash | OD42: 2.35 | OE42: ecash | OF42: 2.35 | OG42: ecash | OH42: 2.35 | OI42: ecash | OJ42: 2.35 | OK42: ecash | OL42: 2.35 | OM42: ecash | ON42: 2.35 | OO42: ecash | OP42: 2.35 | OQ42: ecash | OR42: 2.35 | OS42: ecash | OT42: 2.35 | OU42: ecash | OV42: 2.35 | OW42: ecash | OX42: 2.35 | OY42: ecash | OZ42: 2.35 | PA42: ecash | PB42: 2.35 | PC42: ecash | PD42: 2.35 | PE42: ecash | PF42: 2.35 | PG42: ecash | PH42: 2.35 | PI42: ecash | PJ42: 2.35 | PK42: ecash
A43: 2017-11-09 | B43: Thursday | D43: 2 | CD43: 4.7 | CE43: ecash | CF43: 4.7 | CG43: ecash | CH43: 4.7 | CI43: ecash | CJ43: 4.7 | CK43: ecash | CL43: 4.7 | CM43: ecash | CN43: 4.7 | CO43: ecash | CP43: 4.7 | CQ43: ecash | CR43: 4.7 | CS43: ecash | CT43: 4.7 | CU43: ecash | CV43: 4.7 | CW43: ecash | CX43: 4.7 | CY43: ecash | CZ43: 4.7 | DA43: ecash | DB43: 4.7 | DC43: ecash | DD43: 4.7 | DE43: ecash | DF43: 4.7 | DG43: ecash | DH43: 4.7 | DI43: ecash | DJ43: 4.7 | DK43: ecash | DL43: 4.7 | DM43: ecash | DN43: 4.7 | DO43: ecash | DP43: 4.7 | DQ43: ecash | DR43: 4.7 | DS43: ecash | DT43: 4.7 | DU43: ecash | DV43: 4.7 | DW43: ecash | DX43: 4.7 | DY43: ecash | DZ43: 4.7 | EA43: ecash | EB43: 4.7 | EC43: ecash | ED43: 4.7 | EE43: ecash | EF43: 4.7 | EG43: ecash | EH43: 4.7 | EI43: ecash | EJ43: 4.7 | EK43: ecash | EL43: 4.7 | EM43: ecash | EN43: 4.7 | EO43: ecash | EP43: 4.7 | EQ43: ecash | ER43: 4.7 | ES43: ecash | ET43: 4.7 | EU43: ecash | EV43: 4.7 | EW43: ecash | EX43: 4.7 | EY43: ecash | EZ43: 4.7 | FA43: ecash | FB43: 4.7 | FC43: ecash | FD43: 4.7 | FE43: ecash | FF43: 4.7 | FG43: ecash | FH43: 4.7 | FI43: ecash | FJ43: 4.7 | FK43: ecash | FL43: 4.7 | FM43: ecash | FN43: 4.7 | FO43: ecash | FP43: 4.7 | FQ43: ecash | FR43: 4.7 | FS43: ecash | FT43: 4.7 | FU43: ecash | FV43: 4.7 | FW43: ecash | FX43: 4.7 | FY43: ecash | FZ43: 4.7 | GA43: ecash | GB43: 4.7 | GC43: ecash | GD43: 4.7 | GE43: ecash | GF43: 4.7 | GG43: ecash | GH43: 4.7 | GI43: ecash | GJ43: 4.7 | GK43: ecash | GL43: 4.7 | GM43: ecash | GN43: 4.7 | GO43: ecash | GP43: 4.7 | GQ43: ecash | GR43: 4.7 | GS43: ecash | GT43: 4.7 | GU43: ecash | GV43: 4.7 | GW43: ecash | GX43: 4.7 | GY43: ecash | GZ43: 4.7 | HA43: ecash | HB43: 4.7 | HC43: ecash | HD43: 4.7 | HE43: ecash | HF43: 4.7 | HG43: ecash | HH43: 4.7 | HI43: ecash | HJ43: 4.7 | HK43: ecash | HL43: 4.7 | HM43: ecash | HN43: 4.7 | HO43: ecash | HP43: 4.7 | HQ43: ecash | HR43: 4.7 | HS43: ecash | HT43: 4.7 | HU43: ecash | HV43: 4.7 | HW43: ecash | HX43: 4.7 | HY43: ecash | HZ43: 4.7 | IA43: ecash | IB43: 4.7 | IC43: ecash | ID43: 4.7 | IE43: ecash | IF43: 4.7 | IG43: ecash | IH43: 4.7 | II43: ecash | IJ43: 4.7 | IK43: ecash | IL43: 4.7 | IM43: ecash | IN43: 4.7 | IO43: ecash | IP43: 4.7 | IQ43: ecash | IR43: 4.7 | IS43: ecash | IT43: 4.7 | IU43: ecash | IV43: 4.7 | IW43: ecash | IX43: 4.7 | IY43: ecash | IZ43: 4.7 | JA43: ecash | JB43: 4.7 | JC43: ecash | JD43: 4.7 | JE43: ecash | JF43: 4.7 | JG43: ecash | JH43: 4.7 | JI43: ecash | JJ43: 4.7 | JK43: ecash | JL43: 4.7 | JM43: ecash | JN43: 4.7 | JO43: ecash | JP43: 4.7 | JQ43: ecash | JR43: 4.7 | JS43: ecash | JT43: 4.7 | JU43: ecash | JV43: 4.7 | JW43: ecash | JX43: 4.7 | JY43: ecash | JZ43: 4.7 | KA43: ecash | KB43: 4.7 | KC43: ecash | KD43: 4.7 | KE43: ecash | KF43: 4.7 | KG43: ecash | KH43: 4.7 | KI43: ecash | KJ43: 4.7 | KK43: ecash | KL43: 4.7 | KM43: ecash | KN43: 4.7 | KO43: ecash | KP43: 4.7 | KQ43: ecash | KR43: 4.7 | KS43: ecash | KT43: 4.7 | KU43: ecash | KV43: 4.7 | KW43: ecash | KX43: 4.7 | KY43: ecash | KZ43: 4.7 | LA43: ecash | LB43: 4.7 | LC43: ecash | LD43: 4.7 | LE43: ecash | LF43: 4.7 | LG43: ecash | LH43: 4.7 | LI43: ecash | LJ43: 4.7 | LK43: ecash | LL43: 4.7 | LM43: ecash | LN43: 4.7 | LO43: ecash | LP43: 4.7 | LQ43: ecash | LR43: 4.7 | LS43: ecash | LT43: 4.7 | LU43: ecash | LV43: 4.7 | LW43: ecash | LX43: 4.7 | LY43: ecash | LZ43: 4.7 | MA43: ecash | MB43: 4.7 | MC43: ecash | MD43: 4.7 | ME43: ecash | MF43: 4.7 | MG43: ecash | MH43: 4.7 | MI43: ecash | MJ43: 4.7 | MK43: ecash | ML43: 4.7 | MM43: ecash | MN43: 4.7 | MO43: ecash | MP43: 4.7 | MQ43: ecash | MR43: 4.7 | MS43: ecash | MT43: 4.7 | MU43: ecash | MV43: 4.7 | MW43: ecash | MX43: 4.7 | MY43: ecash | MZ43: 4.7 | NA43: ecash | NB43: 4.7 | NC43: ecash | ND43: 4.7 | NE43: ecash | NF43: 4.7 | NG43: ecash | NH43: 4.7 | NI43: ecash | NJ43: 4.7 | NK43: ecash | NL43: 4.7 | NM43: ecash | NN43: 4.7 | NO43: ecash | NP43: 4.7 | NQ43: ecash | NR43: 4.7 | NS43: ecash | NT43: 4.7 | NU43: ecash | NV43: 4.7 | NW43: ecash | NX43: 4.7 | NY43: ecash | NZ43: 4.7 | OA43: ecash | OB43: 4.7 | OC43: ecash | OD43: 4.7 | OE43: ecash | OF43: 4.7 | OG43: ecash | OH43: 4.7 | OI43: ecash | OJ43: 4.7 | OK43: ecash | OL43: 4.7 | OM43: ecash | ON43: 4.7 | OO43: ecash | OP43: 4.7 | OQ43: ecash | OR43: 4.7 | OS43: ecash | OT43: 4.7 | OU43: ecash | OV43: 4.7 | OW43: ecash | OX43: 4.7 | OY43: ecash | OZ43: 4.7 | PA43: ecash | PB43: 4.7 | PC43: ecash | PD43: 4.7 | PE43: ecash | PF43: 4.7 | PG43: ecash | PH43: 4.7 | PI43: ecash | PJ43: 4.7 | PK43: ecash
A44: 2017-11-10 | B44: Friday | D44: 2 | CF44: 4.7 | CG44: ecash | CH44: 4.7 | CI44: ecash | CJ44: 4.7 | CK44: ecash | CL44: 4.7 | CM44: ecash | CN44: 4.7 | CO44: ecash | CP44: 4.7 | CQ44: ecash | CR44: 4.7 | CS44: ecash | CT44: 4.7 | CU44: ecash | CV44: 4.7 | CW44: ecash | CX44: 4.7 | CY44: ecash | CZ44: 4.7 | DA44: ecash | DB44: 4.7 | DC44: ecash | DD44: 4.7 | DE44: ecash | DF44: 4.7 | DG44: ecash | DH44: 4.7 | DI44: ecash | DJ44: 4.7 | DK44: ecash | DL44: 4.7 | DM44: ecash | DN44: 4.7 | DO44: ecash | DP44: 4.7 | DQ44: ecash | DR44: 4.7 | DS44: ecash | DT44: 4.7 | DU44: ecash | DV44: 4.7 | DW44: ecash | DX44: 4.7 | DY44: ecash | DZ44: 4.7 | EA44: ecash | EB44: 4.7 | EC44: ecash | ED44: 4.7 | EE44: ecash | EF44: 4.7 | EG44: ecash | EH44: 4.7 | EI44: ecash | EJ44: 4.7 | EK44: ecash | EL44: 4.7 | EM44: ecash | EN44: 4.7 | EO44: ecash | EP44: 4.7 | EQ44: ecash | ER44: 4.7 | ES44: ecash | ET44: 4.7 | EU44: ecash | EV44: 4.7 | EW44: ecash | EX44: 4.7 | EY44: ecash | EZ44: 4.7 | FA44: ecash | FB44: 4.7 | FC44: ecash | FD44: 4.7 | FE44: ecash | FF44: 4.7 | FG44: ecash | FH44: 4.7 | FI44: ecash | FJ44: 4.7 | FK44: ecash | FL44: 4.7 | FM44: ecash | FN44: 4.7 | FO44: ecash | FP44: 4.7 | FQ44: ecash | FR44: 4.7 | FS44: ecash | FT44: 4.7 | FU44: ecash | FV44: 4.7 | FW44: ecash | FX44: 4.7 | FY44: ecash | FZ44: 4.7 | GA44: ecash | GB44: 4.7 | GC44: ecash | GD44: 4.7 | GE44: ecash | GF44: 4.7 | GG44: ecash | GH44: 4.7 | GI44: ecash | GJ44: 4.7 | GK44: ecash | GL44: 4.7 | GM44: ecash | GN44: 4.7 | GO44: ecash | GP44: 4.7 | GQ44: ecash | GR44: 4.7 | GS44: ecash | GT44: 4.7 | GU44: ecash | GV44: 4.7 | GW44: ecash | GX44: 4.7 | GY44: ecash | GZ44: 4.7 | HA44: ecash | HB44: 4.7 | HC44: ecash | HD44: 4.7 | HE44: ecash | HF44: 4.7 | HG44: ecash | HH44: 4.7 | HI44: ecash | HJ44: 4.7 | HK44: ecash | HL44: 4.7 | HM44: ecash | HN44: 4.7 | HO44: ecash | HP44: 4.7 | HQ44: ecash | HR44: 4.7 | HS44: ecash | HT44: 4.7 | HU44: ecash | HV44: 4.7 | HW44: ecash | HX44: 4.7 | HY44: ecash | HZ44: 4.7 | IA44: ecash | IB44: 4.7 | IC44: ecash | ID44: 4.7 | IE44: ecash | IF44: 4.7 | IG44: ecash | IH44: 4.7 | II44: ecash | IJ44: 4.7 | IK44: ecash | IL44: 4.7 | IM44: ecash | IN44: 4.7 | IO44: ecash | IP44: 4.7 | IQ44: ecash | IR44: 4.7 | IS44: ecash | IT44: 4.7 | IU44: ecash | IV44: 4.7 | IW44: ecash | IX44: 4.7 | IY44: ecash | IZ44: 4.7 | JA44: ecash | JB44: 4.7 | JC44: ecash | JD44: 4.7 | JE44: ecash | JF44: 4.7 | JG44: ecash | JH44: 4.7 | JI44: ecash | JJ44: 4.7 | JK44: ecash | JL44: 4.7 | JM44: ecash | JN44: 4.7 | JO44: ecash | JP44: 4.7 | JQ44: ecash | JR44: 4.7 | JS44: ecash | JT44: 4.7 | JU44: ecash | JV44: 4.7 | JW44: ecash | JX44: 4.7 | JY44: ecash | JZ44: 4.7 | KA44: ecash | KB44: 4.7 | KC44: ecash | KD44: 4.7 | KE44: ecash | KF44: 4.7 | KG44: ecash | KH44: 4.7 | KI44: ecash | KJ44: 4.7 | KK44: ecash | KL44: 4.7 | KM44: ecash | KN44: 4.7 | KO44: ecash | KP44: 4.7 | KQ44: ecash | KR44: 4.7 | KS44: ecash | KT44: 4.7 | KU44: ecash | KV44: 4.7 | KW44: ecash | KX44: 4.7 | KY44: ecash | KZ44: 4.7 | LA44: ecash | LB44: 4.7 | LC44: ecash | LD44: 4.7 | LE44: ecash | LF44: 4.7 | LG44: ecash | LH44: 4.7 | LI44: ecash | LJ44: 4.7 | LK44: ecash | LL44: 4.7 | LM44: ecash | LN44: 4.7 | LO44: ecash | LP44: 4.7 | LQ44: ecash | LR44: 4.7 | LS44: ecash | LT44: 4.7 | LU44: ecash | LV44: 4.7 | LW44: ecash | LX44: 4.7 | LY44: ecash | LZ44: 4.7 | MA44: ecash | MB44: 4.7 | MC44: ecash | MD44: 4.7 | ME44: ecash | MF44: 4.7 | MG44: ecash | MH44: 4.7 | MI44: ecash | MJ44: 4.7 | MK44: ecash | ML44: 4.7 | MM44: ecash | MN44: 4.7 | MO44: ecash | MP44: 4.7 | MQ44: ecash | MR44: 4.7 | MS44: ecash | MT44: 4.7 | MU44: ecash | MV44: 4.7 | MW44: ecash | MX44: 4.7 | MY44: ecash | MZ44: 4.7 | NA44: ecash | NB44: 4.7 | NC44: ecash | ND44: 4.7 | NE44: ecash | NF44: 4.7 | NG44: ecash | NH44: 4.7 | NI44: ecash | NJ44: 4.7 | NK44: ecash | NL44: 4.7 | NM44: ecash | NN44: 4.7 | NO44: ecash | NP44: 4.7 | NQ44: ecash | NR44: 4.7 | NS44: ecash | NT44: 4.7 | NU44: ecash | NV44: 4.7 | NW44: ecash | NX44: 4.7 | NY44: ecash | NZ44: 4.7 | OA44: ecash | OB44: 4.7 | OC44: ecash | OD44: 4.7 | OE44: ecash | OF44: 4.7 | OG44: ecash | OH44: 4.7 | OI44: ecash | OJ44: 4.7 | OK44: ecash | OL44: 4.7 | OM44: ecash | ON44: 4.7 | OO44: ecash | OP44: 4.7 | OQ44: ecash | OR44: 4.7 | OS44: ecash | OT44: 4.7 | OU44: ecash | OV44: 4.7 | OW44: ecash | OX44: 4.7 | OY44: ecash | OZ44: 4.7 | PA44: ecash | PB44: 4.7 | PC44: ecash | PD44: 4.7 | PE44: ecash | PF44: 4.7 | PG44: ecash | PH44: 4.7 | PI44: ecash | PJ44: 4.7 | PK44: ecash
A45: 2017-11-11 | B45: Saturday | D45: 0 | CH45: 0 | CI45: ecash | CJ45: 0 | CK45: ecash | CL45: 0 | CM45: ecash | CN45: 0 | CO45: ecash | CP45: 0 | CQ45: ecash | CR45: 0 | CS45: ecash | CT45: 0 | CU45: ecash | CV45: 0 | CW45: ecash | CX45: 0 | CY45: ecash | CZ45: 0 | DA45: ecash | DB45: 0 | DC45: ecash | DD45: 0 | DE45: ecash | DF45: 0 | DG45: ecash | DH45: 0 | DI45: ecash | DJ45: 0 | DK45: ecash | DL45: 0 | DM45: ecash | DN45: 0 | DO45: ecash | DP45: 0 | DQ45: ecash | DR45: 0 | DS45: ecash | DT45: 0 | DU45: ecash | DV45: 0 | DW45: ecash | DX45: 0 | DY45: ecash | DZ45: 0 | EA45: ecash | EB45: 0 | EC45: ecash | ED45: 0 | EE45: ecash | EF45: 0 | EG45: ecash | EH45: 0 | EI45: ecash | EJ45: 0 | EK45: ecash | EL45: 0 | EM45: ecash | EN45: 0 | EO45: ecash | EP45: 0 | EQ45: ecash | ER45: 0 | ES45: ecash | ET45: 0 | EU45: ecash | EV45: 0 | EW45: ecash | EX45: 0 | EY45: ecash | EZ45: 0 | FA45: ecash | FB45: 0 | FC45: ecash | FD45: 0 | FE45: ecash | FF45: 0 | FG45: ecash | FH45: 0 | FI45: ecash | FJ45: 0 | FK45: ecash | FL45: 0 | FM45: ecash | FN45: 0 | FO45: ecash | FP45: 0 | FQ45: ecash | FR45: 0 | FS45: ecash | FT45: 0 | FU45: ecash | FV45: 0 | FW45: ecash | FX45: 0 | FY45: ecash | FZ45: 0 | GA45: ecash | GB45: 0 | GC45: ecash | GD45: 0 | GE45: ecash | GF45: 0 | GG45: ecash | GH45: 0 | GI45: ecash | GJ45: 0 | GK45: ecash | GL45: 0 | GM45: ecash | GN45: 0 | GO45: ecash | GP45: 0 | GQ45: ecash | GR45: 0 | GS45: ecash | GT45: 0 | GU45: ecash | GV45: 0 | GW45: ecash | GX45: 0 | GY45: ecash | GZ45: 0 | HA45: ecash | HB45: 0 | HC45: ecash | HD45: 0 | HE45: ecash | HF45: 0 | HG45: ecash | HH45: 0 | HI45: ecash | HJ45: 0 | HK45: ecash | HL45: 0 | HM45: ecash | HN45: 0 | HO45: ecash | HP45: 0 | HQ45: ecash | HR45: 0 | HS45: ecash | HT45: 0 | HU45: ecash | HV45: 0 | HW45: ecash | HX45: 0 | HY45: ecash | HZ45: 0 | IA45: ecash | IB45: 0 | IC45: ecash | ID45: 0 | IE45: ecash | IF45: 0 | IG45: ecash | IH45: 0 | II45: ecash | IJ45: 0 | IK45: ecash | IL45: 0 | IM45: ecash | IN45: 0 | IO45: ecash | IP45: 0 | IQ45: ecash | IR45: 0 | IS45: ecash | IT45: 0 | IU45: ecash | IV45: 0 | IW45: ecash | IX45: 0 | IY45: ecash | IZ45: 0 | JA45: ecash | JB45: 0 | JC45: ecash | JD45: 0 | JE45: ecash | JF45: 0 | JG45: ecash | JH45: 0 | JI45: ecash | JJ45: 0 | JK45: ecash | JL45: 0 | JM45: ecash | JN45: 0 | JO45: ecash | JP45: 0 | JQ45: ecash | JR45: 0 | JS45: ecash | JT45: 0 | JU45: ecash | JV45: 0 | JW45: ecash | JX45: 0 | JY45: ecash | JZ45: 0 | KA45: ecash | KB45: 0 | KC45: ecash | KD45: 0 | KE45: ecash | KF45: 0 | KG45: ecash | KH45: 0 | KI45: ecash | KJ45: 0 | KK45: ecash | KL45: 0 | KM45: ecash | KN45: 0 | KO45: ecash | KP45: 0 | KQ45: ecash | KR45: 0 | KS45: ecash | KT45: 0 | KU45: ecash | KV45: 0 | KW45: ecash | KX45: 0 | KY45: ecash | KZ45: 0 | LA45: ecash | LB45: 0 | LC45: ecash | LD45: 0 | LE45: ecash | LF45: 0 | LG45: ecash | LH45: 0 | LI45: ecash | LJ45: 0 | LK45: ecash | LL45: 0 | LM45: ecash | LN45: 0 | LO45: ecash | LP45: 0 | LQ45: ecash | LR45: 0 | LS45: ecash | LT45: 0 | LU45: ecash | LV45: 0 | LW45: ecash | LX45: 0 | LY45: ecash | LZ45: 0 | MA45: ecash | MB45: 0 | MC45: ecash | MD45: 0 | ME45: ecash | MF45: 0 | MG45: ecash | MH45: 0 | MI45: ecash | MJ45: 0 | MK45: ecash | ML45: 0 | MM45: ecash | MN45: 0 | MO45: ecash | MP45: 0 | MQ45: ecash | MR45: 0 | MS45: ecash | MT45: 0 | MU45: ecash | MV45: 0 | MW45: ecash | MX45: 0 | MY45: ecash | MZ45: 0 | NA45: ecash | NB45: 0 | NC45: ecash | ND45: 0 | NE45: ecash | NF45: 0 | NG45: ecash | NH45: 0 | NI45: ecash | NJ45: 0 | NK45: ecash | NL45: 0 | NM45: ecash | NN45: 0 | NO45: ecash | NP45: 0 | NQ45: ecash | NR45: 0 | NS45: ecash | NT45: 0 | NU45: ecash | NV45: 0 | NW45: ecash | NX45: 0 | NY45: ecash | NZ45: 0 | OA45: ecash | OB45: 0 | OC45: ecash | OD45: 0 | OE45: ecash | OF45: 0 | OG45: ecash | OH45: 0 | OI45: ecash | OJ45: 0 | OK45: ecash | OL45: 0 | OM45: ecash | ON45: 0 | OO45: ecash | OP45: 0 | OQ45: ecash | OR45: 0 | OS45: ecash | OT45: 0 | OU45: ecash | OV45: 0 | OW45: ecash | OX45: 0 | OY45: ecash | OZ45: 0 | PA45: ecash | PB45: 0 | PC45: ecash | PD45: 0 | PE45: ecash | PF45: 0 | PG45: ecash | PH45: 0 | PI45: ecash | PJ45: 0 | PK45: ecash
A46: 2017-11-12 | B46: Sunday | D46: 0 | CJ46: 0 | CK46: ecash | CL46: 0 | CM46: ecash | CN46: 0 | CO46: ecash | CP46: 0 | CQ46: ecash | CR46: 0 | CS46: ecash | CT46: 0 | CU46: ecash | CV46: 0 | CW46: ecash | CX46: 0 | CY46: ecash | CZ46: 0 | DA46: ecash | DB46: 0 | DC46: ecash | DD46: 0 | DE46: ecash | DF46: 0 | DG46: ecash | DH46: 0 | DI46: ecash | DJ46: 0 | DK46: ecash | DL46: 0 | DM46: ecash | DN46: 0 | DO46: ecash | DP46: 0 | DQ46: ecash | DR46: 0 | DS46: ecash | DT46: 0 | DU46: ecash | DV46: 0 | DW46: ecash | DX46: 0 | DY46: ecash | DZ46: 0 | EA46: ecash | EB46: 0 | EC46: ecash | ED46: 0 | EE46: ecash | EF46: 0 | EG46: ecash | EH46: 0 | EI46: ecash | EJ46: 0 | EK46: ecash | EL46: 0 | EM46: ecash | EN46: 0 | EO46: ecash | EP46: 0 | EQ46: ecash | ER46: 0 | ES46: ecash | ET46: 0 | EU46: ecash | EV46: 0 | EW46: ecash | EX46: 0 | EY46: ecash | EZ46: 0 | FA46: ecash | FB46: 0 | FC46: ecash | FD46: 0 | FE46: ecash | FF46: 0 | FG46: ecash | FH46: 0 | FI46: ecash | FJ46: 0 | FK46: ecash | FL46: 0 | FM46: ecash | FN46: 0 | FO46: ecash | FP46: 0 | FQ46: ecash | FR46: 0 | FS46: ecash | FT46: 0 | FU46: ecash | FV46: 0 | FW46: ecash | FX46: 0 | FY46: ecash | FZ46: 0 | GA46: ecash | GB46: 0 | GC46: ecash | GD46: 0 | GE46: ecash | GF46: 0 | GG46: ecash | GH46: 0 | GI46: ecash | GJ46: 0 | GK46: ecash | GL46: 0 | GM46: ecash | GN46: 0 | GO46: ecash | GP46: 0 | GQ46: ecash | GR46: 0 | GS46: ecash | GT46: 0 | GU46: ecash | GV46: 0 | GW46: ecash | GX46: 0 | GY46: ecash | GZ46: 0 | HA46: ecash | HB46: 0 | HC46: ecash | HD46: 0 | HE46: ecash | HF46: 0 | HG46: ecash | HH46: 0 | HI46: ecash | HJ46: 0 | HK46: ecash | HL46: 0 | HM46: ecash | HN46: 0 | HO46: ecash | HP46: 0 | HQ46: ecash | HR46: 0 | HS46: ecash | HT46: 0 | HU46: ecash | HV46: 0 | HW46: ecash | HX46: 0 | HY46: ecash | HZ46: 0 | IA46: ecash | IB46: 0 | IC46: ecash | ID46: 0 | IE46: ecash | IF46: 0 | IG46: ecash | IH46: 0 | II46: ecash | IJ46: 0 | IK46: ecash | IL46: 0 | IM46: ecash | IN46: 0 | IO46: ecash | IP46: 0 | IQ46: ecash | IR46: 0 | IS46: ecash | IT46: 0 | IU46: ecash | IV46: 0 | IW46: ecash | IX46: 0 | IY46: ecash | IZ46: 0 | JA46: ecash | JB46: 0 | JC46: ecash | JD46: 0 | JE46: ecash | JF46: 0 | JG46: ecash | JH46: 0 | JI46: ecash | JJ46: 0 | JK46: ecash | JL46: 0 | JM46: ecash | JN46: 0 | JO46: ecash | JP46: 0 | JQ46: ecash | JR46: 0 | JS46: ecash | JT46: 0 | JU46: ecash | JV46: 0 | JW46: ecash | JX46: 0 | JY46: ecash | JZ46: 0 | KA46: ecash | KB46: 0 | KC46: ecash | KD46: 0 | KE46: ecash | KF46: 0 | KG46: ecash | KH46: 0 | KI46: ecash | KJ46: 0 | KK46: ecash | KL46: 0 | KM46: ecash | KN46: 0 | KO46: ecash | KP46: 0 | KQ46: ecash | KR46: 0 | KS46: ecash | KT46: 0 | KU46: ecash | KV46: 0 | KW46: ecash | KX46: 0 | KY46: ecash | KZ46: 0 | LA46: ecash | LB46: 0 | LC46: ecash | LD46: 0 | LE46: ecash | LF46: 0 | LG46: ecash | LH46: 0 | LI46: ecash | LJ46: 0 | LK46: ecash | LL46: 0 | LM46: ecash | LN46: 0 | LO46: ecash | LP46: 0 | LQ46: ecash | LR46: 0 | LS46: ecash | LT46: 0 | LU46: ecash | LV46: 0 | LW46: ecash | LX46: 0 | LY46: ecash | LZ46: 0 | MA46: ecash | MB46: 0 | MC46: ecash | MD46: 0 | ME46: ecash | MF46: 0 | MG46: ecash | MH46: 0 | MI46: ecash | MJ46: 0 | MK46: ecash | ML46: 0 | MM46: ecash | MN46: 0 | MO46: ecash | MP46: 0 | MQ46: ecash | MR46: 0 | MS46: ecash | MT46: 0 | MU46: ecash | MV46: 0 | MW46: ecash | MX46: 0 | MY46: ecash | MZ46: 0 | NA46: ecash | NB46: 0 | NC46: ecash | ND46: 0 | NE46: ecash | NF46: 0 | NG46: ecash | NH46: 0 | NI46: ecash | NJ46: 0 | NK46: ecash | NL46: 0 | NM46: ecash | NN46: 0 | NO46: ecash | NP46: 0 | NQ46: ecash | NR46: 0 | NS46: ecash | NT46: 0 | NU46: ecash | NV46: 0 | NW46: ecash | NX46: 0 | NY46: ecash | NZ46: 0 | OA46: ecash | OB46: 0 | OC46: ecash | OD46: 0 | OE46: ecash | OF46: 0 | OG46: ecash | OH46: 0 | OI46: ecash | OJ46: 0 | OK46: ecash | OL46: 0 | OM46: ecash | ON46: 0 | OO46: ecash | OP46: 0 | OQ46: ecash | OR46: 0 | OS46: ecash | OT46: 0 | OU46: ecash | OV46: 0 | OW46: ecash | OX46: 0 | OY46: ecash | OZ46: 0 | PA46: ecash | PB46: 0 | PC46: ecash | PD46: 0 | PE46: ecash | PF46: 0 | PG46: ecash | PH46: 0 | PI46: ecash | PJ46: 0 | PK46: ecash
A47: 2017-11-13 | B47: Monday | C47: Remembrance Day | D47: 0 | CL47: 0 | CM47: ecash | CN47: 0 | CO47: ecash | CP47: 0 | CQ47: ecash | CR47: 0 | CS47: ecash | CT47: 0 | CU47: ecash | CV47: 0 | CW47: ecash | CX47: 0 | CY47: ecash | CZ47: 0 | DA47: ecash | DB47: 0 | DC47: ecash | DD47: 0 | DE47: ecash | DF47: 0 | DG47: ecash | DH47: 0 | DI47: ecash | DJ47: 0 | DK47: ecash | DL47: 0 | DM47: ecash | DN47: 0 | DO47: ecash | DP47: 0 | DQ47: ecash | DR47: 0 | DS47: ecash | DT47: 0 | DU47: ecash | DV47: 0 | DW47: ecash | DX47: 0 | DY47: ecash | DZ47: 0 | EA47: ecash | EB47: 0 | EC47: ecash | ED47: 0 | EE47: ecash | EF47: 0 | EG47: ecash | EH47: 0 | EI47: ecash | EJ47: 0 | EK47: ecash | EL47: 0 | EM47: ecash | EN47: 0 | EO47: ecash | EP47: 0 | EQ47: ecash | ER47: 0 | ES47: ecash | ET47: 0 | EU47: ecash | EV47: 0 | EW47: ecash | EX47: 0 | EY47: ecash | EZ47: 0 | FA47: ecash | FB47: 0 | FC47: ecash | FD47: 0 | FE47: ecash | FF47: 0 | FG47: ecash | FH47: 0 | FI47: ecash | FJ47: 0 | FK47: ecash | FL47: 0 | FM47: ecash | FN47: 0 | FO47: ecash | FP47: 0 | FQ47: ecash | FR47: 0 | FS47: ecash | FT47: 0 | FU47: ecash | FV47: 0 | FW47: ecash | FX47: 0 | FY47: ecash | FZ47: 0 | GA47: ecash | GB47: 0 | GC47: ecash | GD47: 0 | GE47: ecash | GF47: 0 | GG47: ecash | GH47: 0 | GI47: ecash | GJ47: 0 | GK47: ecash | GL47: 0 | GM47: ecash | GN47: 0 | GO47: ecash | GP47: 0 | GQ47: ecash | GR47: 0 | GS47: ecash | GT47: 0 | GU47: ecash | GV47: 0 | GW47: ecash | GX47: 0 | GY47: ecash | GZ47: 0 | HA47: ecash | HB47: 0 | HC47: ecash | HD47: 0 | HE47: ecash | HF47: 0 | HG47: ecash | HH47: 0 | HI47: ecash | HJ47: 0 | HK47: ecash | HL47: 0 | HM47: ecash | HN47: 0 | HO47: ecash | HP47: 0 | HQ47: ecash | HR47: 0 | HS47: ecash | HT47: 0 | HU47: ecash | HV47: 0 | HW47: ecash | HX47: 0 | HY47: ecash | HZ47: 0 | IA47: ecash | IB47: 0 | IC47: ecash | ID47: 0 | IE47: ecash | IF47: 0 | IG47: ecash | IH47: 0 | II47: ecash | IJ47: 0 | IK47: ecash | IL47: 0 | IM47: ecash | IN47: 0 | IO47: ecash | IP47: 0 | IQ47: ecash | IR47: 0 | IS47: ecash | IT47: 0 | IU47: ecash | IV47: 0 | IW47: ecash | IX47: 0 | IY47: ecash | IZ47: 0 | JA47: ecash | JB47: 0 | JC47: ecash | JD47: 0 | JE47: ecash | JF47: 0 | JG47: ecash | JH47: 0 | JI47: ecash | JJ47: 0 | JK47: ecash | JL47: 0 | JM47: ecash | JN47: 0 | JO47: ecash | JP47: 0 | JQ47: ecash | JR47: 0 | JS47: ecash | JT47: 0 | JU47: ecash | JV47: 0 | JW47: ecash | JX47: 0 | JY47: ecash | JZ47: 0 | KA47: ecash | KB47: 0 | KC47: ecash | KD47: 0 | KE47: ecash | KF47: 0 | KG47: ecash | KH47: 0 | KI47: ecash | KJ47: 0 | KK47: ecash | KL47: 0 | KM47: ecash | KN47: 0 | KO47: ecash | KP47: 0 | KQ47: ecash | KR47: 0 | KS47: ecash | KT47: 0 | KU47: ecash | KV47: 0 | KW47: ecash | KX47: 0 | KY47: ecash | KZ47: 0 | LA47: ecash | LB47: 0 | LC47: ecash | LD47: 0 | LE47: ecash | LF47: 0 | LG47: ecash | LH47: 0 | LI47: ecash | LJ47: 0 | LK47: ecash | LL47: 0 | LM47: ecash | LN47: 0 | LO47: ecash | LP47: 0 | LQ47: ecash | LR47: 0 | LS47: ecash | LT47: 0 | LU47: ecash | LV47: 0 | LW47: ecash | LX47: 0 | LY47: ecash | LZ47: 0 | MA47: ecash | MB47: 0 | MC47: ecash | MD47: 0 | ME47: ecash | MF47: 0 | MG47: ecash | MH47: 0 | MI47: ecash | MJ47: 0 | MK47: ecash | ML47: 0 | MM47: ecash | MN47: 0 | MO47: ecash | MP47: 0 | MQ47: ecash | MR47: 0 | MS47: ecash | MT47: 0 | MU47: ecash | MV47: 0 | MW47: ecash | MX47: 0 | MY47: ecash | MZ47: 0 | NA47: ecash | NB47: 0 | NC47: ecash | ND47: 0 | NE47: ecash | NF47: 0 | NG47: ecash | NH47: 0 | NI47: ecash | NJ47: 0 | NK47: ecash | NL47: 0 | NM47: ecash | NN47: 0 | NO47: ecash | NP47: 0 | NQ47: ecash | NR47: 0 | NS47: ecash | NT47: 0 | NU47: ecash | NV47: 0 | NW47: ecash | NX47: 0 | NY47: ecash | NZ47: 0 | OA47: ecash | OB47: 0 | OC47: ecash | OD47: 0 | OE47: ecash | OF47: 0 | OG47: ecash | OH47: 0 | OI47: ecash | OJ47: 0 | OK47: ecash | OL47: 0 | OM47: ecash | ON47: 0 | OO47: ecash | OP47: 0 | OQ47: ecash | OR47: 0 | OS47: ecash | OT47: 0 | OU47: ecash | OV47: 0 | OW47: ecash | OX47: 0 | OY47: ecash | OZ47: 0 | PA47: ecash | PB47: 0 | PC47: ecash | PD47: 0 | PE47: ecash | PF47: 0 | PG47: ecash | PH47: 0 | PI47: ecash | PJ47: 0 | PK47: ecash
A48: 2017-11-14 | B48: Tuesday | D48: 2 | CN48: 4.7 | CO48: ecash | CP48: 4.7 | CQ48: ecash | CR48: 4.7 | CS48: ecash | CT48: 4.7 | CU48: ecash | CV48: 4.7 | CW48: ecash | CX48: 4.7 | CY48: ecash | CZ48: 23.5 | DA48: 7 day e-pass | DB48: 23.5 | DC48: 7 day e-pass | DD48: 23.5 | DE48: 7 day e-pass | DF48: 23.5 | DG48: 7 day e-pass | DH48: 4.7 | DI48: ecash | DJ48: 4.7 | DK48: ecash | DL48: 4.7 | DM48: ecash | DN48: 43.5 | DO48: 14 day e-pass | DP48: 43.5 | DQ48: 14 day e-pass | DR48: 43.5 | DS48: 14 day e-pass | DT48: 43.5 | DU48: 14 day e-pass | DV48: 4.7 | DW48: ecash | DX48: 4.7 | DY48: ecash | DZ48: 4.7 | EA48: ecash | EB48: 64.65 | EC48: 21 day e-pass | ED48: 64.65 | EE48: 21 day e-pass | EF48: 64.65 | EG48: 21 day e-pass | EH48: 64.65 | EI48: 21 day e-pass | EJ48: 4.7 | EK48: ecash | EL48: 4.7 | EM48: ecash | EN48: 4.7 | EO48: ecash | EP48: 83.45 | EQ48: 28 day e-pass | ER48: 83.45 | ES48: 28 day e-pass | ET48: 83.45 | EU48: 28 day e-pass | EV48: 83.45 | EW48: 28 day e-pass | EX48: 83.45 | EY48: 28 day e-pass | EZ48: 83.45 | FA48: 28 day e-pass | FB48: 83.45 | FC48: 28 day e-pass | FD48: 83.45 | FE48: 28 day e-pass | FF48: 83.45 | FG48: 28 day e-pass | FH48: 83.45 | FI48: 28 day e-pass | FJ48: 83.45 | FK48: 28 day e-pass | FL48: 83.45 | FM48: 28 day e-pass | FN48: 83.45 | FO48: 28 day e-pass | FP48: 83.45 | FQ48: 28 day e-pass | FR48: 83.45 | FS48: 28 day e-pass | FT48: 83.45 | FU48: 28 day e-pass | FV48: 83.45 | FW48: 28 day e-pass | FX48: 83.45 | FY48: 28 day e-pass | FZ48: 83.45 | GA48: 28 day e-pass | GB48: 83.45 | GC48: 28 day e-pass | GD48: 83.45 | GE48: 28 day e-pass | GF48: 83.45 | GG48: 28 day e-pass | GH48: 83.45 | GI48: 28 day e-pass | GJ48: 83.45 | GK48: 28 day e-pass | GL48: 83.45 | GM48: 28 day e-pass | GN48: 83.45 | GO48: 28 day e-pass | GP48: 83.45 | GQ48: 28 day e-pass | GR48: 83.45 | GS48: 28 day e-pass | GT48: 83.45 | GU48: 28 day e-pass | GV48: 83.45 | GW48: 28 day e-pass | GX48: 83.45 | GY48: 28 day e-pass | GZ48: 83.45 | HA48: 28 day e-pass | HB48: 83.45 | HC48: 28 day e-pass | HD48: 83.45 | HE48: 28 day e-pass | HF48: 83.45 | HG48: 28 day e-pass | HH48: 83.45 | HI48: 28 day e-pass | HJ48: 83.45 | HK48: 28 day e-pass | HL48: 83.45 | HM48: 28 day e-pass | HN48: 83.45 | HO48: 28 day e-pass | HP48: 83.45 | HQ48: 28 day e-pass | HR48: 83.45 | HS48: 28 day e-pass | HT48: 83.45 | HU48: 28 day e-pass | HV48: 83.45 | HW48: 28 day e-pass | HX48: 83.45 | HY48: 28 day e-pass | HZ48: 83.45 | IA48: 28 day e-pass | IB48: 83.45 | IC48: 28 day e-pass | ID48: 83.45 | IE48: 28 day e-pass | IF48: 83.45 | IG48: 28 day e-pass | IH48: 83.45 | II48: 28 day e-pass | IJ48: 83.45 | IK48: 28 day e-pass | IL48: 83.45 | IM48: 28 day e-pass | IN48: 83.45 | IO48: 28 day e-pass | IP48: 83.45 | IQ48: 28 day e-pass | IR48: 83.45 | IS48: 28 day e-pass | IT48: 83.45 | IU48: 28 day e-pass | IV48: 83.45 | IW48: 28 day e-pass | IX48: 83.45 | IY48: 28 day e-pass | IZ48: 83.45 | JA48: 28 day e-pass | JB48: 83.45 | JC48: 28 day e-pass | JD48: 83.45 | JE48: 28 day e-pass | JF48: 83.45 | JG48: 28 day e-pass | JH48: 83.45 | JI48: 28 day e-pass | JJ48: 83.45 | JK48: 28 day e-pass | JL48: 83.45 | JM48: 28 day e-pass | JN48: 83.45 | JO48: 28 day e-pass | JP48: 83.45 | JQ48: 28 day e-pass | JR48: 83.45 | JS48: 28 day e-pass | JT48: 83.45 | JU48: 28 day e-pass | JV48: 83.45 | JW48: 28 day e-pass | JX48: 83.45 | JY48: 28 day e-pass | JZ48: 83.45 | KA48: 28 day e-pass | KB48: 83.45 | KC48: 28 day e-pass | KD48: 83.45 | KE48: 28 day e-pass | KF48: 83.45 | KG48: 28 day e-pass | KH48: 83.45 | KI48: 28 day e-pass | KJ48: 83.45 | KK48: 28 day e-pass | KL48: 83.45 | KM48: 28 day e-pass | KN48: 83.45 | KO48: 28 day e-pass | KP48: 83.45 | KQ48: 28 day e-pass | KR48: 83.45 | KS48: 28 day e-pass | KT48: 83.45 | KU48: 28 day e-pass | KV48: 83.45 | KW48: 28 day e-pass | KX48: 83.45 | KY48: 28 day e-pass | KZ48: 83.45 | LA48: 28 day e-pass | LB48: 83.45 | LC48: 28 day e-pass | LD48: 83.45 | LE48: 28 day e-pass | LF48: 83.45 | LG48: 28 day e-pass | LH48: 83.45 | LI48: 28 day e-pass | LJ48: 83.45 | LK48: 28 day e-pass | LL48: 83.45 | LM48: 28 day e-pass | LN48: 83.45 | LO48: 28 day e-pass | LP48: 83.45 | LQ48: 28 day e-pass | LR48: 83.45 | LS48: 28 day e-pass | LT48: 83.45 | LU48: 28 day e-pass | LV48: 83.45 | LW48: 28 day e-pass | LX48: 83.45 | LY48: 28 day e-pass | LZ48: 83.45 | MA48: 28 day e-pass | MB48: 83.45 | MC48: 28 day e-pass | MD48: 83.45 | ME48: 28 day e-pass | MF48: 83.45 | MG48: 28 day e-pass | MH48: 83.45 | MI48: 28 day e-pass | MJ48: 83.45 | MK48: 28 day e-pass | ML48: 83.45 | MM48: 28 day e-pass | MN48: 83.45 | MO48: 28 day e-pass | MP48: 83.45 | MQ48: 28 day e-pass | MR48: 83.45 | MS48: 28 day e-pass | MT48: 83.45 | MU48: 28 day e-pass | MV48: 83.45 | MW48: 28 day e-pass | MX48: 83.45 | MY48: 28 day e-pass | MZ48: 83.45 | NA48: 28 day e-pass | NB48: 83.45 | NC48: 28 day e-pass | ND48: 83.45 | NE48: 28 day e-pass | NF48: 83.45 | NG48: 28 day e-pass | NH48: 83.45 | NI48: 28 day e-pass | NJ48: 83.45 | NK48: 28 day e-pass | NL48: 83.45 | NM48: 28 day e-pass | NN48: 83.45 | NO48: 28 day e-pass | NP48: 83.45 | NQ48: 28 day e-pass | NR48: 83.45 | NS48: 28 day e-pass | NT48: 83.45 | NU48: 28 day e-pass | NV48: 83.45 | NW48: 28 day e-pass | NX48: 83.45 | NY48: 28 day e-pass | NZ48: 83.45 | OA48: 28 day e-pass | OB48: 83.45 | OC48: 28 day e-pass | OD48: 83.45 | OE48: 28 day e-pass | OF48: 83.45 | OG48: 28 day e-pass | OH48: 83.45 | OI48: 28 day e-pass | OJ48: 83.45 | OK48: 28 day e-pass | OL48: 83.45 | OM48: 28 day e-pass | ON48: 83.45 | OO48: 28 day e-pass | OP48: 83.45 | OQ48: 28 day e-pass | OR48: 83.45 | OS48: 28 day e-pass | OT48: 83.45 | OU48: 28 day e-pass | OV48: 83.45 | OW48: 28 day e-pass | OX48: 83.45 | OY48: 28 day e-pass | OZ48: 83.45 | PA48: 28 day e-pass | PB48: 83.45 | PC48: 28 day e-pass | PD48: 83.45 | PE48: 28 day e-pass | PF48: 83.45 | PG48: 28 day e-pass | PH48: 83.45 | PI48: 28 day e-pass | PJ48: 83.45 | PK48: 28 day e-pass
A49: 2017-11-15 | B49: Wednesday | D49: 2 | CP49: 4.7 | CQ49: ecash | CR49: 4.7 | CS49: ecash | CT49: 4.7 | CU49: ecash | CV49: 4.7 | CW49: ecash | CX49: 4.7 | CY49: ecash | DH49: 4.7 | DI49: ecash | DJ49: 4.7 | DK49: ecash | DL49: 4.7 | DM49: ecash | DV49: 4.7 | DW49: ecash | DX49: 4.7 | DY49: ecash | DZ49: 4.7 | EA49: ecash | EJ49: 4.7 | EK49: ecash | EL49: 4.7 | EM49: ecash | EN49: 4.7 | EO49: ecash
A50: 2017-11-16 | B50: Thursday | D50: 2 | CR50: 4.7 | CS50: ecash | CT50: 4.7 | CU50: ecash | CV50: 4.7 | CW50: ecash | CX50: 4.7 | CY50: ecash | DH50: 4.7 | DI50: ecash | DJ50: 4.7 | DK50: ecash | DL50: 4.7 | DM50: ecash | DV50: 4.7 | DW50: ecash | DX50: 4.7 | DY50: ecash | DZ50: 4.7 | EA50: ecash | EJ50: 4.7 | EK50: ecash | EL50: 4.7 | EM50: ecash | EN50: 4.7 | EO50: ecash
A51: 2017-11-17 | B51: Friday | D51: 2 | CT51: 4.7 | CU51: ecash | CV51: 4.7 | CW51: ecash | CX51: 4.7 | CY51: ecash | DH51: 4.7 | DI51: ecash | DJ51: 4.7 | DK51: ecash | DL51: 4.7 | DM51: ecash | DV51: 4.7 | DW51: ecash | DX51: 4.7 | DY51: ecash | DZ51: 4.7 | EA51: ecash | EJ51: 4.7 | EK51: ecash | EL51: 4.7 | EM51: ecash | EN51: 4.7 | EO51: ecash
A52: 2017-11-18 | B52: Saturday | D52: 0 | CV52: 0 | CW52: ecash | CX52: 0 | CY52: ecash | DH52: 0 | DI52: ecash | DJ52: 0 | DK52: ecash | DL52: 0 | DM52: ecash | DV52: 0 | DW52: ecash | DX52: 0 | DY52: ecash | DZ52: 0 | EA52: ecash | EJ52: 0 | EK52: ecash | EL52: 0 | EM52: ecash | EN52: 0 | EO52: ecash
A53: 2017-11-19 | B53: Sunday | D53: 0 | CX53: 0 | CY53: ecash | DH53: 0 | DI53: ecash | DJ53: 0 | DK53: ecash | DL53: 0 | DM53: ecash | DV53: 0 | DW53: ecash | DX53: 0 | DY53: ecash | DZ53: 0 | EA53: ecash | EJ53: 0 | EK53: ecash | EL53: 0 | EM53: ecash | EN53: 0 | EO53: ecash
A54: 2017-11-20 | B54: Monday | D54: 2 | DH54: 21.15 | DI54: 5 day e-pass | DJ54: 21.15 | DK54: 5 day e-pass | DL54: 21.15 | DM54: 5 day e-pass | DV54: 21.15 | DW54: 5 day e-pass | DX54: 21.15 | DY54: 5 day e-pass | DZ54: 21.15 | EA54: 5 day e-pass | EJ54: 21.15 | EK54: 5 day e-pass | EL54: 21.15 | EM54: 5 day e-pass | EN54: 21.15 | EO54: 5 day e-pass
A55: 2017-11-21 | B55: Tuesday | D55: 2 | DB55: 4.7 | DC55: ecash | DD55: 4.7 | DE55: ecash | DF55: 4.7 | DG55: ecash
A56: 2017-11-22 | B56: Wednesday | D56: 2 | DD56: 4.7 | DE56: ecash | DF56: 4.7 | DG56: ecash
A57: 2017-11-23 | B57: Thursday | D57: 2 | DF57: 4.7 | DG57: ecash
A58: 2017-11-24 | B58: Friday | D58: 2
A59: 2017-11-25 | B59: Saturday | D59: 0 | DJ59: 0 | DK59: ecash | DL59: 0 | DM59: ecash | DV59: 0 | DW59: ecash | DX59: 0 | DY59: ecash | DZ59: 0 | EA59: ecash | EJ59: 0 | EK59: ecash | EL59: 0 | EM59: ecash | EN59: 0 | EO59: ecash
A60: 2017-11-26 | B60: Sunday | D60: 0 | DL60: 0 | DM60: ecash | DV60: 0 | DW60: ecash | DX60: 0 | DY60: ecash | DZ60: 0 | EA60: ecash | EJ60: 0 | EK60: ecash | EL60: 0 | EM60: ecash | EN60: 0 | EO60: ecash
A61: 2017-11-27 | B61: Monday | D61: 2 | DV61: 21.15 | DW61: 5 day e-pass | DX61: 21.15 | DY61: 5 day e-pass | DZ61: 21.15 | EA61: 5 day e-pass | EJ61: 21.15 | EK61: 5 day e-pass | EL61: 21.15 | EM61: 5 day e-pass | EN61: 21.15 | EO61: 5 day e-pass
A62: 2017-11-28 | B62: Tuesday | D62: 2 | DP62: 4.7 | DQ62: ecash | DR62: 4.7 | DS62: ecash | DT62: 4.7 | DU62: ecash
A63: 2017-11-29 | B63: Wednesday | D63: 2 | DR63: 4.7 | DS63: ecash | DT63: 4.7 | DU63: ecash
A64: 2017-11-30 | B64: Thursday | D64: 2 | DT64: 4.7 | DU64: ecash
A65: 2017-12-01 | B65: Friday | D65: 2
A66: 2017-12-02 | B66: Saturday | D66: 0 | DX66: 0 | DY66: ecash | DZ66: 0 | EA66: ecash | EJ66: 0 | EK66: ecash | EL66: 0 | EM66: ecash | EN66: 0 | EO66: ecash
A67: 2017-12-03 | B67: Sunday | D67: 0 | DZ67: 0 | EA67: ecash | EJ67: 0 | EK67: ecash | EL67: 0 | EM67: ecash | EN67: 0 | EO67: ecash
A68: 2017-12-04 | B68: Monday | D68: 2 | EJ68: 21.15 | EK68: 5 day e-pass | EL68: 21.15 | EM68: 5 day e-pass | EN68: 21.15 | EO68: 5 day e-pass
A69: 2017-12-05 | B69: Tuesday | D69: 2 | ED69: 4.7 | EE69: ecash | EF69: 4.7 | EG69: ecash | EH69: 4.7 | EI69: ecash
A70: 2017-12-06 | B70: =TEXT(A70,"dddd") -> Wednesday | D70: 2 | EF70: 4.7 | EG70: ecash | EH70: 4.7 | EI70: ecash
A71: 2017-12-07 | B71: Thursday | D71: 2 | EH71: 4.7 | EI71: ecash
A72: 2017-12-08 | B72: Friday | D72: 2
A73: 2017-12-09 | B73: Saturday | D73: 0 | EL73: 0 | EM73: ecash | EN73: 0 | EO73: ecash
A74: 2017-12-10 | B74: Sunday | D74: 0 | EN74: 0 | EO74: ecash
A75: 2017-12-11 | B75: Monday | D75: 2
A76: 2017-12-12 | B76: Tuesday | D76: 2 | ER76: 4.7 | ES76: ecash | ET76: 4.7 | EU76: ecash | EV76: 4.7 | EW76: ecash | EX76: 4.7 | EY76: ecash | EZ76: 4.7 | FA76: ecash | FB76: 4.7 | FC76: ecash | FD76: 4.7 | FE76: ecash | FF76: 4.7 | FG76: ecash | FH76: 4.7 | FI76: ecash | FJ76: 4.7 | FK76: ecash | FL76: 4.7 | FM76: ecash | FN76: 4.7 | FO76: ecash | FP76: 4.7 | FQ76: ecash | FR76: 4.7 | FS76: ecash | FT76: 4.7 | FU76: ecash | FV76: 4.7 | FW76: ecash | FX76: 4.7 | FY76: ecash | FZ76: 4.7 | GA76: ecash | GB76: 4.7 | GC76: ecash | GD76: 4.7 | GE76: ecash | GF76: 4.7 | GG76: ecash | GH76: 4.7 | GI76: ecash | GJ76: 4.7 | GK76: ecash | GL76: 4.7 | GM76: ecash | GN76: 4.7 | GO76: ecash | GP76: 4.7 | GQ76: ecash | GR76: 4.7 | GS76: ecash | GT76: 4.7 | GU76: ecash | GV76: 4.7 | GW76: ecash | GX76: 4.7 | GY76: ecash | GZ76: 4.7 | HA76: ecash | HB76: 4.7 | HC76: ecash | HD76: 4.7 | HE76: ecash | HF76: 4.7 | HG76: ecash | HH76: 4.7 | HI76: ecash | HJ76: 4.7 | HK76: ecash | HL76: 4.7 | HM76: ecash | HN76: 4.7 | HO76: ecash | HP76: 4.7 | HQ76: ecash | HR76: 4.7 | HS76: ecash | HT76: 4.7 | HU76: ecash | HV76: 4.7 | HW76: ecash | HX76: 4.7 | HY76: ecash | HZ76: 4.7 | IA76: ecash | IB76: 4.7 | IC76: ecash | ID76: 4.7 | IE76: ecash | IF76: 4.7 | IG76: ecash | IH76: 4.7 | II76: ecash | IJ76: 4.7 | IK76: ecash | IL76: 4.7 | IM76: ecash | IN76: 4.7 | IO76: ecash | IP76: 4.7 | IQ76: ecash | IR76: 4.7 | IS76: ecash | IT76: 4.7 | IU76: ecash | IV76: 4.7 | IW76: ecash | IX76: 4.7 | IY76: ecash | IZ76: 4.7 | JA76: ecash | JB76: 4.7 | JC76: ecash | JD76: 4.7 | JE76: ecash | JF76: 4.7 | JG76: ecash | JH76: 4.7 | JI76: ecash | JJ76: 4.7 | JK76: ecash | JL76: 4.7 | JM76: ecash | JN76: 4.7 | JO76: ecash | JP76: 4.7 | JQ76: ecash | JR76: 4.7 | JS76: ecash | JT76: 4.7 | JU76: ecash | JV76: 4.7 | JW76: ecash | JX76: 4.7 | JY76: ecash | JZ76: 4.7 | KA76: ecash | KB76: 4.7 | KC76: ecash | KD76: 4.7 | KE76: ecash | KF76: 4.7 | KG76: ecash | KH76: 4.7 | KI76: ecash | KJ76: 4.7 | KK76: ecash | KL76: 4.7 | KM76: ecash | KN76: 4.7 | KO76: ecash | KP76: 4.7 | KQ76: ecash | KR76: 4.7 | KS76: ecash | KT76: 4.7 | KU76: ecash | KV76: 4.7 | KW76: ecash | KX76: 4.7 | KY76: ecash | KZ76: 4.7 | LA76: ecash | LB76: 4.7 | LC76: ecash | LD76: 4.7 | LE76: ecash | LF76: 4.7 | LG76: ecash | LH76: 4.7 | LI76: ecash | LJ76: 4.7 | LK76: ecash | LL76: 4.7 | LM76: ecash | LN76: 4.7 | LO76: ecash | LP76: 4.7 | LQ76: ecash | LR76: 4.7 | LS76: ecash | LT76: 4.7 | LU76: ecash | LV76: 4.7 | LW76: ecash | LX76: 4.7 | LY76: ecash | LZ76: 4.7 | MA76: ecash | MB76: 4.7 | MC76: ecash | MD76: 4.7 | ME76: ecash | MF76: 4.7 | MG76: ecash | MH76: 4.7 | MI76: ecash | MJ76: 4.7 | MK76: ecash | ML76: 4.7 | MM76: ecash | MN76: 4.7 | MO76: ecash | MP76: 4.7 | MQ76: ecash | MR76: 4.7 | MS76: ecash | MT76: 4.7 | MU76: ecash | MV76: 4.7 | MW76: ecash | MX76: 4.7 | MY76: ecash | MZ76: 4.7 | NA76: ecash | NB76: 4.7 | NC76: ecash | ND76: 4.7 | NE76: ecash | NF76: 4.7 | NG76: ecash | NH76: 4.7 | NI76: ecash | NJ76: 4.7 | NK76: ecash | NL76: 4.7 | NM76: ecash | NN76: 4.7 | NO76: ecash | NP76: 4.7 | NQ76: ecash | NR76: 4.7 | NS76: ecash | NT76: 4.7 | NU76: ecash | NV76: 4.7 | NW76: ecash | NX76: 4.7 | NY76: ecash | NZ76: 4.7 | OA76: ecash | OB76: 4.7 | OC76: ecash | OD76: 4.7 | OE76: ecash | OF76: 4.7 | OG76: ecash | OH76: 4.7 | OI76: ecash | OJ76: 4.7 | OK76: ecash | OL76: 4.7 | OM76: ecash | ON76: 4.7 | OO76: ecash | OP76: 4.7 | OQ76: ecash | OR76: 4.7 | OS76: ecash | OT76: 4.7 | OU76: ecash | OV76: 4.7 | OW76: ecash | OX76: 4.7 | OY76: ecash | OZ76: 4.7 | PA76: ecash | PB76: 4.7 | PC76: ecash | PD76: 4.7 | PE76: ecash | PF76: 4.7 | PG76: ecash | PH76: 4.7 | PI76: ecash | PJ76: 4.7 | PK76: ecash
A77: 2017-12-13 | B77: Wednesday | D77: 2 | ET77: 4.7 | EU77: ecash | EV77: 4.7 | EW77: ecash | EX77: 4.7 | EY77: ecash | EZ77: 4.7 | FA77: ecash | FB77: 4.7 | FC77: ecash | FD77: 4.7 | FE77: ecash | FF77: 4.7 | FG77: ecash | FH77: 4.7 | FI77: ecash | FJ77: 4.7 | FK77: ecash | FL77: 4.7 | FM77: ecash | FN77: 4.7 | FO77: ecash | FP77: 4.7 | FQ77: ecash | FR77: 4.7 | FS77: ecash | FT77: 4.7 | FU77: ecash | FV77: 4.7 | FW77: ecash | FX77: 4.7 | FY77: ecash | FZ77: 4.7 | GA77: ecash | GB77: 4.7 | GC77: ecash | GD77: 4.7 | GE77: ecash | GF77: 4.7 | GG77: ecash | GH77: 4.7 | GI77: ecash | GJ77: 4.7 | GK77: ecash | GL77: 4.7 | GM77: ecash | GN77: 4.7 | GO77: ecash | GP77: 4.7 | GQ77: ecash | GR77: 4.7 | GS77: ecash | GT77: 4.7 | GU77: ecash | GV77: 4.7 | GW77: ecash | GX77: 4.7 | GY77: ecash | GZ77: 4.7 | HA77: ecash | HB77: 4.7 | HC77: ecash | HD77: 4.7 | HE77: ecash | HF77: 4.7 | HG77: ecash | HH77: 4.7 | HI77: ecash | HJ77: 4.7 | HK77: ecash | HL77: 4.7 | HM77: ecash | HN77: 4.7 | HO77: ecash | HP77: 4.7 | HQ77: ecash | HR77: 4.7 | HS77: ecash | HT77: 4.7 | HU77: ecash | HV77: 4.7 | HW77: ecash | HX77: 4.7 | HY77: ecash | HZ77: 4.7 | IA77: ecash | IB77: 4.7 | IC77: ecash | ID77: 4.7 | IE77: ecash | IF77: 4.7 | IG77: ecash | IH77: 4.7 | II77: ecash | IJ77: 4.7 | IK77: ecash | IL77: 4.7 | IM77: ecash | IN77: 4.7 | IO77: ecash | IP77: 4.7 | IQ77: ecash | IR77: 4.7 | IS77: ecash | IT77: 4.7 | IU77: ecash | IV77: 4.7 | IW77: ecash | IX77: 4.7 | IY77: ecash | IZ77: 4.7 | JA77: ecash | JB77: 4.7 | JC77: ecash | JD77: 4.7 | JE77: ecash | JF77: 4.7 | JG77: ecash | JH77: 4.7 | JI77: ecash | JJ77: 4.7 | JK77: ecash | JL77: 4.7 | JM77: ecash | JN77: 4.7 | JO77: ecash | JP77: 4.7 | JQ77: ecash | JR77: 4.7 | JS77: ecash | JT77: 4.7 | JU77: ecash | JV77: 4.7 | JW77: ecash | JX77: 4.7 | JY77: ecash | JZ77: 4.7 | KA77: ecash | KB77: 4.7 | KC77: ecash | KD77: 4.7 | KE77: ecash | KF77: 4.7 | KG77: ecash | KH77: 4.7 | KI77: ecash | KJ77: 4.7 | KK77: ecash | KL77: 4.7 | KM77: ecash | KN77: 4.7 | KO77: ecash | KP77: 4.7 | KQ77: ecash | KR77: 4.7 | KS77: ecash | KT77: 4.7 | KU77: ecash | KV77: 4.7 | KW77: ecash | KX77: 4.7 | KY77: ecash | KZ77: 4.7 | LA77: ecash | LB77: 4.7 | LC77: ecash | LD77: 4.7 | LE77: ecash | LF77: 4.7 | LG77: ecash | LH77: 4.7 | LI77: ecash | LJ77: 4.7 | LK77: ecash | LL77: 4.7 | LM77: ecash | LN77: 4.7 | LO77: ecash | LP77: 4.7 | LQ77: ecash | LR77: 4.7 | LS77: ecash | LT77: 4.7 | LU77: ecash | LV77: 4.7 | LW77: ecash | LX77: 4.7 | LY77: ecash | LZ77: 4.7 | MA77: ecash | MB77: 4.7 | MC77: ecash | MD77: 4.7 | ME77: ecash | MF77: 4.7 | MG77: ecash | MH77: 4.7 | MI77: ecash | MJ77: 4.7 | MK77: ecash | ML77: 4.7 | MM77: ecash | MN77: 4.7 | MO77: ecash | MP77: 4.7 | MQ77: ecash | MR77: 4.7 | MS77: ecash | MT77: 4.7 | MU77: ecash | MV77: 4.7 | MW77: ecash | MX77: 4.7 | MY77: ecash | MZ77: 4.7 | NA77: ecash | NB77: 4.7 | NC77: ecash | ND77: 4.7 | NE77: ecash | NF77: 4.7 | NG77: ecash | NH77: 4.7 | NI77: ecash | NJ77: 4.7 | NK77: ecash | NL77: 4.7 | NM77: ecash | NN77: 4.7 | NO77: ecash | NP77: 4.7 | NQ77: ecash | NR77: 4.7 | NS77: ecash | NT77: 4.7 | NU77: ecash | NV77: 4.7 | NW77: ecash | NX77: 4.7 | NY77: ecash | NZ77: 4.7 | OA77: ecash | OB77: 4.7 | OC77: ecash | OD77: 4.7 | OE77: ecash | OF77: 4.7 | OG77: ecash | OH77: 4.7 | OI77: ecash | OJ77: 4.7 | OK77: ecash | OL77: 4.7 | OM77: ecash | ON77: 4.7 | OO77: ecash | OP77: 4.7 | OQ77: ecash | OR77: 4.7 | OS77: ecash | OT77: 4.7 | OU77: ecash | OV77: 4.7 | OW77: ecash | OX77: 4.7 | OY77: ecash | OZ77: 4.7 | PA77: ecash | PB77: 4.7 | PC77: ecash | PD77: 4.7 | PE77: ecash | PF77: 4.7 | PG77: ecash | PH77: 4.7 | PI77: ecash | PJ77: 4.7 | PK77: ecash
A78: 2017-12-14 | B78: Thursday | D78: 2 | EV78: 4.7 | EW78: ecash | EX78: 4.7 | EY78: ecash | EZ78: 4.7 | FA78: ecash | FB78: 4.7 | FC78: ecash | FD78: 4.7 | FE78: ecash | FF78: 4.7 | FG78: ecash | FH78: 4.7 | FI78: ecash | FJ78: 4.7 | FK78: ecash | FL78: 4.7 | FM78: ecash | FN78: 4.7 | FO78: ecash | FP78: 4.7 | FQ78: ecash | FR78: 4.7 | FS78: ecash | FT78: 4.7 | FU78: ecash | FV78: 4.7 | FW78: ecash | FX78: 4.7 | FY78: ecash | FZ78: 4.7 | GA78: ecash | GB78: 4.7 | GC78: ecash | GD78: 4.7 | GE78: ecash | GF78: 4.7 | GG78: ecash | GH78: 4.7 | GI78: ecash | GJ78: 4.7 | GK78: ecash | GL78: 4.7 | GM78: ecash | GN78: 4.7 | GO78: ecash | GP78: 4.7 | GQ78: ecash | GR78: 4.7 | GS78: ecash | GT78: 4.7 | GU78: ecash | GV78: 4.7 | GW78: ecash | GX78: 4.7 | GY78: ecash | GZ78: 4.7 | HA78: ecash | HB78: 4.7 | HC78: ecash | HD78: 4.7 | HE78: ecash | HF78: 4.7 | HG78: ecash | HH78: 4.7 | HI78: ecash | HJ78: 4.7 | HK78: ecash | HL78: 4.7 | HM78: ecash | HN78: 4.7 | HO78: ecash | HP78: 4.7 | HQ78: ecash | HR78: 4.7 | HS78: ecash | HT78: 4.7 | HU78: ecash | HV78: 4.7 | HW78: ecash | HX78: 4.7 | HY78: ecash | HZ78: 4.7 | IA78: ecash | IB78: 4.7 | IC78: ecash | ID78: 4.7 | IE78: ecash | IF78: 4.7 | IG78: ecash | IH78: 4.7 | II78: ecash | IJ78: 4.7 | IK78: ecash | IL78: 4.7 | IM78: ecash | IN78: 4.7 | IO78: ecash | IP78: 4.7 | IQ78: ecash | IR78: 4.7 | IS78: ecash | IT78: 4.7 | IU78: ecash | IV78: 4.7 | IW78: ecash | IX78: 4.7 | IY78: ecash | IZ78: 4.7 | JA78: ecash | JB78: 4.7 | JC78: ecash | JD78: 4.7 | JE78: ecash | JF78: 4.7 | JG78: ecash | JH78: 4.7 | JI78: ecash | JJ78: 4.7 | JK78: ecash | JL78: 4.7 | JM78: ecash | JN78: 4.7 | JO78: ecash | JP78: 4.7 | JQ78: ecash | JR78: 4.7 | JS78: ecash | JT78: 4.7 | JU78: ecash | JV78: 4.7 | JW78: ecash | JX78: 4.7 | JY78: ecash | JZ78: 4.7 | KA78: ecash | KB78: 4.7 | KC78: ecash | KD78: 4.7 | KE78: ecash | KF78: 4.7 | KG78: ecash | KH78: 4.7 | KI78: ecash | KJ78: 4.7 | KK78: ecash | KL78: 4.7 | KM78: ecash | KN78: 4.7 | KO78: ecash | KP78: 4.7 | KQ78: ecash | KR78: 4.7 | KS78: ecash | KT78: 4.7 | KU78: ecash | KV78: 4.7 | KW78: ecash | KX78: 4.7 | KY78: ecash | KZ78: 4.7 | LA78: ecash | LB78: 4.7 | LC78: ecash | LD78: 4.7 | LE78: ecash | LF78: 4.7 | LG78: ecash | LH78: 4.7 | LI78: ecash | LJ78: 4.7 | LK78: ecash | LL78: 4.7 | LM78: ecash | LN78: 4.7 | LO78: ecash | LP78: 4.7 | LQ78: ecash | LR78: 4.7 | LS78: ecash | LT78: 4.7 | LU78: ecash | LV78: 4.7 | LW78: ecash | LX78: 4.7 | LY78: ecash | LZ78: 4.7 | MA78: ecash | MB78: 4.7 | MC78: ecash | MD78: 4.7 | ME78: ecash | MF78: 4.7 | MG78: ecash | MH78: 4.7 | MI78: ecash | MJ78: 4.7 | MK78: ecash | ML78: 4.7 | MM78: ecash | MN78: 4.7 | MO78: ecash | MP78: 4.7 | MQ78: ecash | MR78: 4.7 | MS78: ecash | MT78: 4.7 | MU78: ecash | MV78: 4.7 | MW78: ecash | MX78: 4.7 | MY78: ecash | MZ78: 4.7 | NA78: ecash | NB78: 4.7 | NC78: ecash | ND78: 4.7 | NE78: ecash | NF78: 4.7 | NG78: ecash | NH78: 4.7 | NI78: ecash | NJ78: 4.7 | NK78: ecash | NL78: 4.7 | NM78: ecash | NN78: 4.7 | NO78: ecash | NP78: 4.7 | NQ78: ecash | NR78: 4.7 | NS78: ecash | NT78: 4.7 | NU78: ecash | NV78: 4.7 | NW78: ecash | NX78: 4.7 | NY78: ecash | NZ78: 4.7 | OA78: ecash | OB78: 4.7 | OC78: ecash | OD78: 4.7 | OE78: ecash | OF78: 4.7 | OG78: ecash | OH78: 4.7 | OI78: ecash | OJ78: 4.7 | OK78: ecash | OL78: 4.7 | OM78: ecash | ON78: 4.7 | OO78: ecash | OP78: 4.7 | OQ78: ecash | OR78: 4.7 | OS78: ecash | OT78: 4.7 | OU78: ecash | OV78: 4.7 | OW78: ecash | OX78: 4.7 | OY78: ecash | OZ78: 4.7 | PA78: ecash | PB78: 4.7 | PC78: ecash | PD78: 4.7 | PE78: ecash | PF78: 4.7 | PG78: ecash | PH78: 4.7 | PI78: ecash | PJ78: 4.7 | PK78: ecash
A79: 2017-12-15 | B79: Friday | D79: 2 | EX79: 4.7 | EY79: ecash | EZ79: 4.7 | FA79: ecash | FB79: 4.7 | FC79: ecash | FD79: 4.7 | FE79: ecash | FF79: 4.7 | FG79: ecash | FH79: 4.7 | FI79: ecash | FJ79: 4.7 | FK79: ecash | FL79: 4.7 | FM79: ecash | FN79: 4.7 | FO79: ecash | FP79: 4.7 | FQ79: ecash | FR79: 4.7 | FS79: ecash | FT79: 4.7 | FU79: ecash | FV79: 4.7 | FW79: ecash | FX79: 4.7 | FY79: ecash | FZ79: 4.7 | GA79: ecash | GB79: 4.7 | GC79: ecash | GD79: 4.7 | GE79: ecash | GF79: 4.7 | GG79: ecash | GH79: 4.7 | GI79: ecash | GJ79: 4.7 | GK79: ecash | GL79: 4.7 | GM79: ecash | GN79: 4.7 | GO79: ecash | GP79: 4.7 | GQ79: ecash | GR79: 4.7 | GS79: ecash | GT79: 4.7 | GU79: ecash | GV79: 4.7 | GW79: ecash | GX79: 4.7 | GY79: ecash | GZ79: 4.7 | HA79: ecash | HB79: 4.7 | HC79: ecash | HD79: 4.7 | HE79: ecash | HF79: 4.7 | HG79: ecash | HH79: 4.7 | HI79: ecash | HJ79: 4.7 | HK79: ecash | HL79: 4.7 | HM79: ecash | HN79: 4.7 | HO79: ecash | HP79: 4.7 | HQ79: ecash | HR79: 4.7 | HS79: ecash | HT79: 4.7 | HU79: ecash | HV79: 4.7 | HW79: ecash | HX79: 4.7 | HY79: ecash | HZ79: 4.7 | IA79: ecash | IB79: 4.7 | IC79: ecash | ID79: 4.7 | IE79: ecash | IF79: 4.7 | IG79: ecash | IH79: 4.7 | II79: ecash | IJ79: 4.7 | IK79: ecash | IL79: 4.7 | IM79: ecash | IN79: 4.7 | IO79: ecash | IP79: 4.7 | IQ79: ecash | IR79: 4.7 | IS79: ecash | IT79: 4.7 | IU79: ecash | IV79: 4.7 | IW79: ecash | IX79: 4.7 | IY79: ecash | IZ79: 4.7 | JA79: ecash | JB79: 4.7 | JC79: ecash | JD79: 4.7 | JE79: ecash | JF79: 4.7 | JG79: ecash | JH79: 4.7 | JI79: ecash | JJ79: 4.7 | JK79: ecash | JL79: 4.7 | JM79: ecash | JN79: 4.7 | JO79: ecash | JP79: 4.7 | JQ79: ecash | JR79: 4.7 | JS79: ecash | JT79: 4.7 | JU79: ecash | JV79: 4.7 | JW79: ecash | JX79: 4.7 | JY79: ecash | JZ79: 4.7 | KA79: ecash | KB79: 4.7 | KC79: ecash | KD79: 4.7 | KE79: ecash | KF79: 4.7 | KG79: ecash | KH79: 4.7 | KI79: ecash | KJ79: 4.7 | KK79: ecash | KL79: 4.7 | KM79: ecash | KN79: 4.7 | KO79: ecash | KP79: 4.7 | KQ79: ecash | KR79: 4.7 | KS79: ecash | KT79: 4.7 | KU79: ecash | KV79: 4.7 | KW79: ecash | KX79: 4.7 | KY79: ecash | KZ79: 4.7 | LA79: ecash | LB79: 4.7 | LC79: ecash | LD79: 4.7 | LE79: ecash | LF79: 4.7 | LG79: ecash | LH79: 4.7 | LI79: ecash | LJ79: 4.7 | LK79: ecash | LL79: 4.7 | LM79: ecash | LN79: 4.7 | LO79: ecash | LP79: 4.7 | LQ79: ecash | LR79: 4.7 | LS79: ecash | LT79: 4.7 | LU79: ecash | LV79: 4.7 | LW79: ecash | LX79: 4.7 | LY79: ecash | LZ79: 4.7 | MA79: ecash | MB79: 4.7 | MC79: ecash | MD79: 4.7 | ME79: ecash | MF79: 4.7 | MG79: ecash | MH79: 4.7 | MI79: ecash | MJ79: 4.7 | MK79: ecash | ML79: 4.7 | MM79: ecash | MN79: 4.7 | MO79: ecash | MP79: 4.7 | MQ79: ecash | MR79: 4.7 | MS79: ecash | MT79: 4.7 | MU79: ecash | MV79: 4.7 | MW79: ecash | MX79: 4.7 | MY79: ecash | MZ79: 4.7 | NA79: ecash | NB79: 4.7 | NC79: ecash | ND79: 4.7 | NE79: ecash | NF79: 4.7 | NG79: ecash | NH79: 4.7 | NI79: ecash | NJ79: 4.7 | NK79: ecash | NL79: 4.7 | NM79: ecash | NN79: 4.7 | NO79: ecash | NP79: 4.7 | NQ79: ecash | NR79: 4.7 | NS79: ecash | NT79: 4.7 | NU79: ecash | NV79: 4.7 | NW79: ecash | NX79: 4.7 | NY79: ecash | NZ79: 4.7 | OA79: ecash | OB79: 4.7 | OC79: ecash | OD79: 4.7 | OE79: ecash | OF79: 4.7 | OG79: ecash | OH79: 4.7 | OI79: ecash | OJ79: 4.7 | OK79: ecash | OL79: 4.7 | OM79: ecash | ON79: 4.7 | OO79: ecash | OP79: 4.7 | OQ79: ecash | OR79: 4.7 | OS79: ecash | OT79: 4.7 | OU79: ecash | OV79: 4.7 | OW79: ecash | OX79: 4.7 | OY79: ecash | OZ79: 4.7 | PA79: ecash | PB79: 4.7 | PC79: ecash | PD79: 4.7 | PE79: ecash | PF79: 4.7 | PG79: ecash | PH79: 4.7 | PI79: ecash | PJ79: 4.7 | PK79: ecash
A80: 2017-12-16 | B80: Saturday | D80: 0 | EZ80: 0 | FA80: ecash | FB80: 0 | FC80: ecash | FD80: 0 | FE80: ecash | FF80: 0 | FG80: ecash | FH80: 0 | FI80: ecash | FJ80: 0 | FK80: ecash | FL80: 0 | FM80: ecash | FN80: 0 | FO80: ecash | FP80: 0 | FQ80: ecash | FR80: 0 | FS80: ecash | FT80: 0 | FU80: ecash | FV80: 0 | FW80: ecash | FX80: 0 | FY80: ecash | FZ80: 0 | GA80: ecash | GB80: 0 | GC80: ecash | GD80: 0 | GE80: ecash | GF80: 0 | GG80: ecash | GH80: 0 | GI80: ecash | GJ80: 0 | GK80: ecash | GL80: 0 | GM80: ecash | GN80: 0 | GO80: ecash | GP80: 0 | GQ80: ecash | GR80: 0 | GS80: ecash | GT80: 0 | GU80: ecash | GV80: 0 | GW80: ecash | GX80: 0 | GY80: ecash | GZ80: 0 | HA80: ecash | HB80: 0 | HC80: ecash | HD80: 0 | HE80: ecash | HF80: 0 | HG80: ecash | HH80: 0 | HI80: ecash | HJ80: 0 | HK80: ecash | HL80: 0 | HM80: ecash | HN80: 0 | HO80: ecash | HP80: 0 | HQ80: ecash | HR80: 0 | HS80: ecash | HT80: 0 | HU80: ecash | HV80: 0 | HW80: ecash | HX80: 0 | HY80: ecash | HZ80: 0 | IA80: ecash | IB80: 0 | IC80: ecash | ID80: 0 | IE80: ecash | IF80: 0 | IG80: ecash | IH80: 0 | II80: ecash | IJ80: 0 | IK80: ecash | IL80: 0 | IM80: ecash | IN80: 0 | IO80: ecash | IP80: 0 | IQ80: ecash | IR80: 0 | IS80: ecash | IT80: 0 | IU80: ecash | IV80: 0 | IW80: ecash | IX80: 0 | IY80: ecash | IZ80: 0 | JA80: ecash | JB80: 0 | JC80: ecash | JD80: 0 | JE80: ecash | JF80: 0 | JG80: ecash | JH80: 0 | JI80: ecash | JJ80: 0 | JK80: ecash | JL80: 0 | JM80: ecash | JN80: 0 | JO80: ecash | JP80: 0 | JQ80: ecash | JR80: 0 | JS80: ecash | JT80: 0 | JU80: ecash | JV80: 0 | JW80: ecash | JX80: 0 | JY80: ecash | JZ80: 0 | KA80: ecash | KB80: 0 | KC80: ecash | KD80: 0 | KE80: ecash | KF80: 0 | KG80: ecash | KH80: 0 | KI80: ecash | KJ80: 0 | KK80: ecash | KL80: 0 | KM80: ecash | KN80: 0 | KO80: ecash | KP80: 0 | KQ80: ecash | KR80: 0 | KS80: ecash | KT80: 0 | KU80: ecash | KV80: 0 | KW80: ecash | KX80: 0 | KY80: ecash | KZ80: 0 | LA80: ecash | LB80: 0 | LC80: ecash | LD80: 0 | LE80: ecash | LF80: 0 | LG80: ecash | LH80: 0 | LI80: ecash | LJ80: 0 | LK80: ecash | LL80: 0 | LM80: ecash | LN80: 0 | LO80: ecash | LP80: 0 | LQ80: ecash | LR80: 0 | LS80: ecash | LT80: 0 | LU80: ecash | LV80: 0 | LW80: ecash | LX80: 0 | LY80: ecash | LZ80: 0 | MA80: ecash | MB80: 0 | MC80: ecash | MD80: 0 | ME80: ecash | MF80: 0 | MG80: ecash | MH80: 0 | MI80: ecash | MJ80: 0 | MK80: ecash | ML80: 0 | MM80: ecash | MN80: 0 | MO80: ecash | MP80: 0 | MQ80: ecash | MR80: 0 | MS80: ecash | MT80: 0 | MU80: ecash | MV80: 0 | MW80: ecash | MX80: 0 | MY80: ecash | MZ80: 0 | NA80: ecash | NB80: 0 | NC80: ecash | ND80: 0 | NE80: ecash | NF80: 0 | NG80: ecash | NH80: 0 | NI80: ecash | NJ80: 0 | NK80: ecash | NL80: 0 | NM80: ecash | NN80: 0 | NO80: ecash | NP80: 0 | NQ80: ecash | NR80: 0 | NS80: ecash | NT80: 0 | NU80: ecash | NV80: 0 | NW80: ecash | NX80: 0 | NY80: ecash | NZ80: 0 | OA80: ecash | OB80: 0 | OC80: ecash | OD80: 0 | OE80: ecash | OF80: 0 | OG80: ecash | OH80: 0 | OI80: ecash | OJ80: 0 | OK80: ecash | OL80: 0 | OM80: ecash | ON80: 0 | OO80: ecash | OP80: 0 | OQ80: ecash | OR80: 0 | OS80: ecash | OT80: 0 | OU80: ecash | OV80: 0 | OW80: ecash | OX80: 0 | OY80: ecash | OZ80: 0 | PA80: ecash | PB80: 0 | PC80: ecash | PD80: 0 | PE80: ecash | PF80: 0 | PG80: ecash | PH80: 0 | PI80: ecash | PJ80: 0 | PK80: ecash
A81: 2017-12-17 | B81: Sunday | D81: 0 | FB81: 0 | FC81: ecash | FD81: 0 | FE81: ecash | FF81: 0 | FG81: ecash | FH81: 0 | FI81: ecash | FJ81: 0 | FK81: ecash | FL81: 0 | FM81: ecash | FN81: 0 | FO81: ecash | FP81: 0 | FQ81: ecash | FR81: 0 | FS81: ecash | FT81: 0 | FU81: ecash | FV81: 0 | FW81: ecash | FX81: 0 | FY81: ecash | FZ81: 0 | GA81: ecash | GB81: 0 | GC81: ecash | GD81: 0 | GE81: ecash | GF81: 0 | GG81: ecash | GH81: 0 | GI81: ecash | GJ81: 0 | GK81: ecash | GL81: 0 | GM81: ecash | GN81: 0 | GO81: ecash | GP81: 0 | GQ81: ecash | GR81: 0 | GS81: ecash | GT81: 0 | GU81: ecash | GV81: 0 | GW81: ecash | GX81: 0 | GY81: ecash | GZ81: 0 | HA81: ecash | HB81: 0 | HC81: ecash | HD81: 0 | HE81: ecash | HF81: 0 | HG81: ecash | HH81: 0 | HI81: ecash | HJ81: 0 | HK81: ecash | HL81: 0 | HM81: ecash | HN81: 0 | HO81: ecash | HP81: 0 | HQ81: ecash | HR81: 0 | HS81: ecash | HT81: 0 | HU81: ecash | HV81: 0 | HW81: ecash | HX81: 0 | HY81: ecash | HZ81: 0 | IA81: ecash | IB81: 0 | IC81: ecash | ID81: 0 | IE81: ecash | IF81: 0 | IG81: ecash | IH81: 0 | II81: ecash | IJ81: 0 | IK81: ecash | IL81: 0 | IM81: ecash | IN81: 0 | IO81: ecash | IP81: 0 | IQ81: ecash | IR81: 0 | IS81: ecash | IT81: 0 | IU81: ecash | IV81: 0 | IW81: ecash | IX81: 0 | IY81: ecash | IZ81: 0 | JA81: ecash | JB81: 0 | JC81: ecash | JD81: 0 | JE81: ecash | JF81: 0 | JG81: ecash | JH81: 0 | JI81: ecash | JJ81: 0 | JK81: ecash | JL81: 0 | JM81: ecash | JN81: 0 | JO81: ecash | JP81: 0 | JQ81: ecash | JR81: 0 | JS81: ecash | JT81: 0 | JU81: ecash | JV81: 0 | JW81: ecash | JX81: 0 | JY81: ecash | JZ81: 0 | KA81: ecash | KB81: 0 | KC81: ecash | KD81: 0 | KE81: ecash | KF81: 0 | KG81: ecash | KH81: 0 | KI81: ecash | KJ81: 0 | KK81: ecash | KL81: 0 | KM81: ecash | KN81: 0 | KO81: ecash | KP81: 0 | KQ81: ecash | KR81: 0 | KS81: ecash | KT81: 0 | KU81: ecash | KV81: 0 | KW81: ecash | KX81: 0 | KY81: ecash | KZ81: 0 | LA81: ecash | LB81: 0 | LC81: ecash | LD81: 0 | LE81: ecash | LF81: 0 | LG81: ecash | LH81: 0 | LI81: ecash | LJ81: 0 | LK81: ecash | LL81: 0 | LM81: ecash | LN81: 0 | LO81: ecash | LP81: 0 | LQ81: ecash | LR81: 0 | LS81: ecash | LT81: 0 | LU81: ecash | LV81: 0 | LW81: ecash | LX81: 0 | LY81: ecash | LZ81: 0 | MA81: ecash | MB81: 0 | MC81: ecash | MD81: 0 | ME81: ecash | MF81: 0 | MG81: ecash | MH81: 0 | MI81: ecash | MJ81: 0 | MK81: ecash | ML81: 0 | MM81: ecash | MN81: 0 | MO81: ecash | MP81: 0 | MQ81: ecash | MR81: 0 | MS81: ecash | MT81: 0 | MU81: ecash | MV81: 0 | MW81: ecash | MX81: 0 | MY81: ecash | MZ81: 0 | NA81: ecash | NB81: 0 | NC81: ecash | ND81: 0 | NE81: ecash | NF81: 0 | NG81: ecash | NH81: 0 | NI81: ecash | NJ81: 0 | NK81: ecash | NL81: 0 | NM81: ecash | NN81: 0 | NO81: ecash | NP81: 0 | NQ81: ecash | NR81: 0 | NS81: ecash | NT81: 0 | NU81: ecash | NV81: 0 | NW81: ecash | NX81: 0 | NY81: ecash | NZ81: 0 | OA81: ecash | OB81: 0 | OC81: ecash | OD81: 0 | OE81: ecash | OF81: 0 | OG81: ecash | OH81: 0 | OI81: ecash | OJ81: 0 | OK81: ecash | OL81: 0 | OM81: ecash | ON81: 0 | OO81: ecash | OP81: 0 | OQ81: ecash | OR81: 0 | OS81: ecash | OT81: 0 | OU81: ecash | OV81: 0 | OW81: ecash | OX81: 0 | OY81: ecash | OZ81: 0 | PA81: ecash | PB81: 0 | PC81: ecash | PD81: 0 | PE81: ecash | PF81: 0 | PG81: ecash | PH81: 0 | PI81: ecash | PJ81: 0 | PK81: ecash
A82: 2017-12-18 | B82: Monday | D82: 2 | FD82: 4.7 | FE82: ecash | FF82: 4.7 | FG82: ecash | FH82: 4.7 | FI82: ecash | FJ82: 4.7 | FK82: ecash | FL82: 21.15 | FM82: 5 day e-pass | FN82: 21.15 | FO82: 5 day e-pass | FP82: 21.15 | FQ82: 5 day e-pass | FR82: 21.15 | FS82: 5 day e-pass | FT82: 21.15 | FU82: 5 day e-pass | FV82: 21.15 | FW82: 5 day e-pass | FX82: 21.15 | FY82: 5 day e-pass | FZ82: 21.15 | GA82: 5 day e-pass | GB82: 21.15 | GC82: 5 day e-pass | GD82: 21.15 | GE82: 5 day e-pass | GF82: 21.15 | GG82: 5 day e-pass | GH82: 21.15 | GI82: 5 day e-pass | GJ82: 21.15 | GK82: 5 day e-pass | GL82: 21.15 | GM82: 5 day e-pass | GN82: 21.15 | GO82: 5 day e-pass | GP82: 21.15 | GQ82: 5 day e-pass | GR82: 21.15 | GS82: 5 day e-pass | GT82: 21.15 | GU82: 5 day e-pass | GV82: 21.15 | GW82: 5 day e-pass | GX82: 21.15 | GY82: 5 day e-pass | GZ82: 21.15 | HA82: 5 day e-pass | HB82: 21.15 | HC82: 5 day e-pass | HD82: 21.15 | HE82: 5 day e-pass | HF82: 21.15 | HG82: 5 day e-pass | HH82: 21.15 | HI82: 5 day e-pass | HJ82: 21.15 | HK82: 5 day e-pass | HL82: 21.15 | HM82: 5 day e-pass | HN82: 21.15 | HO82: 5 day e-pass | HP82: 21.15 | HQ82: 5 day e-pass | HR82: 21.15 | HS82: 5 day e-pass | HT82: 21.15 | HU82: 5 day e-pass | HV82: 21.15 | HW82: 5 day e-pass | HX82: 21.15 | HY82: 5 day e-pass | HZ82: 21.15 | IA82: 5 day e-pass | IB82: 21.15 | IC82: 5 day e-pass | ID82: 21.15 | IE82: 5 day e-pass | IF82: 21.15 | IG82: 5 day e-pass | IH82: 21.15 | II82: 5 day e-pass | IJ82: 21.15 | IK82: 5 day e-pass | IL82: 21.15 | IM82: 5 day e-pass | IN82: 21.15 | IO82: 5 day e-pass | IP82: 21.15 | IQ82: 5 day e-pass | IR82: 21.15 | IS82: 5 day e-pass | IT82: 21.15 | IU82: 5 day e-pass | IV82: 21.15 | IW82: 5 day e-pass | IX82: 21.15 | IY82: 5 day e-pass | IZ82: 21.15 | JA82: 5 day e-pass | JB82: 21.15 | JC82: 5 day e-pass | JD82: 21.15 | JE82: 5 day e-pass | JF82: 21.15 | JG82: 5 day e-pass | JH82: 21.15 | JI82: 5 day e-pass | JJ82: 21.15 | JK82: 5 day e-pass | JL82: 21.15 | JM82: 5 day e-pass | JN82: 21.15 | JO82: 5 day e-pass | JP82: 21.15 | JQ82: 5 day e-pass | JR82: 21.15 | JS82: 5 day e-pass | JT82: 21.15 | JU82: 5 day e-pass | JV82: 21.15 | JW82: 5 day e-pass | JX82: 21.15 | JY82: 5 day e-pass | JZ82: 21.15 | KA82: 5 day e-pass | KB82: 21.15 | KC82: 5 day e-pass | KD82: 21.15 | KE82: 5 day e-pass | KF82: 21.15 | KG82: 5 day e-pass | KH82: 21.15 | KI82: 5 day e-pass | KJ82: 21.15 | KK82: 5 day e-pass | KL82: 21.15 | KM82: 5 day e-pass | KN82: 21.15 | KO82: 5 day e-pass | KP82: 21.15 | KQ82: 5 day e-pass | KR82: 21.15 | KS82: 5 day e-pass | KT82: 21.15 | KU82: 5 day e-pass | KV82: 21.15 | KW82: 5 day e-pass | KX82: 21.15 | KY82: 5 day e-pass | KZ82: 21.15 | LA82: 5 day e-pass | LB82: 21.15 | LC82: 5 day e-pass | LD82: 21.15 | LE82: 5 day e-pass | LF82: 21.15 | LG82: 5 day e-pass | LH82: 21.15 | LI82: 5 day e-pass | LJ82: 21.15 | LK82: 5 day e-pass | LL82: 21.15 | LM82: 5 day e-pass | LN82: 21.15 | LO82: 5 day e-pass | LP82: 21.15 | LQ82: 5 day e-pass | LR82: 21.15 | LS82: 5 day e-pass | LT82: 21.15 | LU82: 5 day e-pass | LV82: 21.15 | LW82: 5 day e-pass | LX82: 21.15 | LY82: 5 day e-pass | LZ82: 21.15 | MA82: 5 day e-pass | MB82: 21.15 | MC82: 5 day e-pass | MD82: 21.15 | ME82: 5 day e-pass | MF82: 21.15 | MG82: 5 day e-pass | MH82: 21.15 | MI82: 5 day e-pass | MJ82: 21.15 | MK82: 5 day e-pass | ML82: 21.15 | MM82: 5 day e-pass | MN82: 21.15 | MO82: 5 day e-pass | MP82: 21.15 | MQ82: 5 day e-pass | MR82: 21.15 | MS82: 5 day e-pass | MT82: 21.15 | MU82: 5 day e-pass | MV82: 21.15 | MW82: 5 day e-pass | MX82: 21.15 | MY82: 5 day e-pass | MZ82: 21.15 | NA82: 5 day e-pass | NB82: 21.15 | NC82: 5 day e-pass | ND82: 21.15 | NE82: 5 day e-pass | NF82: 21.15 | NG82: 5 day e-pass | NH82: 21.15 | NI82: 5 day e-pass | NJ82: 21.15 | NK82: 5 day e-pass | NL82: 21.15 | NM82: 5 day e-pass | NN82: 21.15 | NO82: 5 day e-pass | NP82: 21.15 | NQ82: 5 day e-pass | NR82: 21.15 | NS82: 5 day e-pass | NT82: 21.15 | NU82: 5 day e-pass | NV82: 21.15 | NW82: 5 day e-pass | NX82: 21.15 | NY82: 5 day e-pass | NZ82: 21.15 | OA82: 5 day e-pass | OB82: 21.15 | OC82: 5 day e-pass | OD82: 21.15 | OE82: 5 day e-pass | OF82: 21.15 | OG82: 5 day e-pass | OH82: 21.15 | OI82: 5 day e-pass | OJ82: 21.15 | OK82: 5 day e-pass | OL82: 21.15 | OM82: 5 day e-pass | ON82: 21.15 | OO82: 5 day e-pass | OP82: 21.15 | OQ82: 5 day e-pass | OR82: 21.15 | OS82: 5 day e-pass | OT82: 21.15 | OU82: 5 day e-pass | OV82: 21.15 | OW82: 5 day e-pass | OX82: 21.15 | OY82: 5 day e-pass | OZ82: 21.15 | PA82: 5 day e-pass | PB82: 21.15 | PC82: 5 day e-pass | PD82: 21.15 | PE82: 5 day e-pass | PF82: 21.15 | PG82: 5 day e-pass | PH82: 21.15 | PI82: 5 day e-pass | PJ82: 21.15 | PK82: 5 day e-pass
A83: 2017-12-19 | B83: Tuesday | D83: 2 | FF83: 4.7 | FG83: ecash | FH83: 4.7 | FI83: ecash | FJ83: 4.7 | FK83: ecash
A84: 2017-12-20 | B84: Wednesday | D84: 2 | FH84: 4.7 | FI84: ecash | FJ84: 4.7 | FK84: ecash
A85: 2017-12-21 | B85: Thursday | D85: 2 | FJ85: 4.7 | FK85: ecash
A86: 2017-12-22 | B86: Friday | D86: 2
A87: 2017-12-23 | B87: Saturday | D87: 0 | FN87: 0 | FO87: ecash | FP87: 0 | FQ87: ecash | FR87: 0 | FS87: ecash | FT87: 0 | FU87: ecash | FV87: 0 | FW87: ecash | FX87: 0 | FY87: ecash | FZ87: 0 | GA87: ecash | GB87: 0 | GC87: ecash | GD87: 0 | GE87: ecash | GF87: 0 | GG87: ecash | GH87: 0 | GI87: ecash | GJ87: 0 | GK87: ecash | GL87: 0 | GM87: ecash | GN87: 0 | GO87: ecash | GP87: 0 | GQ87: ecash | GR87: 0 | GS87: ecash | GT87: 0 | GU87: ecash | GV87: 0 | GW87: ecash | GX87: 0 | GY87: ecash | GZ87: 0 | HA87: ecash | HB87: 0 | HC87: ecash | HD87: 0 | HE87: ecash | HF87: 0 | HG87: ecash | HH87: 0 | HI87: ecash | HJ87: 0 | HK87: ecash | HL87: 0 | HM87: ecash | HN87: 0 | HO87: ecash | HP87: 0 | HQ87: ecash | HR87: 0 | HS87: ecash | HT87: 0 | HU87: ecash | HV87: 0 | HW87: ecash | HX87: 0 | HY87: ecash | HZ87: 0 | IA87: ecash | IB87: 0 | IC87: ecash | ID87: 0 | IE87: ecash | IF87: 0 | IG87: ecash | IH87: 0 | II87: ecash | IJ87: 0 | IK87: ecash | IL87: 0 | IM87: ecash | IN87: 0 | IO87: ecash | IP87: 0 | IQ87: ecash | IR87: 0 | IS87: ecash | IT87: 0 | IU87: ecash | IV87: 0 | IW87: ecash | IX87: 0 | IY87: ecash | IZ87: 0 | JA87: ecash | JB87: 0 | JC87: ecash | JD87: 0 | JE87: ecash | JF87: 0 | JG87: ecash | JH87: 0 | JI87: ecash | JJ87: 0 | JK87: ecash | JL87: 0 | JM87: ecash | JN87: 0 | JO87: ecash | JP87: 0 | JQ87: ecash | JR87: 0 | JS87: ecash | JT87: 0 | JU87: ecash | JV87: 0 | JW87: ecash | JX87: 0 | JY87: ecash | JZ87: 0 | KA87: ecash | KB87: 0 | KC87: ecash | KD87: 0 | KE87: ecash | KF87: 0 | KG87: ecash | KH87: 0 | KI87: ecash | KJ87: 0 | KK87: ecash | KL87: 0 | KM87: ecash | KN87: 0 | KO87: ecash | KP87: 0 | KQ87: ecash | KR87: 0 | KS87: ecash | KT87: 0 | KU87: ecash | KV87: 0 | KW87: ecash | KX87: 0 | KY87: ecash | KZ87: 0 | LA87: ecash | LB87: 0 | LC87: ecash | LD87: 0 | LE87: ecash | LF87: 0 | LG87: ecash | LH87: 0 | LI87: ecash | LJ87: 0 | LK87: ecash | LL87: 0 | LM87: ecash | LN87: 0 | LO87: ecash | LP87: 0 | LQ87: ecash | LR87: 0 | LS87: ecash | LT87: 0 | LU87: ecash | LV87: 0 | LW87: ecash | LX87: 0 | LY87: ecash | LZ87: 0 | MA87: ecash | MB87: 0 | MC87: ecash | MD87: 0 | ME87: ecash | MF87: 0 | MG87: ecash | MH87: 0 | MI87: ecash | MJ87: 0 | MK87: ecash | ML87: 0 | MM87: ecash | MN87: 0 | MO87: ecash | MP87: 0 | MQ87: ecash | MR87: 0 | MS87: ecash | MT87: 0 | MU87: ecash | MV87: 0 | MW87: ecash | MX87: 0 | MY87: ecash | MZ87: 0 | NA87: ecash | NB87: 0 | NC87: ecash | ND87: 0 | NE87: ecash | NF87: 0 | NG87: ecash | NH87: 0 | NI87: ecash | NJ87: 0 | NK87: ecash | NL87: 0 | NM87: ecash | NN87: 0 | NO87: ecash | NP87: 0 | NQ87: ecash | NR87: 0 | NS87: ecash | NT87: 0 | NU87: ecash | NV87: 0 | NW87: ecash | NX87: 0 | NY87: ecash | NZ87: 0 | OA87: ecash | OB87: 0 | OC87: ecash | OD87: 0 | OE87: ecash | OF87: 0 | OG87: ecash | OH87: 0 | OI87: ecash | OJ87: 0 | OK87: ecash | OL87: 0 | OM87: ecash | ON87: 0 | OO87: ecash | OP87: 0 | OQ87: ecash | OR87: 0 | OS87: ecash | OT87: 0 | OU87: ecash | OV87: 0 | OW87: ecash | OX87: 0 | OY87: ecash | OZ87: 0 | PA87: ecash | PB87: 0 | PC87: ecash | PD87: 0 | PE87: ecash | PF87: 0 | PG87: ecash | PH87: 0 | PI87: ecash | PJ87: 0 | PK87: ecash
A88: 2017-12-24 | B88: Sunday | D88: 0 | FP88: 0 | FQ88: ecash | FR88: 0 | FS88: ecash | FT88: 0 | FU88: ecash | FV88: 0 | FW88: ecash | FX88: 0 | FY88: ecash | FZ88: 0 | GA88: ecash | GB88: 0 | GC88: ecash | GD88: 0 | GE88: ecash | GF88: 0 | GG88: ecash | GH88: 0 | GI88: ecash | GJ88: 0 | GK88: ecash | GL88: 0 | GM88: ecash | GN88: 0 | GO88: ecash | GP88: 0 | GQ88: ecash | GR88: 0 | GS88: ecash | GT88: 0 | GU88: ecash | GV88: 0 | GW88: ecash | GX88: 0 | GY88: ecash | GZ88: 0 | HA88: ecash | HB88: 0 | HC88: ecash | HD88: 0 | HE88: ecash | HF88: 0 | HG88: ecash | HH88: 0 | HI88: ecash | HJ88: 0 | HK88: ecash | HL88: 0 | HM88: ecash | HN88: 0 | HO88: ecash | HP88: 0 | HQ88: ecash | HR88: 0 | HS88: ecash | HT88: 0 | HU88: ecash | HV88: 0 | HW88: ecash | HX88: 0 | HY88: ecash | HZ88: 0 | IA88: ecash | IB88: 0 | IC88: ecash | ID88: 0 | IE88: ecash | IF88: 0 | IG88: ecash | IH88: 0 | II88: ecash | IJ88: 0 | IK88: ecash | IL88: 0 | IM88: ecash | IN88: 0 | IO88: ecash | IP88: 0 | IQ88: ecash | IR88: 0 | IS88: ecash | IT88: 0 | IU88: ecash | IV88: 0 | IW88: ecash | IX88: 0 | IY88: ecash | IZ88: 0 | JA88: ecash | JB88: 0 | JC88: ecash | JD88: 0 | JE88: ecash | JF88: 0 | JG88: ecash | JH88: 0 | JI88: ecash | JJ88: 0 | JK88: ecash | JL88: 0 | JM88: ecash | JN88: 0 | JO88: ecash | JP88: 0 | JQ88: ecash | JR88: 0 | JS88: ecash | JT88: 0 | JU88: ecash | JV88: 0 | JW88: ecash | JX88: 0 | JY88: ecash | JZ88: 0 | KA88: ecash | KB88: 0 | KC88: ecash | KD88: 0 | KE88: ecash | KF88: 0 | KG88: ecash | KH88: 0 | KI88: ecash | KJ88: 0 | KK88: ecash | KL88: 0 | KM88: ecash | KN88: 0 | KO88: ecash | KP88: 0 | KQ88: ecash | KR88: 0 | KS88: ecash | KT88: 0 | KU88: ecash | KV88: 0 | KW88: ecash | KX88: 0 | KY88: ecash | KZ88: 0 | LA88: ecash | LB88: 0 | LC88: ecash | LD88: 0 | LE88: ecash | LF88: 0 | LG88: ecash | LH88: 0 | LI88: ecash | LJ88: 0 | LK88: ecash | LL88: 0 | LM88: ecash | LN88: 0 | LO88: ecash | LP88: 0 | LQ88: ecash | LR88: 0 | LS88: ecash | LT88: 0 | LU88: ecash | LV88: 0 | LW88: ecash | LX88: 0 | LY88: ecash | LZ88: 0 | MA88: ecash | MB88: 0 | MC88: ecash | MD88: 0 | ME88: ecash | MF88: 0 | MG88: ecash | MH88: 0 | MI88: ecash | MJ88: 0 | MK88: ecash | ML88: 0 | MM88: ecash | MN88: 0 | MO88: ecash | MP88: 0 | MQ88: ecash | MR88: 0 | MS88: ecash | MT88: 0 | MU88: ecash | MV88: 0 | MW88: ecash | MX88: 0 | MY88: ecash | MZ88: 0 | NA88: ecash | NB88: 0 | NC88: ecash | ND88: 0 | NE88: ecash | NF88: 0 | NG88: ecash | NH88: 0 | NI88: ecash | NJ88: 0 | NK88: ecash | NL88: 0 | NM88: ecash | NN88: 0 | NO88: ecash | NP88: 0 | NQ88: ecash | NR88: 0 | NS88: ecash | NT88: 0 | NU88: ecash | NV88: 0 | NW88: ecash | NX88: 0 | NY88: ecash | NZ88: 0 | OA88: ecash | OB88: 0 | OC88: ecash | OD88: 0 | OE88: ecash | OF88: 0 | OG88: ecash | OH88: 0 | OI88: ecash | OJ88: 0 | OK88: ecash | OL88: 0 | OM88: ecash | ON88: 0 | OO88: ecash | OP88: 0 | OQ88: ecash | OR88: 0 | OS88: ecash | OT88: 0 | OU88: ecash | OV88: 0 | OW88: ecash | OX88: 0 | OY88: ecash | OZ88: 0 | PA88: ecash | PB88: 0 | PC88: ecash | PD88: 0 | PE88: ecash | PF88: 0 | PG88: ecash | PH88: 0 | PI88: ecash | PJ88: 0 | PK88: ecash
A89: 2017-12-25 | B89: Monday | C89: Christmas | D89: 0 | FR89: 0 | FS89: ecash | FT89: 0 | FU89: ecash | FV89: 0 | FW89: ecash | FX89: 0 | FY89: ecash | FZ89: 0 | GA89: ecash | GB89: 0 | GC89: ecash | GD89: 0 | GE89: ecash | GF89: 0 | GG89: ecash | GH89: 0 | GI89: ecash | GJ89: 0 | GK89: ecash | GL89: 0 | GM89: ecash | GN89: 0 | GO89: ecash | GP89: 0 | GQ89: ecash | GR89: 0 | GS89: ecash | GT89: 0 | GU89: ecash | GV89: 0 | GW89: ecash | GX89: 0 | GY89: ecash | GZ89: 0 | HA89: ecash | HB89: 0 | HC89: ecash | HD89: 0 | HE89: ecash | HF89: 0 | HG89: ecash | HH89: 0 | HI89: ecash | HJ89: 0 | HK89: ecash | HL89: 0 | HM89: ecash | HN89: 0 | HO89: ecash | HP89: 0 | HQ89: ecash | HR89: 0 | HS89: ecash | HT89: 0 | HU89: ecash | HV89: 0 | HW89: ecash | HX89: 0 | HY89: ecash | HZ89: 0 | IA89: ecash | IB89: 0 | IC89: ecash | ID89: 0 | IE89: ecash | IF89: 0 | IG89: ecash | IH89: 0 | II89: ecash | IJ89: 0 | IK89: ecash | IL89: 0 | IM89: ecash | IN89: 0 | IO89: ecash | IP89: 0 | IQ89: ecash | IR89: 0 | IS89: ecash | IT89: 0 | IU89: ecash | IV89: 0 | IW89: ecash | IX89: 0 | IY89: ecash | IZ89: 0 | JA89: ecash | JB89: 0 | JC89: ecash | JD89: 0 | JE89: ecash | JF89: 0 | JG89: ecash | JH89: 0 | JI89: ecash | JJ89: 0 | JK89: ecash | JL89: 0 | JM89: ecash | JN89: 0 | JO89: ecash | JP89: 0 | JQ89: ecash | JR89: 0 | JS89: ecash | JT89: 0 | JU89: ecash | JV89: 0 | JW89: ecash | JX89: 0 | JY89: ecash | JZ89: 0 | KA89: ecash | KB89: 0 | KC89: ecash | KD89: 0 | KE89: ecash | KF89: 0 | KG89: ecash | KH89: 0 | KI89: ecash | KJ89: 0 | KK89: ecash | KL89: 0 | KM89: ecash | KN89: 0 | KO89: ecash | KP89: 0 | KQ89: ecash | KR89: 0 | KS89: ecash | KT89: 0 | KU89: ecash | KV89: 0 | KW89: ecash | KX89: 0 | KY89: ecash | KZ89: 0 | LA89: ecash | LB89: 0 | LC89: ecash | LD89: 0 | LE89: ecash | LF89: 0 | LG89: ecash | LH89: 0 | LI89: ecash | LJ89: 0 | LK89: ecash | LL89: 0 | LM89: ecash | LN89: 0 | LO89: ecash | LP89: 0 | LQ89: ecash | LR89: 0 | LS89: ecash | LT89: 0 | LU89: ecash | LV89: 0 | LW89: ecash | LX89: 0 | LY89: ecash | LZ89: 0 | MA89: ecash | MB89: 0 | MC89: ecash | MD89: 0 | ME89: ecash | MF89: 0 | MG89: ecash | MH89: 0 | MI89: ecash | MJ89: 0 | MK89: ecash | ML89: 0 | MM89: ecash | MN89: 0 | MO89: ecash | MP89: 0 | MQ89: ecash | MR89: 0 | MS89: ecash | MT89: 0 | MU89: ecash | MV89: 0 | MW89: ecash | MX89: 0 | MY89: ecash | MZ89: 0 | NA89: ecash | NB89: 0 | NC89: ecash | ND89: 0 | NE89: ecash | NF89: 0 | NG89: ecash | NH89: 0 | NI89: ecash | NJ89: 0 | NK89: ecash | NL89: 0 | NM89: ecash | NN89: 0 | NO89: ecash | NP89: 0 | NQ89: ecash | NR89: 0 | NS89: ecash | NT89: 0 | NU89: ecash | NV89: 0 | NW89: ecash | NX89: 0 | NY89: ecash | NZ89: 0 | OA89: ecash | OB89: 0 | OC89: ecash | OD89: 0 | OE89: ecash | OF89: 0 | OG89: ecash | OH89: 0 | OI89: ecash | OJ89: 0 | OK89: ecash | OL89: 0 | OM89: ecash | ON89: 0 | OO89: ecash | OP89: 0 | OQ89: ecash | OR89: 0 | OS89: ecash | OT89: 0 | OU89: ecash | OV89: 0 | OW89: ecash | OX89: 0 | OY89: ecash | OZ89: 0 | PA89: ecash | PB89: 0 | PC89: ecash | PD89: 0 | PE89: ecash | PF89: 0 | PG89: ecash | PH89: 0 | PI89: ecash | PJ89: 0 | PK89: ecash
A90: 2017-12-26 | B90: Tuesday | C90: Boxing Day | D90: 0 | FT90: 0 | FU90: ecash | FV90: 0 | FW90: ecash | FX90: 0 | FY90: ecash | FZ90: 0 | GA90: ecash | GB90: 0 | GC90: ecash | GD90: 0 | GE90: ecash | GF90: 0 | GG90: ecash | GH90: 0 | GI90: ecash | GJ90: 0 | GK90: ecash | GL90: 0 | GM90: ecash | GN90: 0 | GO90: ecash | GP90: 0 | GQ90: ecash | GR90: 0 | GS90: ecash | GT90: 0 | GU90: ecash | GV90: 0 | GW90: ecash | GX90: 0 | GY90: ecash | GZ90: 0 | HA90: ecash | HB90: 0 | HC90: ecash | HD90: 0 | HE90: ecash | HF90: 0 | HG90: ecash | HH90: 0 | HI90: ecash | HJ90: 0 | HK90: ecash | HL90: 0 | HM90: ecash | HN90: 0 | HO90: ecash | HP90: 0 | HQ90: ecash | HR90: 0 | HS90: ecash | HT90: 0 | HU90: ecash | HV90: 0 | HW90: ecash | HX90: 0 | HY90: ecash | HZ90: 0 | IA90: ecash | IB90: 0 | IC90: ecash | ID90: 0 | IE90: ecash | IF90: 0 | IG90: ecash | IH90: 0 | II90: ecash | IJ90: 0 | IK90: ecash | IL90: 0 | IM90: ecash | IN90: 0 | IO90: ecash | IP90: 0 | IQ90: ecash | IR90: 0 | IS90: ecash | IT90: 0 | IU90: ecash | IV90: 0 | IW90: ecash | IX90: 0 | IY90: ecash | IZ90: 0 | JA90: ecash | JB90: 0 | JC90: ecash | JD90: 0 | JE90: ecash | JF90: 0 | JG90: ecash | JH90: 0 | JI90: ecash | JJ90: 0 | JK90: ecash | JL90: 0 | JM90: ecash | JN90: 0 | JO90: ecash | JP90: 0 | JQ90: ecash | JR90: 0 | JS90: ecash | JT90: 0 | JU90: ecash | JV90: 0 | JW90: ecash | JX90: 0 | JY90: ecash | JZ90: 0 | KA90: ecash | KB90: 0 | KC90: ecash | KD90: 0 | KE90: ecash | KF90: 0 | KG90: ecash | KH90: 0 | KI90: ecash | KJ90: 0 | KK90: ecash | KL90: 0 | KM90: ecash | KN90: 0 | KO90: ecash | KP90: 0 | KQ90: ecash | KR90: 0 | KS90: ecash | KT90: 0 | KU90: ecash | KV90: 0 | KW90: ecash | KX90: 0 | KY90: ecash | KZ90: 0 | LA90: ecash | LB90: 0 | LC90: ecash | LD90: 0 | LE90: ecash | LF90: 0 | LG90: ecash | LH90: 0 | LI90: ecash | LJ90: 0 | LK90: ecash | LL90: 0 | LM90: ecash | LN90: 0 | LO90: ecash | LP90: 0 | LQ90: ecash | LR90: 0 | LS90: ecash | LT90: 0 | LU90: ecash | LV90: 0 | LW90: ecash | LX90: 0 | LY90: ecash | LZ90: 0 | MA90: ecash | MB90: 0 | MC90: ecash | MD90: 0 | ME90: ecash | MF90: 0 | MG90: ecash | MH90: 0 | MI90: ecash | MJ90: 0 | MK90: ecash | ML90: 0 | MM90: ecash | MN90: 0 | MO90: ecash | MP90: 0 | MQ90: ecash | MR90: 0 | MS90: ecash | MT90: 0 | MU90: ecash | MV90: 0 | MW90: ecash | MX90: 0 | MY90: ecash | MZ90: 0 | NA90: ecash | NB90: 0 | NC90: ecash | ND90: 0 | NE90: ecash | NF90: 0 | NG90: ecash | NH90: 0 | NI90: ecash | NJ90: 0 | NK90: ecash | NL90: 0 | NM90: ecash | NN90: 0 | NO90: ecash | NP90: 0 | NQ90: ecash | NR90: 0 | NS90: ecash | NT90: 0 | NU90: ecash | NV90: 0 | NW90: ecash | NX90: 0 | NY90: ecash | NZ90: 0 | OA90: ecash | OB90: 0 | OC90: ecash | OD90: 0 | OE90: ecash | OF90: 0 | OG90: ecash | OH90: 0 | OI90: ecash | OJ90: 0 | OK90: ecash | OL90: 0 | OM90: ecash | ON90: 0 | OO90: ecash | OP90: 0 | OQ90: ecash | OR90: 0 | OS90: ecash | OT90: 0 | OU90: ecash | OV90: 0 | OW90: ecash | OX90: 0 | OY90: ecash | OZ90: 0 | PA90: ecash | PB90: 0 | PC90: ecash | PD90: 0 | PE90: ecash | PF90: 0 | PG90: ecash | PH90: 0 | PI90: ecash | PJ90: 0 | PK90: ecash
A91: 2017-12-27 | B91: Wednesday | D91: 2 | FV91: 4.7 | FW91: ecash | FX91: 4.7 | FY91: ecash | FZ91: 4.7 | GA91: ecash | GB91: 4.7 | GC91: ecash | GD91: 4.7 | GE91: ecash | GF91: 4.7 | GG91: ecash | GH91: 4.7 | GI91: ecash | GJ91: 4.7 | GK91: ecash | GL91: 4.7 | GM91: ecash | GN91: 4.7 | GO91: ecash | GP91: 4.7 | GQ91: ecash | GR91: 4.7 | GS91: ecash | GT91: 4.7 | GU91: ecash | GV91: 4.7 | GW91: ecash | GX91: 4.7 | GY91: ecash | GZ91: 4.7 | HA91: ecash | HB91: 4.7 | HC91: ecash | HD91: 4.7 | HE91: ecash | HF91: 4.7 | HG91: ecash | HH91: 4.7 | HI91: ecash | HJ91: 4.7 | HK91: ecash | HL91: 4.7 | HM91: ecash | HN91: 4.7 | HO91: ecash | HP91: 4.7 | HQ91: ecash | HR91: 4.7 | HS91: ecash | HT91: 4.7 | HU91: ecash | HV91: 4.7 | HW91: ecash | HX91: 4.7 | HY91: ecash | HZ91: 4.7 | IA91: ecash | IB91: 4.7 | IC91: ecash | ID91: 4.7 | IE91: ecash | IF91: 4.7 | IG91: ecash | IH91: 4.7 | II91: ecash | IJ91: 4.7 | IK91: ecash | IL91: 4.7 | IM91: ecash | IN91: 4.7 | IO91: ecash | IP91: 4.7 | IQ91: ecash | IR91: 4.7 | IS91: ecash | IT91: 4.7 | IU91: ecash | IV91: 4.7 | IW91: ecash | IX91: 4.7 | IY91: ecash | IZ91: 4.7 | JA91: ecash | JB91: 4.7 | JC91: ecash | JD91: 4.7 | JE91: ecash | JF91: 4.7 | JG91: ecash | JH91: 4.7 | JI91: ecash | JJ91: 4.7 | JK91: ecash | JL91: 4.7 | JM91: ecash | JN91: 4.7 | JO91: ecash | JP91: 4.7 | JQ91: ecash | JR91: 4.7 | JS91: ecash | JT91: 4.7 | JU91: ecash | JV91: 4.7 | JW91: ecash | JX91: 4.7 | JY91: ecash | JZ91: 4.7 | KA91: ecash | KB91: 4.7 | KC91: ecash | KD91: 4.7 | KE91: ecash | KF91: 4.7 | KG91: ecash | KH91: 4.7 | KI91: ecash | KJ91: 4.7 | KK91: ecash | KL91: 4.7 | KM91: ecash | KN91: 4.7 | KO91: ecash | KP91: 4.7 | KQ91: ecash | KR91: 4.7 | KS91: ecash | KT91: 4.7 | KU91: ecash | KV91: 4.7 | KW91: ecash | KX91: 4.7 | KY91: ecash | KZ91: 4.7 | LA91: ecash | LB91: 4.7 | LC91: ecash | LD91: 4.7 | LE91: ecash | LF91: 4.7 | LG91: ecash | LH91: 4.7 | LI91: ecash | LJ91: 4.7 | LK91: ecash | LL91: 4.7 | LM91: ecash | LN91: 4.7 | LO91: ecash | LP91: 4.7 | LQ91: ecash | LR91: 4.7 | LS91: ecash | LT91: 4.7 | LU91: ecash | LV91: 4.7 | LW91: ecash | LX91: 4.7 | LY91: ecash | LZ91: 4.7 | MA91: ecash | MB91: 4.7 | MC91: ecash | MD91: 4.7 | ME91: ecash | MF91: 4.7 | MG91: ecash | MH91: 4.7 | MI91: ecash | MJ91: 4.7 | MK91: ecash | ML91: 4.7 | MM91: ecash | MN91: 4.7 | MO91: ecash | MP91: 4.7 | MQ91: ecash | MR91: 4.7 | MS91: ecash | MT91: 4.7 | MU91: ecash | MV91: 4.7 | MW91: ecash | MX91: 4.7 | MY91: ecash | MZ91: 4.7 | NA91: ecash | NB91: 4.7 | NC91: ecash | ND91: 4.7 | NE91: ecash | NF91: 4.7 | NG91: ecash | NH91: 4.7 | NI91: ecash | NJ91: 4.7 | NK91: ecash | NL91: 4.7 | NM91: ecash | NN91: 4.7 | NO91: ecash | NP91: 4.7 | NQ91: ecash | NR91: 4.7 | NS91: ecash | NT91: 4.7 | NU91: ecash | NV91: 4.7 | NW91: ecash | NX91: 4.7 | NY91: ecash | NZ91: 4.7 | OA91: ecash | OB91: 4.7 | OC91: ecash | OD91: 4.7 | OE91: ecash | OF91: 4.7 | OG91: ecash | OH91: 4.7 | OI91: ecash | OJ91: 4.7 | OK91: ecash | OL91: 4.7 | OM91: ecash | ON91: 4.7 | OO91: ecash | OP91: 4.7 | OQ91: ecash | OR91: 4.7 | OS91: ecash | OT91: 4.7 | OU91: ecash | OV91: 4.7 | OW91: ecash | OX91: 4.7 | OY91: ecash | OZ91: 4.7 | PA91: ecash | PB91: 4.7 | PC91: ecash | PD91: 4.7 | PE91: ecash | PF91: 4.7 | PG91: ecash | PH91: 4.7 | PI91: ecash | PJ91: 4.7 | PK91: ecash
A92: 2017-12-28 | B92: Thursday | D92: 2 | FX92: 4.7 | FY92: ecash | FZ92: 4.7 | GA92: ecash | GB92: 4.7 | GC92: ecash | GD92: 4.7 | GE92: ecash | GF92: 4.7 | GG92: ecash | GH92: 4.7 | GI92: ecash | GJ92: 4.7 | GK92: ecash | GL92: 4.7 | GM92: ecash | GN92: 4.7 | GO92: ecash | GP92: 4.7 | GQ92: ecash | GR92: 4.7 | GS92: ecash | GT92: 4.7 | GU92: ecash | GV92: 4.7 | GW92: ecash | GX92: 4.7 | GY92: ecash | GZ92: 4.7 | HA92: ecash | HB92: 4.7 | HC92: ecash | HD92: 4.7 | HE92: ecash | HF92: 4.7 | HG92: ecash | HH92: 4.7 | HI92: ecash | HJ92: 4.7 | HK92: ecash | HL92: 4.7 | HM92: ecash | HN92: 4.7 | HO92: ecash | HP92: 4.7 | HQ92: ecash | HR92: 4.7 | HS92: ecash | HT92: 4.7 | HU92: ecash | HV92: 4.7 | HW92: ecash | HX92: 4.7 | HY92: ecash | HZ92: 4.7 | IA92: ecash | IB92: 4.7 | IC92: ecash | ID92: 4.7 | IE92: ecash | IF92: 4.7 | IG92: ecash | IH92: 4.7 | II92: ecash | IJ92: 4.7 | IK92: ecash | IL92: 4.7 | IM92: ecash | IN92: 4.7 | IO92: ecash | IP92: 4.7 | IQ92: ecash | IR92: 4.7 | IS92: ecash | IT92: 4.7 | IU92: ecash | IV92: 4.7 | IW92: ecash | IX92: 4.7 | IY92: ecash | IZ92: 4.7 | JA92: ecash | JB92: 4.7 | JC92: ecash | JD92: 4.7 | JE92: ecash | JF92: 4.7 | JG92: ecash | JH92: 4.7 | JI92: ecash | JJ92: 4.7 | JK92: ecash | JL92: 4.7 | JM92: ecash | JN92: 4.7 | JO92: ecash | JP92: 4.7 | JQ92: ecash | JR92: 4.7 | JS92: ecash | JT92: 4.7 | JU92: ecash | JV92: 4.7 | JW92: ecash | JX92: 4.7 | JY92: ecash | JZ92: 4.7 | KA92: ecash | KB92: 4.7 | KC92: ecash | KD92: 4.7 | KE92: ecash | KF92: 4.7 | KG92: ecash | KH92: 4.7 | KI92: ecash | KJ92: 4.7 | KK92: ecash | KL92: 4.7 | KM92: ecash | KN92: 4.7 | KO92: ecash | KP92: 4.7 | KQ92: ecash | KR92: 4.7 | KS92: ecash | KT92: 4.7 | KU92: ecash | KV92: 4.7 | KW92: ecash | KX92: 4.7 | KY92: ecash | KZ92: 4.7 | LA92: ecash | LB92: 4.7 | LC92: ecash | LD92: 4.7 | LE92: ecash | LF92: 4.7 | LG92: ecash | LH92: 4.7 | LI92: ecash | LJ92: 4.7 | LK92: ecash | LL92: 4.7 | LM92: ecash | LN92: 4.7 | LO92: ecash | LP92: 4.7 | LQ92: ecash | LR92: 4.7 | LS92: ecash | LT92: 4.7 | LU92: ecash | LV92: 4.7 | LW92: ecash | LX92: 4.7 | LY92: ecash | LZ92: 4.7 | MA92: ecash | MB92: 4.7 | MC92: ecash | MD92: 4.7 | ME92: ecash | MF92: 4.7 | MG92: ecash | MH92: 4.7 | MI92: ecash | MJ92: 4.7 | MK92: ecash | ML92: 4.7 | MM92: ecash | MN92: 4.7 | MO92: ecash | MP92: 4.7 | MQ92: ecash | MR92: 4.7 | MS92: ecash | MT92: 4.7 | MU92: ecash | MV92: 4.7 | MW92: ecash | MX92: 4.7 | MY92: ecash | MZ92: 4.7 | NA92: ecash | NB92: 4.7 | NC92: ecash | ND92: 4.7 | NE92: ecash | NF92: 4.7 | NG92: ecash | NH92: 4.7 | NI92: ecash | NJ92: 4.7 | NK92: ecash | NL92: 4.7 | NM92: ecash | NN92: 4.7 | NO92: ecash | NP92: 4.7 | NQ92: ecash | NR92: 4.7 | NS92: ecash | NT92: 4.7 | NU92: ecash | NV92: 4.7 | NW92: ecash | NX92: 4.7 | NY92: ecash | NZ92: 4.7 | OA92: ecash | OB92: 4.7 | OC92: ecash | OD92: 4.7 | OE92: ecash | OF92: 4.7 | OG92: ecash | OH92: 4.7 | OI92: ecash | OJ92: 4.7 | OK92: ecash | OL92: 4.7 | OM92: ecash | ON92: 4.7 | OO92: ecash | OP92: 4.7 | OQ92: ecash | OR92: 4.7 | OS92: ecash | OT92: 4.7 | OU92: ecash | OV92: 4.7 | OW92: ecash | OX92: 4.7 | OY92: ecash | OZ92: 4.7 | PA92: ecash | PB92: 4.7 | PC92: ecash | PD92: 4.7 | PE92: ecash | PF92: 4.7 | PG92: ecash | PH92: 4.7 | PI92: ecash | PJ92: 4.7 | PK92: ecash
A93: 2017-12-29 | B93: Friday | D93: 2 | FZ93: 4.7 | GA93: ecash | GB93: 4.7 | GC93: ecash | GD93: 4.7 | GE93: ecash | GF93: 4.7 | GG93: ecash | GH93: 4.7 | GI93: ecash | GJ93: 4.7 | GK93: ecash | GL93: 4.7 | GM93: ecash | GN93: 4.7 | GO93: ecash | GP93: 4.7 | GQ93: ecash | GR93: 4.7 | GS93: ecash | GT93: 4.7 | GU93: ecash | GV93: 4.7 | GW93: ecash | GX93: 4.7 | GY93: ecash | GZ93: 4.7 | HA93: ecash | HB93: 4.7 | HC93: ecash | HD93: 4.7 | HE93: ecash | HF93: 4.7 | HG93: ecash | HH93: 4.7 | HI93: ecash | HJ93: 4.7 | HK93: ecash | HL93: 4.7 | HM93: ecash | HN93: 4.7 | HO93: ecash | HP93: 4.7 | HQ93: ecash | HR93: 4.7 | HS93: ecash | HT93: 4.7 | HU93: ecash | HV93: 4.7 | HW93: ecash | HX93: 4.7 | HY93: ecash | HZ93: 4.7 | IA93: ecash | IB93: 4.7 | IC93: ecash | ID93: 4.7 | IE93: ecash | IF93: 4.7 | IG93: ecash | IH93: 4.7 | II93: ecash | IJ93: 4.7 | IK93: ecash | IL93: 4.7 | IM93: ecash | IN93: 4.7 | IO93: ecash | IP93: 4.7 | IQ93: ecash | IR93: 4.7 | IS93: ecash | IT93: 4.7 | IU93: ecash | IV93: 4.7 | IW93: ecash | IX93: 4.7 | IY93: ecash | IZ93: 4.7 | JA93: ecash | JB93: 4.7 | JC93: ecash | JD93: 4.7 | JE93: ecash | JF93: 4.7 | JG93: ecash | JH93: 4.7 | JI93: ecash | JJ93: 4.7 | JK93: ecash | JL93: 4.7 | JM93: ecash | JN93: 4.7 | JO93: ecash | JP93: 4.7 | JQ93: ecash | JR93: 4.7 | JS93: ecash | JT93: 4.7 | JU93: ecash | JV93: 4.7 | JW93: ecash | JX93: 4.7 | JY93: ecash | JZ93: 4.7 | KA93: ecash | KB93: 4.7 | KC93: ecash | KD93: 4.7 | KE93: ecash | KF93: 4.7 | KG93: ecash | KH93: 4.7 | KI93: ecash | KJ93: 4.7 | KK93: ecash | KL93: 4.7 | KM93: ecash | KN93: 4.7 | KO93: ecash | KP93: 4.7 | KQ93: ecash | KR93: 4.7 | KS93: ecash | KT93: 4.7 | KU93: ecash | KV93: 4.7 | KW93: ecash | KX93: 4.7 | KY93: ecash | KZ93: 4.7 | LA93: ecash | LB93: 4.7 | LC93: ecash | LD93: 4.7 | LE93: ecash | LF93: 4.7 | LG93: ecash | LH93: 4.7 | LI93: ecash | LJ93: 4.7 | LK93: ecash | LL93: 4.7 | LM93: ecash | LN93: 4.7 | LO93: ecash | LP93: 4.7 | LQ93: ecash | LR93: 4.7 | LS93: ecash | LT93: 4.7 | LU93: ecash | LV93: 4.7 | LW93: ecash | LX93: 4.7 | LY93: ecash | LZ93: 4.7 | MA93: ecash | MB93: 4.7 | MC93: ecash | MD93: 4.7 | ME93: ecash | MF93: 4.7 | MG93: ecash | MH93: 4.7 | MI93: ecash | MJ93: 4.7 | MK93: ecash | ML93: 4.7 | MM93: ecash | MN93: 4.7 | MO93: ecash | MP93: 4.7 | MQ93: ecash | MR93: 4.7 | MS93: ecash | MT93: 4.7 | MU93: ecash | MV93: 4.7 | MW93: ecash | MX93: 4.7 | MY93: ecash | MZ93: 4.7 | NA93: ecash | NB93: 4.7 | NC93: ecash | ND93: 4.7 | NE93: ecash | NF93: 4.7 | NG93: ecash | NH93: 4.7 | NI93: ecash | NJ93: 4.7 | NK93: ecash | NL93: 4.7 | NM93: ecash | NN93: 4.7 | NO93: ecash | NP93: 4.7 | NQ93: ecash | NR93: 4.7 | NS93: ecash | NT93: 4.7 | NU93: ecash | NV93: 4.7 | NW93: ecash | NX93: 4.7 | NY93: ecash | NZ93: 4.7 | OA93: ecash | OB93: 4.7 | OC93: ecash | OD93: 4.7 | OE93: ecash | OF93: 4.7 | OG93: ecash | OH93: 4.7 | OI93: ecash | OJ93: 4.7 | OK93: ecash | OL93: 4.7 | OM93: ecash | ON93: 4.7 | OO93: ecash | OP93: 4.7 | OQ93: ecash | OR93: 4.7 | OS93: ecash | OT93: 4.7 | OU93: ecash | OV93: 4.7 | OW93: ecash | OX93: 4.7 | OY93: ecash | OZ93: 4.7 | PA93: ecash | PB93: 4.7 | PC93: ecash | PD93: 4.7 | PE93: ecash | PF93: 4.7 | PG93: ecash | PH93: 4.7 | PI93: ecash | PJ93: 4.7 | PK93: ecash
A94: 2017-12-30 | B94: Saturday | D94: 0 | GB94: 0 | GC94: ecash | GD94: 0 | GE94: ecash | GF94: 0 | GG94: ecash | GH94: 0 | GI94: ecash | GJ94: 0 | GK94: ecash | GL94: 0 | GM94: ecash | GN94: 0 | GO94: ecash | GP94: 0 | GQ94: ecash | GR94: 0 | GS94: ecash | GT94: 0 | GU94: ecash | GV94: 0 | GW94: ecash | GX94: 0 | GY94: ecash | GZ94: 0 | HA94: ecash | HB94: 0 | HC94: ecash | HD94: 0 | HE94: ecash | HF94: 0 | HG94: ecash | HH94: 0 | HI94: ecash | HJ94: 0 | HK94: ecash | HL94: 0 | HM94: ecash | HN94: 0 | HO94: ecash | HP94: 0 | HQ94: ecash | HR94: 0 | HS94: ecash | HT94: 0 | HU94: ecash | HV94: 0 | HW94: ecash | HX94: 0 | HY94: ecash | HZ94: 0 | IA94: ecash | IB94: 0 | IC94: ecash | ID94: 0 | IE94: ecash | IF94: 0 | IG94: ecash | IH94: 0 | II94: ecash | IJ94: 0 | IK94: ecash | IL94: 0 | IM94: ecash | IN94: 0 | IO94: ecash | IP94: 0 | IQ94: ecash | IR94: 0 | IS94: ecash | IT94: 0 | IU94: ecash | IV94: 0 | IW94: ecash | IX94: 0 | IY94: ecash | IZ94: 0 | JA94: ecash | JB94: 0 | JC94: ecash | JD94: 0 | JE94: ecash | JF94: 0 | JG94: ecash | JH94: 0 | JI94: ecash | JJ94: 0 | JK94: ecash | JL94: 0 | JM94: ecash | JN94: 0 | JO94: ecash | JP94: 0 | JQ94: ecash | JR94: 0 | JS94: ecash | JT94: 0 | JU94: ecash | JV94: 0 | JW94: ecash | JX94: 0 | JY94: ecash | JZ94: 0 | KA94: ecash | KB94: 0 | KC94: ecash | KD94: 0 | KE94: ecash | KF94: 0 | KG94: ecash | KH94: 0 | KI94: ecash | KJ94: 0 | KK94: ecash | KL94: 0 | KM94: ecash | KN94: 0 | KO94: ecash | KP94: 0 | KQ94: ecash | KR94: 0 | KS94: ecash | KT94: 0 | KU94: ecash | KV94: 0 | KW94: ecash | KX94: 0 | KY94: ecash | KZ94: 0 | LA94: ecash | LB94: 0 | LC94: ecash | LD94: 0 | LE94: ecash | LF94: 0 | LG94: ecash | LH94: 0 | LI94: ecash | LJ94: 0 | LK94: ecash | LL94: 0 | LM94: ecash | LN94: 0 | LO94: ecash | LP94: 0 | LQ94: ecash | LR94: 0 | LS94: ecash | LT94: 0 | LU94: ecash | LV94: 0 | LW94: ecash | LX94: 0 | LY94: ecash | LZ94: 0 | MA94: ecash | MB94: 0 | MC94: ecash | MD94: 0 | ME94: ecash | MF94: 0 | MG94: ecash | MH94: 0 | MI94: ecash | MJ94: 0 | MK94: ecash | ML94: 0 | MM94: ecash | MN94: 0 | MO94: ecash | MP94: 0 | MQ94: ecash | MR94: 0 | MS94: ecash | MT94: 0 | MU94: ecash | MV94: 0 | MW94: ecash | MX94: 0 | MY94: ecash | MZ94: 0 | NA94: ecash | NB94: 0 | NC94: ecash | ND94: 0 | NE94: ecash | NF94: 0 | NG94: ecash | NH94: 0 | NI94: ecash | NJ94: 0 | NK94: ecash | NL94: 0 | NM94: ecash | NN94: 0 | NO94: ecash | NP94: 0 | NQ94: ecash | NR94: 0 | NS94: ecash | NT94: 0 | NU94: ecash | NV94: 0 | NW94: ecash | NX94: 0 | NY94: ecash | NZ94: 0 | OA94: ecash | OB94: 0 | OC94: ecash | OD94: 0 | OE94: ecash | OF94: 0 | OG94: ecash | OH94: 0 | OI94: ecash | OJ94: 0 | OK94: ecash | OL94: 0 | OM94: ecash | ON94: 0 | OO94: ecash | OP94: 0 | OQ94: ecash | OR94: 0 | OS94: ecash | OT94: 0 | OU94: ecash | OV94: 0 | OW94: ecash | OX94: 0 | OY94: ecash | OZ94: 0 | PA94: ecash | PB94: 0 | PC94: ecash | PD94: 0 | PE94: ecash | PF94: 0 | PG94: ecash | PH94: 0 | PI94: ecash | PJ94: 0 | PK94: ecash
A95: 2017-12-31 | B95: Sunday | D95: 0 | GD95: 0 | GE95: ecash | GF95: 0 | GG95: ecash | GH95: 0 | GI95: ecash | GJ95: 0 | GK95: ecash | GL95: 0 | GM95: ecash | GN95: 0 | GO95: ecash | GP95: 0 | GQ95: ecash | GR95: 0 | GS95: ecash | GT95: 0 | GU95: ecash | GV95: 0 | GW95: ecash | GX95: 0 | GY95: ecash | GZ95: 0 | HA95: ecash | HB95: 0 | HC95: ecash | HD95: 0 | HE95: ecash | HF95: 0 | HG95: ecash | HH95: 0 | HI95: ecash | HJ95: 0 | HK95: ecash | HL95: 0 | HM95: ecash | HN95: 0 | HO95: ecash | HP95: 0 | HQ95: ecash | HR95: 0 | HS95: ecash | HT95: 0 | HU95: ecash | HV95: 0 | HW95: ecash | HX95: 0 | HY95: ecash | HZ95: 0 | IA95: ecash | IB95: 0 | IC95: ecash | ID95: 0 | IE95: ecash | IF95: 0 | IG95: ecash | IH95: 0 | II95: ecash | IJ95: 0 | IK95: ecash | IL95: 0 | IM95: ecash | IN95: 0 | IO95: ecash | IP95: 0 | IQ95: ecash | IR95: 0 | IS95: ecash | IT95: 0 | IU95: ecash | IV95: 0 | IW95: ecash | IX95: 0 | IY95: ecash | IZ95: 0 | JA95: ecash | JB95: 0 | JC95: ecash | JD95: 0 | JE95: ecash | JF95: 0 | JG95: ecash | JH95: 0 | JI95: ecash | JJ95: 0 | JK95: ecash | JL95: 0 | JM95: ecash | JN95: 0 | JO95: ecash | JP95: 0 | JQ95: ecash | JR95: 0 | JS95: ecash | JT95: 0 | JU95: ecash | JV95: 0 | JW95: ecash | JX95: 0 | JY95: ecash | JZ95: 0 | KA95: ecash | KB95: 0 | KC95: ecash | KD95: 0 | KE95: ecash | KF95: 0 | KG95: ecash | KH95: 0 | KI95: ecash | KJ95: 0 | KK95: ecash | KL95: 0 | KM95: ecash | KN95: 0 | KO95: ecash | KP95: 0 | KQ95: ecash | KR95: 0 | KS95: ecash | KT95: 0 | KU95: ecash | KV95: 0 | KW95: ecash | KX95: 0 | KY95: ecash | KZ95: 0 | LA95: ecash | LB95: 0 | LC95: ecash | LD95: 0 | LE95: ecash | LF95: 0 | LG95: ecash | LH95: 0 | LI95: ecash | LJ95: 0 | LK95: ecash | LL95: 0 | LM95: ecash | LN95: 0 | LO95: ecash | LP95: 0 | LQ95: ecash | LR95: 0 | LS95: ecash | LT95: 0 | LU95: ecash | LV95: 0 | LW95: ecash | LX95: 0 | LY95: ecash | LZ95: 0 | MA95: ecash | MB95: 0 | MC95: ecash | MD95: 0 | ME95: ecash | MF95: 0 | MG95: ecash | MH95: 0 | MI95: ecash | MJ95: 0 | MK95: ecash | ML95: 0 | MM95: ecash | MN95: 0 | MO95: ecash | MP95: 0 | MQ95: ecash | MR95: 0 | MS95: ecash | MT95: 0 | MU95: ecash | MV95: 0 | MW95: ecash | MX95: 0 | MY95: ecash | MZ95: 0 | NA95: ecash | NB95: 0 | NC95: ecash | ND95: 0 | NE95: ecash | NF95: 0 | NG95: ecash | NH95: 0 | NI95: ecash | NJ95: 0 | NK95: ecash | NL95: 0 | NM95: ecash | NN95: 0 | NO95: ecash | NP95: 0 | NQ95: ecash | NR95: 0 | NS95: ecash | NT95: 0 | NU95: ecash | NV95: 0 | NW95: ecash | NX95: 0 | NY95: ecash | NZ95: 0 | OA95: ecash | OB95: 0 | OC95: ecash | OD95: 0 | OE95: ecash | OF95: 0 | OG95: ecash | OH95: 0 | OI95: ecash | OJ95: 0 | OK95: ecash | OL95: 0 | OM95: ecash | ON95: 0 | OO95: ecash | OP95: 0 | OQ95: ecash | OR95: 0 | OS95: ecash | OT95: 0 | OU95: ecash | OV95: 0 | OW95: ecash | OX95: 0 | OY95: ecash | OZ95: 0 | PA95: ecash | PB95: 0 | PC95: ecash | PD95: 0 | PE95: ecash | PF95: 0 | PG95: ecash | PH95: 0 | PI95: ecash | PJ95: 0 | PK95: ecash
A96: 2018-01-01 | B96: Monday | C96: New Years Day | D96: 0 | GF96: 0 | GG96: ecash | GH96: 0 | GI96: ecash | GJ96: 0 | GK96: ecash | GL96: 0 | GM96: ecash | GN96: 0 | GO96: ecash | GP96: 0 | GQ96: ecash | GR96: 0 | GS96: ecash | GT96: 0 | GU96: ecash | GV96: 0 | GW96: ecash | GX96: 0 | GY96: ecash | GZ96: 0 | HA96: ecash | HB96: 0 | HC96: ecash | HD96: 0 | HE96: ecash | HF96: 0 | HG96: ecash | HH96: 0 | HI96: ecash | HJ96: 0 | HK96: ecash | HL96: 0 | HM96: ecash | HN96: 0 | HO96: ecash | HP96: 0 | HQ96: ecash | HR96: 0 | HS96: ecash | HT96: 0 | HU96: ecash | HV96: 0 | HW96: ecash | HX96: 0 | HY96: ecash | HZ96: 0 | IA96: ecash | IB96: 0 | IC96: ecash | ID96: 0 | IE96: ecash | IF96: 0 | IG96: ecash | IH96: 0 | II96: ecash | IJ96: 0 | IK96: ecash | IL96: 0 | IM96: ecash | IN96: 90.5 | IO96: Monthly e-pass | IP96: 90.5 | IQ96: Monthly e-pass | IR96: 90.5 | IS96: Monthly e-pass | IT96: 90.5 | IU96: Monthly e-pass | IV96: 90.5 | IW96: Monthly e-pass | IX96: 90.5 | IY96: Monthly e-pass | IZ96: 90.5 | JA96: Monthly e-pass | JB96: 90.5 | JC96: Monthly e-pass | JD96: 90.5 | JE96: Monthly e-pass | JF96: 90.5 | JG96: Monthly e-pass | JH96: 90.5 | JI96: Monthly e-pass | JJ96: 90.5 | JK96: Monthly e-pass | JL96: 90.5 | JM96: Monthly e-pass | JN96: 90.5 | JO96: Monthly e-pass | JP96: 90.5 | JQ96: Monthly e-pass | JR96: 90.5 | JS96: Monthly e-pass | JT96: 90.5 | JU96: Monthly e-pass | JV96: 90.5 | JW96: Monthly e-pass | JX96: 90.5 | JY96: Monthly e-pass | JZ96: 90.5 | KA96: Monthly e-pass | KB96: 90.5 | KC96: Monthly e-pass | KD96: 90.5 | KE96: Monthly e-pass | KF96: 90.5 | KG96: Monthly e-pass | KH96: 90.5 | KI96: Monthly e-pass | KJ96: 90.5 | KK96: Monthly e-pass | KL96: 90.5 | KM96: Monthly e-pass | KN96: 90.5 | KO96: Monthly e-pass | KP96: 90.5 | KQ96: Monthly e-pass | KR96: 90.5 | KS96: Monthly e-pass | KT96: 90.5 | KU96: Monthly e-pass | KV96: 90.5 | KW96: Monthly e-pass | KX96: 90.5 | KY96: Monthly e-pass | KZ96: 90.5 | LA96: Monthly e-pass | LB96: 90.5 | LC96: Monthly e-pass | LD96: 90.5 | LE96: Monthly e-pass | LF96: 90.5 | LG96: Monthly e-pass | LH96: 90.5 | LI96: Monthly e-pass | LJ96: 90.5 | LK96: Monthly e-pass | LL96: 90.5 | LM96: Monthly e-pass | LN96: 90.5 | LO96: Monthly e-pass | LP96: 90.5 | LQ96: Monthly e-pass | LR96: 90.5 | LS96: Monthly e-pass | LT96: 90.5 | LU96: Monthly e-pass | LV96: 90.5 | LW96: Monthly e-pass | LX96: 90.5 | LY96: Monthly e-pass | LZ96: 90.5 | MA96: Monthly e-pass | MB96: 90.5 | MC96: Monthly e-pass | MD96: 90.5 | ME96: Monthly e-pass | MF96: 90.5 | MG96: Monthly e-pass | MH96: 90.5 | MI96: Monthly e-pass | MJ96: 90.5 | MK96: Monthly e-pass | ML96: 90.5 | MM96: Monthly e-pass | MN96: 90.5 | MO96: Monthly e-pass | MP96: 90.5 | MQ96: Monthly e-pass | MR96: 90.5 | MS96: Monthly e-pass | MT96: 90.5 | MU96: Monthly e-pass | MV96: 90.5 | MW96: Monthly e-pass | MX96: 90.5 | MY96: Monthly e-pass | MZ96: 90.5 | NA96: Monthly e-pass | NB96: 90.5 | NC96: Monthly e-pass | ND96: 90.5 | NE96: Monthly e-pass | NF96: 90.5 | NG96: Monthly e-pass | NH96: 90.5 | NI96: Monthly e-pass | NJ96: 90.5 | NK96: Monthly e-pass | NL96: 90.5 | NM96: Monthly e-pass | NN96: 90.5 | NO96: Monthly e-pass | NP96: 90.5 | NQ96: Monthly e-pass | NR96: 90.5 | NS96: Monthly e-pass | NT96: 90.5 | NU96: Monthly e-pass | NV96: 90.5 | NW96: Monthly e-pass | NX96: 90.5 | NY96: Monthly e-pass | NZ96: 90.5 | OA96: Monthly e-pass | OB96: 90.5 | OC96: Monthly e-pass | OD96: 90.5 | OE96: Monthly e-pass | OF96: 90.5 | OG96: Monthly e-pass | OH96: 90.5 | OI96: Monthly e-pass | OJ96: 90.5 | OK96: Monthly e-pass | OL96: 90.5 | OM96: Monthly e-pass | ON96: 90.5 | OO96: Monthly e-pass | OP96: 90.5 | OQ96: Monthly e-pass | OR96: 90.5 | OS96: Monthly e-pass | OT96: 90.5 | OU96: Monthly e-pass | OV96: 90.5 | OW96: Monthly e-pass | OX96: 90.5 | OY96: Monthly e-pass | OZ96: 90.5 | PA96: Monthly e-pass | PB96: 90.5 | PC96: Monthly e-pass | PD96: 90.5 | PE96: Monthly e-pass | PF96: 90.5 | PG96: Monthly e-pass | PH96: 90.5 | PI96: Monthly e-pass | PJ96: 90.5 | PK96: Monthly e-pass
A97: 2018-01-02 | B97: Tuesday | D97: 2 | GH97: 4.7 | GI97: ecash | GJ97: 4.7 | GK97: ecash | GL97: 4.7 | GM97: ecash | GN97: 4.7 | GO97: ecash | GP97: 4.7 | GQ97: ecash | GR97: 4.7 | GS97: ecash | GT97: 4.7 | GU97: ecash | GV97: 4.7 | GW97: ecash | GX97: 4.7 | GY97: ecash | GZ97: 4.7 | HA97: ecash | HB97: 4.7 | HC97: ecash | HD97: 4.7 | HE97: ecash | HF97: 4.7 | HG97: ecash | HH97: 43.5 | HI97: 14 day e-pass | HJ97: 4.7 | HK97: ecash | HL97: 4.7 | HM97: ecash | HN97: 4.7 | HO97: ecash | HP97: 4.7 | HQ97: ecash | HR97: 4.7 | HS97: ecash | HT97: 4.7 | HU97: ecash | HV97: 64.65 | HW97: 21 day e-pass | HX97: 64.65 | HY97: 21 day e-pass | HZ97: 64.65 | IA97: 21 day e-pass | IB97: 64.65 | IC97: 21 day e-pass | ID97: 4.7 | IE97: ecash | IF97: 4.7 | IG97: ecash | IH97: 4.7 | II97: ecash | IJ97: 83.45 | IK97: 28 day e-pass | IL97: 83.45 | IM97: 28 day e-pass
A98: 2018-01-03 | B98: Wednesday | D98: 2 | GJ98: 4.7 | GK98: ecash | GL98: 4.7 | GM98: ecash | GN98: 4.7 | GO98: ecash | GP98: 4.7 | GQ98: ecash | GR98: 4.7 | GS98: ecash | GT98: 4.7 | GU98: ecash | GV98: 4.7 | GW98: ecash | GX98: 4.7 | GY98: ecash | GZ98: 4.7 | HA98: ecash | HB98: 4.7 | HC98: ecash | HD98: 4.7 | HE98: ecash | HF98: 4.7 | HG98: ecash | HJ98: 43.5 | HK98: 14 day e-pass | HL98: 43.5 | HM98: 14 day e-pass | HN98: 43.5 | HO98: 14 day e-pass | HP98: 4.7 | HQ98: ecash | HR98: 4.7 | HS98: ecash | HT98: 4.7 | HU98: ecash | ID98: 4.7 | IE98: ecash | IF98: 4.7 | IG98: ecash | IH98: 4.7 | II98: ecash
A99: 2018-01-04 | B99: Thursday | D99: 2 | GL99: 4.7 | GM99: ecash | GN99: 4.7 | GO99: ecash | GP99: 4.7 | GQ99: ecash | GR99: 4.7 | GS99: ecash | GT99: 4.7 | GU99: ecash | GV99: 4.7 | GW99: ecash | GX99: 4.7 | GY99: ecash | GZ99: 4.7 | HA99: ecash | HB99: 4.7 | HC99: ecash | HD99: 4.7 | HE99: ecash | HF99: 4.7 | HG99: ecash | HP99: 4.7 | HQ99: ecash | HR99: 4.7 | HS99: ecash | HT99: 4.7 | HU99: ecash | ID99: 4.7 | IE99: ecash | IF99: 4.7 | IG99: ecash | IH99: 4.7 | II99: ecash
A100: 2018-01-05 | B100: Friday | D100: 2 | GN100: 4.7 | GO100: ecash | GP100: 4.7 | GQ100: ecash | GR100: 4.7 | GS100: ecash | GT100: 4.7 | GU100: ecash | GV100: 4.7 | GW100: ecash | GX100: 4.7 | GY100: ecash | GZ100: 4.7 | HA100: ecash | HB100: 4.7 | HC100: ecash | HD100: 4.7 | HE100: ecash | HF100: 4.7 | HG100: ecash | HP100: 4.7 | HQ100: ecash | HR100: 4.7 | HS100: ecash | HT100: 4.7 | HU100: ecash | ID100: 4.7 | IE100: ecash | IF100: 4.7 | IG100: ecash | IH100: 4.7 | II100: ecash
A101: 2018-01-06 | B101: Saturday | D101: 0 | GP101: 0 | GQ101: ecash | GR101: 0 | GS101: ecash | GT101: 0 | GU101: ecash | GV101: 0 | GW101: ecash | GX101: 0 | GY101: ecash | GZ101: 0 | HA101: ecash | HB101: 0 | HC101: ecash | HD101: 0 | HE101: ecash | HF101: 0 | HG101: ecash | HP101: 0 | HQ101: ecash | HR101: 0 | HS101: ecash | HT101: 0 | HU101: ecash | ID101: 0 | IE101: ecash | IF101: 0 | IG101: ecash | IH101: 0 | II101: ecash
A102: 2018-01-07 | B102: Sunday | D102: 0 | GR102: 0 | GS102: ecash | GT102: 0 | GU102: ecash | GV102: 0 | GW102: ecash | GX102: 0 | GY102: ecash | GZ102: 0 | HA102: ecash | HB102: 0 | HC102: ecash | HD102: 0 | HE102: ecash | HF102: 0 | HG102: ecash | HP102: 0 | HQ102: ecash | HR102: 0 | HS102: ecash | HT102: 0 | HU102: ecash | ID102: 0 | IE102: ecash | IF102: 0 | IG102: ecash | IH102: 0 | II102: ecash
A103: 2018-01-08 | B103: Monday | D103: 2 | GT103: 4.7 | GU103: ecash | GV103: 4.7 | GW103: ecash | GX103: 4.7 | GY103: ecash | GZ103: 4.7 | HA103: ecash | HB103: 21.15 | HC103: 5 day e-pass | HD103: 21.15 | HE103: 5 day e-pass | HF103: 21.15 | HG103: 5 day e-pass | HP103: 21.15 | HQ103: 5 day e-pass | HR103: 21.15 | HS103: 5 day e-pass | HT103: 21.15 | HU103: 5 day e-pass | ID103: 21.15 | IE103: 5 day e-pass | IF103: 21.15 | IG103: 5 day e-pass | IH103: 21.15 | II103: 5 day e-pass
A104: 2018-01-09 | B104: Tuesday | D104: 2 | GV104: 4.7 | GW104: ecash | GX104: 4.7 | GY104: ecash | GZ104: 4.7 | HA104: ecash
A105: 2018-01-10 | B105: Wednesday | D105: 2 | GX105: 4.7 | GY105: ecash | GZ105: 4.7 | HA105: ecash
A106: 2018-01-11 | B106: Thursday | D106: 2 | GZ106: 4.7 | HA106: ecash
A107: 2018-01-12 | B107: Friday | D107: 2
A108: 2018-01-13 | B108: Saturday | D108: 0 | HD108: 0 | HE108: ecash | HF108: 0 | HG108: ecash | HP108: 0 | HQ108: ecash | HR108: 0 | HS108: ecash | HT108: 0 | HU108: ecash | ID108: 0 | IE108: ecash | IF108: 0 | IG108: ecash | IH108: 0 | II108: ecash
A109: 2018-01-14 | B109: Sunday | D109: 0 | HF109: 0 | HG109: ecash | HP109: 0 | HQ109: ecash | HR109: 0 | HS109: ecash | HT109: 0 | HU109: ecash | ID109: 0 | IE109: ecash | IF109: 0 | IG109: ecash | IH109: 0 | II109: ecash
A110: 2018-01-15 | B110: Monday | D110: 2 | HP110: 21.15 | HQ110: 5 day e-pass | HR110: 21.15 | HS110: 5 day e-pass | HT110: 21.15 | HU110: 5 day e-pass | ID110: 21.15 | IE110: 5 day e-pass | IF110: 21.15 | IG110: 5 day e-pass | IH110: 21.15 | II110: 5 day e-pass
A111: 2018-01-16 | B111: Tuesday | D111: 2
A112: 2018-01-17 | B112: Wednesday | D112: 2 | HL112: 4.7 | HM112: ecash | HN112: 4.7 | HO112: ecash
A113: 2018-01-18 | B113: Thursday | D113: 2 | HN113: 4.7 | HO113: ecash
A114: 2018-01-19 | B114: Friday | D114: 2
A115: 2018-01-20 | B115: Saturday | D115: 0 | HR115: 0 | HS115: ecash | HT115: 0 | HU115: ecash | ID115: 0 | IE115: ecash | IF115: 0 | IG115: ecash | IH115: 0 | II115: ecash
A116: 2018-01-21 | B116: Sunday | D116: 0 | HT116: 0 | HU116: ecash | ID116: 0 | IE116: ecash | IF116: 0 | IG116: ecash | IH116: 0 | II116: ecash
A117: 2018-01-22 | B117: Monday | D117: 2 | ID117: 21.15 | IE117: 5 day e-pass | IF117: 21.15 | IG117: 5 day e-pass | IH117: 21.15 | II117: 5 day e-pass
A118: 2018-01-23 | B118: Tuesday | D118: 2 | HX118: 4.7 | HY118: ecash | HZ118: 4.7 | IA118: ecash | IB118: 4.7 | IC118: ecash
A119: 2018-01-24 | B119: Wednesday | D119: 2 | HZ119: 4.7 | IA119: ecash | IB119: 4.7 | IC119: ecash
A120: 2018-01-25 | B120: Thursday | D120: 2 | IB120: 4.7 | IC120: ecash
A121: 2018-01-26 | B121: Friday | D121: 2
A122: 2018-01-27 | B122: Saturday | D122: 0 | IF122: 0 | IG122: ecash | IH122: 0 | II122: ecash
A123: 2018-01-28 | B123: Sunday | D123: 0 | IH123: 0 | II123: ecash
A124: 2018-01-29 | B124: Monday | D124: 2
A125: 2018-01-30 | B125: Tuesday | D125: 2 | IL125: 4.7 | IM125: ecash
A126: 2018-01-31 | B126: Wednesday | D126: 2
A127: 2018-02-01 | B127: Thursday | D127: 2 | IP127: 4.7 | IQ127: ecash | IR127: 4.7 | IS127: ecash | IT127: 4.7 | IU127: ecash | IV127: 4.7 | IW127: ecash | IX127: 4.7 | IY127: ecash | IZ127: 4.7 | JA127: ecash | JB127: 4.7 | JC127: ecash | JD127: 4.7 | JE127: ecash | JF127: 4.7 | JG127: ecash | JH127: 4.7 | JI127: ecash | JJ127: 4.7 | JK127: ecash | JL127: 4.7 | JM127: ecash | JN127: 4.7 | JO127: ecash | JP127: 43.5 | JQ127: 14 day e-pass | JR127: 43.5 | JS127: 14 day e-pass | JT127: 4.7 | JU127: ecash | JV127: 4.7 | JW127: ecash | JX127: 4.7 | JY127: ecash | JZ127: 4.7 | KA127: ecash | KB127: 4.7 | KC127: ecash | KD127: 4.7 | KE127: ecash | KF127: 4.7 | KG127: ecash | KH127: 4.7 | KI127: ecash | KJ127: 4.7 | KK127: ecash | KL127: 4.7 | KM127: ecash | KN127: 4.7 | KO127: ecash | KP127: 4.7 | KQ127: ecash | KR127: 83.45 | KS127: 28 day e-pass | KT127: 83.45 | KU127: 28 day e-pass | KV127: 4.7 | KW127: ecash | KX127: 4.7 | KY127: ecash | KZ127: 4.7 | LA127: ecash | LB127: 4.7 | LC127: ecash | LD127: 4.7 | LE127: ecash | LF127: 4.7 | LG127: ecash | LH127: 4.7 | LI127: ecash | LJ127: 4.7 | LK127: ecash | LL127: 4.7 | LM127: ecash | LN127: 4.7 | LO127: ecash | LP127: 4.7 | LQ127: ecash | LR127: 4.7 | LS127: ecash | LT127: 4.7 | LU127: ecash | LV127: 4.7 | LW127: ecash | LX127: 4.7 | LY127: ecash | LZ127: 4.7 | MA127: ecash | MB127: 4.7 | MC127: ecash | MD127: 4.7 | ME127: ecash | MF127: 4.7 | MG127: ecash | MH127: 4.7 | MI127: ecash | MJ127: 4.7 | MK127: ecash | ML127: 4.7 | MM127: ecash | MN127: 4.7 | MO127: ecash | MP127: 4.7 | MQ127: ecash | MR127: 4.7 | MS127: ecash | MT127: 4.7 | MU127: ecash | MV127: 83.45 | MW127: 28 day e-pass | MX127: 83.45 | MY127: 28 day e-pass | MZ127: 83.45 | NA127: 28 day e-pass | NB127: 83.45 | NC127: 28 day e-pass | ND127: 83.45 | NE127: 28 day e-pass | NF127: 83.45 | NG127: 28 day e-pass | NH127: 83.45 | NI127: 28 day e-pass | NJ127: 83.45 | NK127: 28 day e-pass | NL127: 83.45 | NM127: 28 day e-pass | NN127: 83.45 | NO127: 28 day e-pass | NP127: 83.45 | NQ127: 28 day e-pass | NR127: 83.45 | NS127: 28 day e-pass | NT127: 83.45 | NU127: 28 day e-pass | NV127: 83.45 | NW127: 28 day e-pass | NX127: 83.45 | NY127: 28 day e-pass | NZ127: 83.45 | OA127: 28 day e-pass | OB127: 83.45 | OC127: 28 day e-pass | OD127: 83.45 | OE127: 28 day e-pass | OF127: 83.45 | OG127: 28 day e-pass | OH127: 4.7 | OI127: ecash | OJ127: 4.7 | OK127: ecash | OL127: 4.7 | OM127: ecash | ON127: 4.7 | OO127: ecash | OP127: 83.45 | OQ127: 28 day e-pass | OR127: 83.45 | OS127: 28 day e-pass | OT127: 83.45 | OU127: 28 day e-pass | OV127: 83.45 | OW127: 28 day e-pass | OX127: 83.45 | OY127: 28 day e-pass | OZ127: 83.45 | PA127: 28 day e-pass | PB127: 83.45 | PC127: 28 day e-pass | PD127: 83.45 | PE127: 28 day e-pass | PF127: 83.45 | PG127: 28 day e-pass | PH127: 83.45 | PI127: 28 day e-pass | PJ127: 83.45 | PK127: 28 day e-pass
A128: 2018-02-02 | B128: Friday | D128: 2 | IR128: 4.7 | IS128: ecash | IT128: 4.7 | IU128: ecash | IV128: 4.7 | IW128: ecash | IX128: 4.7 | IY128: ecash | IZ128: 4.7 | JA128: ecash | JB128: 4.7 | JC128: ecash | JD128: 4.7 | JE128: ecash | JF128: 4.7 | JG128: ecash | JH128: 4.7 | JI128: ecash | JJ128: 4.7 | JK128: ecash | JL128: 4.7 | JM128: ecash | JN128: 4.7 | JO128: ecash | JT128: 4.7 | JU128: ecash | JV128: 4.7 | JW128: ecash | JX128: 4.7 | JY128: ecash | JZ128: 4.7 | KA128: ecash | KB128: 4.7 | KC128: ecash | KD128: 4.7 | KE128: ecash | KF128: 4.7 | KG128: ecash | KH128: 4.7 | KI128: ecash | KJ128: 4.7 | KK128: ecash | KL128: 4.7 | KM128: ecash | KN128: 4.7 | KO128: ecash | KP128: 4.7 | KQ128: ecash | KV128: 4.7 | KW128: ecash | KX128: 4.7 | KY128: ecash | KZ128: 4.7 | LA128: ecash | LB128: 4.7 | LC128: ecash | LD128: 4.7 | LE128: ecash | LF128: 4.7 | LG128: ecash | LH128: 4.7 | LI128: ecash | LJ128: 4.7 | LK128: ecash | LL128: 4.7 | LM128: ecash | LN128: 4.7 | LO128: ecash | LP128: 4.7 | LQ128: ecash | LR128: 4.7 | LS128: ecash | LT128: 4.7 | LU128: ecash | LV128: 4.7 | LW128: ecash | LX128: 4.7 | LY128: ecash | LZ128: 4.7 | MA128: ecash | MB128: 4.7 | MC128: ecash | MD128: 4.7 | ME128: ecash | MF128: 4.7 | MG128: ecash | MH128: 4.7 | MI128: ecash | MJ128: 4.7 | MK128: ecash | ML128: 4.7 | MM128: ecash | MN128: 4.7 | MO128: ecash | MP128: 4.7 | MQ128: ecash | MR128: 4.7 | MS128: ecash | MT128: 4.7 | MU128: ecash | OH128: 4.7 | OI128: ecash | OJ128: 4.7 | OK128: ecash | OL128: 4.7 | OM128: ecash | ON128: 4.7 | OO128: ecash
A129: 2018-02-03 | B129: Saturday | D129: 0 | IT129: 0 | IU129: ecash | IV129: 0 | IW129: ecash | IX129: 0 | IY129: ecash | IZ129: 0 | JA129: ecash | JB129: 0 | JC129: ecash | JD129: 0 | JE129: ecash | JF129: 0 | JG129: ecash | JH129: 0 | JI129: ecash | JJ129: 0 | JK129: ecash | JL129: 0 | JM129: ecash | JN129: 0 | JO129: ecash | JT129: 0 | JU129: ecash | JV129: 0 | JW129: ecash | JX129: 0 | JY129: ecash | JZ129: 0 | KA129: ecash | KB129: 0 | KC129: ecash | KD129: 0 | KE129: ecash | KF129: 0 | KG129: ecash | KH129: 0 | KI129: ecash | KJ129: 0 | KK129: ecash | KL129: 0 | KM129: ecash | KN129: 0 | KO129: ecash | KP129: 0 | KQ129: ecash | KV129: 0 | KW129: ecash | KX129: 0 | KY129: ecash | KZ129: 0 | LA129: ecash | LB129: 0 | LC129: ecash | LD129: 0 | LE129: ecash | LF129: 0 | LG129: ecash | LH129: 0 | LI129: ecash | LJ129: 0 | LK129: ecash | LL129: 0 | LM129: ecash | LN129: 0 | LO129: ecash | LP129: 0 | LQ129: ecash | LR129: 0 | LS129: ecash | LT129: 0 | LU129: ecash | LV129: 0 | LW129: ecash | LX129: 0 | LY129: ecash | LZ129: 0 | MA129: ecash | MB129: 0 | MC129: ecash | MD129: 0 | ME129: ecash | MF129: 0 | MG129: ecash | MH129: 0 | MI129: ecash | MJ129: 0 | MK129: ecash | ML129: 0 | MM129: ecash | MN129: 0 | MO129: ecash | MP129: 0 | MQ129: ecash | MR129: 0 | MS129: ecash | MT129: 0 | MU129: ecash | OH129: 0 | OI129: ecash | OJ129: 0 | OK129: ecash | OL129: 0 | OM129: ecash | ON129: 0 | OO129: ecash
A130: 2018-02-04 | B130: Sunday | D130: 0 | IV130: 0 | IW130: ecash | IX130: 0 | IY130: ecash | IZ130: 0 | JA130: ecash | JB130: 0 | JC130: ecash | JD130: 0 | JE130: ecash | JF130: 0 | JG130: ecash | JH130: 0 | JI130: ecash | JJ130: 0 | JK130: ecash | JL130: 0 | JM130: ecash | JN130: 0 | JO130: ecash | JT130: 0 | JU130: ecash | JV130: 0 | JW130: ecash | JX130: 0 | JY130: ecash | JZ130: 0 | KA130: ecash | KB130: 0 | KC130: ecash | KD130: 0 | KE130: ecash | KF130: 0 | KG130: ecash | KH130: 0 | KI130: ecash | KJ130: 0 | KK130: ecash | KL130: 0 | KM130: ecash | KN130: 0 | KO130: ecash | KP130: 0 | KQ130: ecash | KV130: 0 | KW130: ecash | KX130: 0 | KY130: ecash | KZ130: 0 | LA130: ecash | LB130: 0 | LC130: ecash | LD130: 0 | LE130: ecash | LF130: 0 | LG130: ecash | LH130: 0 | LI130: ecash | LJ130: 0 | LK130: ecash | LL130: 0 | LM130: ecash | LN130: 0 | LO130: ecash | LP130: 0 | LQ130: ecash | LR130: 0 | LS130: ecash | LT130: 0 | LU130: ecash | LV130: 0 | LW130: ecash | LX130: 0 | LY130: ecash | LZ130: 0 | MA130: ecash | MB130: 0 | MC130: ecash | MD130: 0 | ME130: ecash | MF130: 0 | MG130: ecash | MH130: 0 | MI130: ecash | MJ130: 0 | MK130: ecash | ML130: 0 | MM130: ecash | MN130: 0 | MO130: ecash | MP130: 0 | MQ130: ecash | MR130: 0 | MS130: ecash | MT130: 0 | MU130: ecash | OH130: 0 | OI130: ecash | OJ130: 0 | OK130: ecash | OL130: 0 | OM130: ecash | ON130: 0 | OO130: ecash
A131: 2018-02-05 | B131: Monday | D131: 2 | IX131: 4.7 | IY131: ecash | IZ131: 4.7 | JA131: ecash | JB131: 4.7 | JC131: ecash | JD131: 4.7 | JE131: ecash | JF131: 21.15 | JG131: 5 day e-pass | JH131: 21.15 | JI131: 5 day e-pass | JJ131: 21.15 | JK131: 5 day e-pass | JL131: 21.15 | JM131: 5 day e-pass | JN131: 21.15 | JO131: 5 day e-pass | JT131: 21.15 | JU131: 5 day e-pass | JV131: 21.15 | JW131: 5 day e-pass | JX131: 21.15 | JY131: 5 day e-pass | JZ131: 21.15 | KA131: 5 day e-pass | KB131: 21.15 | KC131: 5 day e-pass | KD131: 21.15 | KE131: 5 day e-pass | KF131: 21.15 | KG131: 5 day e-pass | KH131: 21.15 | KI131: 5 day e-pass | KJ131: 21.15 | KK131: 5 day e-pass | KL131: 21.15 | KM131: 5 day e-pass | KN131: 21.15 | KO131: 5 day e-pass | KP131: 21.15 | KQ131: 5 day e-pass | KV131: 21.15 | KW131: 5 day e-pass | KX131: 21.15 | KY131: 5 day e-pass | KZ131: 21.15 | LA131: 5 day e-pass | LB131: 21.15 | LC131: 5 day e-pass | LD131: 21.15 | LE131: 5 day e-pass | LF131: 21.15 | LG131: 5 day e-pass | LH131: 21.15 | LI131: 5 day e-pass | LJ131: 21.15 | LK131: 5 day e-pass | LL131: 21.15 | LM131: 5 day e-pass | LN131: 21.15 | LO131: 5 day e-pass | LP131: 21.15 | LQ131: 5 day e-pass | LR131: 21.15 | LS131: 5 day e-pass | LT131: 21.15 | LU131: 5 day e-pass | LV131: 21.15 | LW131: 5 day e-pass | LX131: 21.15 | LY131: 5 day e-pass | LZ131: 21.15 | MA131: 5 day e-pass | MB131: 21.15 | MC131: 5 day e-pass | MD131: 21.15 | ME131: 5 day e-pass | MF131: 21.15 | MG131: 5 day e-pass | MH131: 21.15 | MI131: 5 day e-pass | MJ131: 21.15 | MK131: 5 day e-pass | ML131: 21.15 | MM131: 5 day e-pass | MN131: 21.15 | MO131: 5 day e-pass | MP131: 21.15 | MQ131: 5 day e-pass | MR131: 21.15 | MS131: 5 day e-pass | MT131: 21.15 | MU131: 5 day e-pass | OH131: 21.15 | OI131: 5 day e-pass | OJ131: 21.15 | OK131: 5 day e-pass | OL131: 21.15 | OM131: 5 day e-pass | ON131: 21.15 | OO131: 5 day e-pass
A132: 2018-02-06 | B132: Tuesday | D132: 2 | IZ132: 4.7 | JA132: ecash | JB132: 4.7 | JC132: ecash | JD132: 4.7 | JE132: ecash
A133: 2018-02-07 | B133: Wednesday | D133: 2 | JB133: 4.7 | JC133: ecash | JD133: 4.7 | JE133: ecash
A134: 2018-02-08 | B134: =TEXT(A134,"dddd") -> Thursday | D134: 2 | JD134: 4.7 | JE134: ecash
A135: 2018-02-09 | B135: Friday | D135: 2
A136: 2018-02-10 | B136: Saturday | D136: 0 | JH136: 0 | JI136: ecash | JJ136: 0 | JK136: ecash | JL136: 0 | JM136: ecash | JN136: 0 | JO136: ecash | JT136: 0 | JU136: ecash | JV136: 0 | JW136: ecash | JX136: 0 | JY136: ecash | JZ136: 0 | KA136: ecash | KB136: 0 | KC136: ecash | KD136: 0 | KE136: ecash | KF136: 0 | KG136: ecash | KH136: 0 | KI136: ecash | KJ136: 0 | KK136: ecash | KL136: 0 | KM136: ecash | KN136: 0 | KO136: ecash | KP136: 0 | KQ136: ecash | KV136: 0 | KW136: ecash | KX136: 0 | KY136: ecash | KZ136: 0 | LA136: ecash | LB136: 0 | LC136: ecash | LD136: 0 | LE136: ecash | LF136: 0 | LG136: ecash | LH136: 0 | LI136: ecash | LJ136: 0 | LK136: ecash | LL136: 0 | LM136: ecash | LN136: 0 | LO136: ecash | LP136: 0 | LQ136: ecash | LR136: 0 | LS136: ecash | LT136: 0 | LU136: ecash | LV136: 0 | LW136: ecash | LX136: 0 | LY136: ecash | LZ136: 0 | MA136: ecash | MB136: 0 | MC136: ecash | MD136: 0 | ME136: ecash | MF136: 0 | MG136: ecash | MH136: 0 | MI136: ecash | MJ136: 0 | MK136: ecash | ML136: 0 | MM136: ecash | MN136: 0 | MO136: ecash | MP136: 0 | MQ136: ecash | MR136: 0 | MS136: ecash | MT136: 0 | MU136: ecash | OH136: 0 | OI136: ecash | OJ136: 0 | OK136: ecash | OL136: 0 | OM136: ecash | ON136: 0 | OO136: ecash
A137: 2018-02-11 | B137: Sunday | D137: 0 | JJ137: 0 | JK137: ecash | JL137: 0 | JM137: ecash | JN137: 0 | JO137: ecash | JT137: 0 | JU137: ecash | JV137: 0 | JW137: ecash | JX137: 0 | JY137: ecash | JZ137: 0 | KA137: ecash | KB137: 0 | KC137: ecash | KD137: 0 | KE137: ecash | KF137: 0 | KG137: ecash | KH137: 0 | KI137: ecash | KJ137: 0 | KK137: ecash | KL137: 0 | KM137: ecash | KN137: 0 | KO137: ecash | KP137: 0 | KQ137: ecash | KV137: 0 | KW137: ecash | KX137: 0 | KY137: ecash | KZ137: 0 | LA137: ecash | LB137: 0 | LC137: ecash | LD137: 0 | LE137: ecash | LF137: 0 | LG137: ecash | LH137: 0 | LI137: ecash | LJ137: 0 | LK137: ecash | LL137: 0 | LM137: ecash | LN137: 0 | LO137: ecash | LP137: 0 | LQ137: ecash | LR137: 0 | LS137: ecash | LT137: 0 | LU137: ecash | LV137: 0 | LW137: ecash | LX137: 0 | LY137: ecash | LZ137: 0 | MA137: ecash | MB137: 0 | MC137: ecash | MD137: 0 | ME137: ecash | MF137: 0 | MG137: ecash | MH137: 0 | MI137: ecash | MJ137: 0 | MK137: ecash | ML137: 0 | MM137: ecash | MN137: 0 | MO137: ecash | MP137: 0 | MQ137: ecash | MR137: 0 | MS137: ecash | MT137: 0 | MU137: ecash | OH137: 0 | OI137: ecash | OJ137: 0 | OK137: ecash | OL137: 0 | OM137: ecash | ON137: 0 | OO137: ecash
A138: 2018-02-12 | B138: Monday | D138: 2 | JL138: 4.7 | JM138: ecash | JN138: 4.7 | JO138: ecash | JT138: 21.15 | JU138: 5 day e-pass | JV138: 21.15 | JW138: 5 day e-pass | JX138: 21.15 | JY138: 5 day e-pass | JZ138: 21.15 | KA138: 5 day e-pass | KB138: 21.15 | KC138: 5 day e-pass | KD138: 21.15 | KE138: 5 day e-pass | KF138: 21.15 | KG138: 5 day e-pass | KH138: 21.15 | KI138: 5 day e-pass | KJ138: 21.15 | KK138: 5 day e-pass | KL138: 21.15 | KM138: 5 day e-pass | KN138: 21.15 | KO138: 5 day e-pass | KP138: 21.15 | KQ138: 5 day e-pass | KV138: 21.15 | KW138: 5 day e-pass | KX138: 21.15 | KY138: 5 day e-pass | KZ138: 21.15 | LA138: 5 day e-pass | LB138: 21.15 | LC138: 5 day e-pass | LD138: 21.15 | LE138: 5 day e-pass | LF138: 21.15 | LG138: 5 day e-pass | LH138: 21.15 | LI138: 5 day e-pass | LJ138: 21.15 | LK138: 5 day e-pass | LL138: 21.15 | LM138: 5 day e-pass | LN138: 21.15 | LO138: 5 day e-pass | LP138: 21.15 | LQ138: 5 day e-pass | LR138: 21.15 | LS138: 5 day e-pass | LT138: 21.15 | LU138: 5 day e-pass | LV138: 21.15 | LW138: 5 day e-pass | LX138: 21.15 | LY138: 5 day e-pass | LZ138: 21.15 | MA138: 5 day e-pass | MB138: 21.15 | MC138: 5 day e-pass | MD138: 21.15 | ME138: 5 day e-pass | MF138: 21.15 | MG138: 5 day e-pass | MH138: 21.15 | MI138: 5 day e-pass | MJ138: 21.15 | MK138: 5 day e-pass | ML138: 21.15 | MM138: 5 day e-pass | MN138: 21.15 | MO138: 5 day e-pass | MP138: 21.15 | MQ138: 5 day e-pass | MR138: 21.15 | MS138: 5 day e-pass | MT138: 21.15 | MU138: 5 day e-pass | OH138: 21.15 | OI138: 5 day e-pass | OJ138: 21.15 | OK138: 5 day e-pass | OL138: 21.15 | OM138: 5 day e-pass | ON138: 21.15 | OO138: 5 day e-pass
A139: 2018-02-13 | B139: Tuesday | D139: 2 | JN139: 4.7 | JO139: ecash
A140: 2018-02-14 | B140: Wednesday | D140: 2
A141: 2018-02-15 | B141: Thursday | D141: 2 | JR141: 4.7 | JS141: ecash
A142: 2018-02-16 | B142: Friday | D142: 2
A143: 2018-02-17 | B143: Saturday | D143: 0 | JV143: 0 | JW143: ecash | JX143: 0 | JY143: ecash | JZ143: 0 | KA143: ecash | KB143: 0 | KC143: ecash | KD143: 0 | KE143: ecash | KF143: 0 | KG143: ecash | KH143: 0 | KI143: ecash | KJ143: 0 | KK143: ecash | KL143: 0 | KM143: ecash | KN143: 0 | KO143: ecash | KP143: 0 | KQ143: ecash | KV143: 0 | KW143: ecash | KX143: 0 | KY143: ecash | KZ143: 0 | LA143: ecash | LB143: 0 | LC143: ecash | LD143: 0 | LE143: ecash | LF143: 0 | LG143: ecash | LH143: 0 | LI143: ecash | LJ143: 0 | LK143: ecash | LL143: 0 | LM143: ecash | LN143: 0 | LO143: ecash | LP143: 0 | LQ143: ecash | LR143: 0 | LS143: ecash | LT143: 0 | LU143: ecash | LV143: 0 | LW143: ecash | LX143: 0 | LY143: ecash | LZ143: 0 | MA143: ecash | MB143: 0 | MC143: ecash | MD143: 0 | ME143: ecash | MF143: 0 | MG143: ecash | MH143: 0 | MI143: ecash | MJ143: 0 | MK143: ecash | ML143: 0 | MM143: ecash | MN143: 0 | MO143: ecash | MP143: 0 | MQ143: ecash | MR143: 0 | MS143: ecash | MT143: 0 | MU143: ecash | OH143: 0 | OI143: ecash | OJ143: 0 | OK143: ecash | OL143: 0 | OM143: ecash | ON143: 0 | OO143: ecash
A144: 2018-02-18 | B144: Sunday | D144: 0 | JX144: 0 | JY144: ecash | JZ144: 0 | KA144: ecash | KB144: 0 | KC144: ecash | KD144: 0 | KE144: ecash | KF144: 0 | KG144: ecash | KH144: 0 | KI144: ecash | KJ144: 0 | KK144: ecash | KL144: 0 | KM144: ecash | KN144: 0 | KO144: ecash | KP144: 0 | KQ144: ecash | KV144: 0 | KW144: ecash | KX144: 0 | KY144: ecash | KZ144: 0 | LA144: ecash | LB144: 0 | LC144: ecash | LD144: 0 | LE144: ecash | LF144: 0 | LG144: ecash | LH144: 0 | LI144: ecash | LJ144: 0 | LK144: ecash | LL144: 0 | LM144: ecash | LN144: 0 | LO144: ecash | LP144: 0 | LQ144: ecash | LR144: 0 | LS144: ecash | LT144: 0 | LU144: ecash | LV144: 0 | LW144: ecash | LX144: 0 | LY144: ecash | LZ144: 0 | MA144: ecash | MB144: 0 | MC144: ecash | MD144: 0 | ME144: ecash | MF144: 0 | MG144: ecash | MH144: 0 | MI144: ecash | MJ144: 0 | MK144: ecash | ML144: 0 | MM144: ecash | MN144: 0 | MO144: ecash | MP144: 0 | MQ144: ecash | MR144: 0 | MS144: ecash | MT144: 0 | MU144: ecash | OH144: 0 | OI144: ecash | OJ144: 0 | OK144: ecash | OL144: 0 | OM144: ecash | ON144: 0 | OO144: ecash
A145: 2018-02-19 | B145: Monday | C145: Louis Riel | D145: 0 | JZ145: 0 | KA145: ecash | KB145: 0 | KC145: ecash | KD145: 0 | KE145: ecash | KF145: 0 | KG145: ecash | KH145: 0 | KI145: ecash | KJ145: 0 | KK145: ecash | KL145: 0 | KM145: ecash | KN145: 0 | KO145: ecash | KP145: 0 | KQ145: ecash | KV145: 0 | KW145: ecash | KX145: 0 | KY145: ecash | KZ145: 0 | LA145: ecash | LB145: 0 | LC145: ecash | LD145: 0 | LE145: ecash | LF145: 0 | LG145: ecash | LH145: 0 | LI145: ecash | LJ145: 0 | LK145: ecash | LL145: 0 | LM145: ecash | LN145: 0 | LO145: ecash | LP145: 0 | LQ145: ecash | LR145: 0 | LS145: ecash | LT145: 0 | LU145: ecash | LV145: 0 | LW145: ecash | LX145: 0 | LY145: ecash | LZ145: 0 | MA145: ecash | MB145: 0 | MC145: ecash | MD145: 0 | ME145: ecash | MF145: 0 | MG145: ecash | MH145: 0 | MI145: ecash | MJ145: 0 | MK145: ecash | ML145: 0 | MM145: ecash | MN145: 0 | MO145: ecash | MP145: 0 | MQ145: ecash | MR145: 0 | MS145: ecash | MT145: 0 | MU145: ecash | OH145: 0 | OI145: ecash | OJ145: 0 | OK145: ecash | OL145: 0 | OM145: ecash | ON145: 0 | OO145: ecash
A146: 2018-02-20 | B146: Tuesday | D146: 2 | KB146: 4.7 | KC146: ecash | KD146: 4.7 | KE146: ecash | KF146: 4.7 | KG146: ecash | KH146: 4.7 | KI146: ecash | KJ146: 4.7 | KK146: ecash | KL146: 4.7 | KM146: ecash | KN146: 4.7 | KO146: ecash | KP146: 4.7 | KQ146: ecash | KV146: 4.7 | KW146: ecash | KX146: 4.7 | KY146: ecash | KZ146: 4.7 | LA146: ecash | LB146: 43.5 | LC146: 14 day e-pass | LD146: 43.5 | LE146: 14 day e-pass | LF146: 43.5 | LG146: 14 day e-pass | LH146: 43.5 | LI146: 14 day e-pass | LJ146: 4.7 | LK146: ecash | LL146: 4.7 | LM146: ecash | LN146: 4.7 | LO146: ecash | LP146: 64.65 | LQ146: 21 day e-pass | LR146: 64.65 | LS146: 21 day e-pass | LT146: 64.65 | LU146: 21 day e-pass | LV146: 64.65 | LW146: 21 day e-pass | LX146: 4.7 | LY146: ecash | LZ146: 4.7 | MA146: ecash | MB146: 4.7 | MC146: ecash | MD146: 83.45 | ME146: 28 day e-pass | MF146: 83.45 | MG146: 28 day e-pass | MH146: 83.45 | MI146: 28 day e-pass | MJ146: 83.45 | MK146: 28 day e-pass | ML146: 83.45 | MM146: 28 day e-pass | MN146: 83.45 | MO146: 28 day e-pass | MP146: 83.45 | MQ146: 28 day e-pass | MR146: 83.45 | MS146: 28 day e-pass | MT146: 83.45 | MU146: 28 day e-pass | OH146: 83.45 | OI146: 28 day e-pass | OJ146: 83.45 | OK146: 28 day e-pass | OL146: 83.45 | OM146: 28 day e-pass | ON146: 83.45 | OO146: 28 day e-pass
A147: 2018-02-21 | B147: Wednesday | D147: 2 | KD147: 4.7 | KE147: ecash | KF147: 4.7 | KG147: ecash | KH147: 4.7 | KI147: ecash | KJ147: 4.7 | KK147: ecash | KL147: 4.7 | KM147: ecash | KN147: 4.7 | KO147: ecash | KP147: 4.7 | KQ147: ecash | KV147: 4.7 | KW147: ecash | KX147: 4.7 | KY147: ecash | KZ147: 4.7 | LA147: ecash | LJ147: 4.7 | LK147: ecash | LL147: 4.7 | LM147: ecash | LN147: 4.7 | LO147: ecash | LX147: 4.7 | LY147: ecash | LZ147: 4.7 | MA147: ecash | MB147: 4.7 | MC147: ecash
A148: 2018-02-22 | B148: Thursday | D148: 2 | KF148: 4.7 | KG148: ecash | KH148: 4.7 | KI148: ecash | KJ148: 4.7 | KK148: ecash | KL148: 4.7 | KM148: ecash | KN148: 4.7 | KO148: ecash | KP148: 4.7 | KQ148: ecash | KV148: 4.7 | KW148: ecash | KX148: 4.7 | KY148: ecash | KZ148: 4.7 | LA148: ecash | LJ148: 4.7 | LK148: ecash | LL148: 4.7 | LM148: ecash | LN148: 4.7 | LO148: ecash | LX148: 4.7 | LY148: ecash | LZ148: 4.7 | MA148: ecash | MB148: 4.7 | MC148: ecash
A149: 2018-02-23 | B149: Friday | D149: 2 | KH149: 4.7 | KI149: ecash | KJ149: 4.7 | KK149: ecash | KL149: 4.7 | KM149: ecash | KN149: 4.7 | KO149: ecash | KP149: 4.7 | KQ149: ecash | KV149: 4.7 | KW149: ecash | KX149: 4.7 | KY149: ecash | KZ149: 4.7 | LA149: ecash | LJ149: 4.7 | LK149: ecash | LL149: 4.7 | LM149: ecash | LN149: 4.7 | LO149: ecash | LX149: 4.7 | LY149: ecash | LZ149: 4.7 | MA149: ecash | MB149: 4.7 | MC149: ecash
A150: 2018-02-24 | B150: Saturday | D150: 0 | KJ150: 0 | KK150: ecash | KL150: 0 | KM150: ecash | KN150: 0 | KO150: ecash | KP150: 0 | KQ150: ecash | KV150: 0 | KW150: ecash | KX150: 0 | KY150: ecash | KZ150: 0 | LA150: ecash | LJ150: 0 | LK150: ecash | LL150: 0 | LM150: ecash | LN150: 0 | LO150: ecash | LX150: 0 | LY150: ecash | LZ150: 0 | MA150: ecash | MB150: 0 | MC150: ecash
A151: 2018-02-25 | B151: Sunday | D151: 0 | KL151: 0 | KM151: ecash | KN151: 0 | KO151: ecash | KP151: 0 | KQ151: ecash | KV151: 0 | KW151: ecash | KX151: 0 | KY151: ecash | KZ151: 0 | LA151: ecash | LJ151: 0 | LK151: ecash | LL151: 0 | LM151: ecash | LN151: 0 | LO151: ecash | LX151: 0 | LY151: ecash | LZ151: 0 | MA151: ecash | MB151: 0 | MC151: ecash
A152: 2018-02-26 | B152: Monday | D152: 2 | KN152: 4.7 | KO152: ecash | KP152: 4.7 | KQ152: ecash | KV152: 21.15 | KW152: 5 day e-pass | KX152: 21.15 | KY152: 5 day e-pass | KZ152: 21.15 | LA152: 5 day e-pass | LJ152: 21.15 | LK152: 5 day e-pass | LL152: 21.15 | LM152: 5 day e-pass | LN152: 21.15 | LO152: 5 day e-pass | LX152: 21.15 | LY152: 5 day e-pass | LZ152: 21.15 | MA152: 5 day e-pass | MB152: 21.15 | MC152: 5 day e-pass
A153: 2018-02-27 | B153: Tuesday | D153: 2 | KP153: 4.7 | KQ153: ecash
A154: 2018-02-28 | B154: Wednesday | D154: 2
A155: 2018-03-01 | B155: Thursday | D155: 2 | KT155: 4.7 | KU155: ecash | MV155: 83.45 | MW155: 28 day e-pass | MX155: 83.45 | MY155: 28 day e-pass | MZ155: 83.45 | NA155: 28 day e-pass | NB155: 83.45 | NC155: 28 day e-pass | ND155: 83.45 | NE155: 28 day e-pass | NF155: 83.45 | NG155: 28 day e-pass | NH155: 83.45 | NI155: 28 day e-pass | NJ155: 83.45 | NK155: 28 day e-pass | NL155: 83.45 | NM155: 28 day e-pass | NN155: 83.45 | NO155: 28 day e-pass | NP155: 83.45 | NQ155: 28 day e-pass | NR155: 83.45 | NS155: 28 day e-pass | NT155: 83.45 | NU155: 28 day e-pass | NV155: 83.45 | NW155: 28 day e-pass | NX155: 83.45 | NY155: 28 day e-pass | NZ155: 83.45 | OA155: 28 day e-pass | OB155: 83.45 | OC155: 28 day e-pass | OD155: 83.45 | OE155: 28 day e-pass | OF155: 83.45 | OG155: 28 day e-pass | OP155: 83.45 | OQ155: 28 day e-pass | OR155: 83.45 | OS155: 28 day e-pass | OT155: 83.45 | OU155: 28 day e-pass | OV155: 83.45 | OW155: 28 day e-pass | OX155: 83.45 | OY155: 28 day e-pass | OZ155: 83.45 | PA155: 28 day e-pass | PB155: 83.45 | PC155: 28 day e-pass | PD155: 83.45 | PE155: 28 day e-pass | PF155: 83.45 | PG155: 28 day e-pass | PH155: 83.45 | PI155: 28 day e-pass | PJ155: 83.45 | PK155: 28 day e-pass
A156: 2018-03-02 | B156: Friday | D156: 2
A157: 2018-03-03 | B157: Saturday | D157: 0 | KX157: 0 | KY157: ecash | KZ157: 0 | LA157: ecash | LJ157: 0 | LK157: ecash | LL157: 0 | LM157: ecash | LN157: 0 | LO157: ecash | LX157: 0 | LY157: ecash | LZ157: 0 | MA157: ecash | MB157: 0 | MC157: ecash
A158: 2018-03-04 | B158: Sunday | D158: 0 | KZ158: 0 | LA158: ecash | LJ158: 0 | LK158: ecash | LL158: 0 | LM158: ecash | LN158: 0 | LO158: ecash | LX158: 0 | LY158: ecash | LZ158: 0 | MA158: ecash | MB158: 0 | MC158: ecash
A159: 2018-03-05 | B159: Monday | D159: 2 | LJ159: 21.15 | LK159: 5 day e-pass | LL159: 21.15 | LM159: 5 day e-pass | LN159: 21.15 | LO159: 5 day e-pass | LX159: 21.15 | LY159: 5 day e-pass | LZ159: 21.15 | MA159: 5 day e-pass | MB159: 21.15 | MC159: 5 day e-pass
A160: 2018-03-06 | B160: Tuesday | D160: 2 | LD160: 4.7 | LE160: ecash | LF160: 4.7 | LG160: ecash | LH160: 4.7 | LI160: ecash
A161: 2018-03-07 | B161: Wednesday | D161: 2 | LF161: 4.7 | LG161: ecash | LH161: 4.7 | LI161: ecash
A162: 2018-03-08 | B162: Thursday | D162: 2 | LH162: 4.7 | LI162: ecash
A163: 2018-03-09 | B163: Friday | D163: 2
A164: 2018-03-10 | B164: Saturday | D164: 0 | LL164: 0 | LM164: ecash | LN164: 0 | LO164: ecash | LX164: 0 | LY164: ecash | LZ164: 0 | MA164: ecash | MB164: 0 | MC164: ecash
A165: 2018-03-11 | B165: Sunday | D165: 0 | LN165: 0 | LO165: ecash | LX165: 0 | LY165: ecash | LZ165: 0 | MA165: ecash | MB165: 0 | MC165: ecash
A166: 2018-03-12 | B166: Monday | D166: 2 | LX166: 21.15 | LY166: 5 day e-pass | LZ166: 21.15 | MA166: 5 day e-pass | MB166: 21.15 | MC166: 5 day e-pass
A167: 2018-03-13 | B167: Tuesday | D167: 2 | LR167: 4.7 | LS167: ecash | LT167: 4.7 | LU167: ecash | LV167: 4.7 | LW167: ecash
A168: 2018-03-14 | B168: Wednesday | D168: 2 | LT168: 4.7 | LU168: ecash | LV168: 4.7 | LW168: ecash
A169: 2018-03-15 | B169: Thursday | D169: 2 | LV169: 4.7 | LW169: ecash
A170: 2018-03-16 | B170: Friday | D170: 2
A171: 2018-03-17 | B171: Saturday | D171: 0 | LZ171: 0 | MA171: ecash | MB171: 0 | MC171: ecash
A172: 2018-03-18 | B172: Sunday | D172: 0 | MB172: 0 | MC172: ecash
A173: 2018-03-19 | B173: Monday | D173: 2
A174: 2018-03-20 | B174: Tuesday | D174: 2 | MF174: 4.7 | MG174: ecash | MH174: 4.7 | MI174: ecash | MJ174: 4.7 | MK174: ecash | ML174: 4.7 | MM174: ecash | MN174: 4.7 | MO174: ecash | MP174: 4.7 | MQ174: ecash | MR174: 4.7 | MS174: ecash | MT174: 4.7 | MU174: ecash | OH174: 83.45 | OI174: 28 day e-pass | OJ174: 83.45 | OK174: 28 day e-pass | OL174: 4.7 | OM174: ecash | ON174: 4.7 | OO174: ecash
A175: 2018-03-21 | B175: Wednesday | D175: 2 | MH175: 4.7 | MI175: ecash | MJ175: 4.7 | MK175: ecash | ML175: 4.7 | MM175: ecash | MN175: 4.7 | MO175: ecash | MP175: 4.7 | MQ175: ecash | MR175: 4.7 | MS175: ecash | MT175: 4.7 | MU175: ecash | OL175: 4.7 | OM175: ecash | ON175: 4.7 | OO175: ecash
A176: 2018-03-22 | B176: Thursday | D176: 2 | MJ176: 4.7 | MK176: ecash | ML176: 4.7 | MM176: ecash | MN176: 4.7 | MO176: ecash | MP176: 4.7 | MQ176: ecash | MR176: 4.7 | MS176: ecash | MT176: 4.7 | MU176: ecash | OL176: 83.45 | OM176: 28 day e-pass | ON176: 83.45 | OO176: 28 day e-pass
A177: 2018-03-23 | B177: Friday | D177: 2 | ML177: 4.7 | MM177: ecash | MN177: 4.7 | MO177: ecash | MP177: 4.7 | MQ177: ecash | MR177: 4.7 | MS177: ecash | MT177: 4.7 | MU177: ecash
A178: 2018-03-24 | B178: Saturday | D178: 0 | MN178: 0 | MO178: ecash | MP178: 0 | MQ178: ecash | MR178: 0 | MS178: ecash | MT178: 0 | MU178: ecash
A179: 2018-03-25 | B179: Sunday | D179: 0 | MP179: 0 | MQ179: ecash | MR179: 0 | MS179: ecash | MT179: 0 | MU179: ecash
A180: 2018-03-26 | B180: Monday | D180: 2 | MR180: 4.7 | MS180: ecash | MT180: 4.7 | MU180: ecash
A181: 2018-03-27 | B181: Tuesday | D181: 2 | MT181: 4.7 | MU181: ecash
A182: 2018-03-28 | B182: Wednesday | D182: 2
A183: 2018-03-29 | B183: Thursday | D183: 2 | MX183: 4.7 | MY183: ecash | MZ183: 4.7 | NA183: ecash | NB183: 4.7 | NC183: ecash | ND183: 4.7 | NE183: ecash | NF183: 4.7 | NG183: ecash | NH183: 4.7 | NI183: ecash | NJ183: 4.7 | NK183: ecash | NL183: 4.7 | NM183: ecash | NN183: 4.7 | NO183: ecash | NP183: 4.7 | NQ183: ecash | NR183: 4.7 | NS183: ecash | NT183: 4.7 | NU183: ecash | NV183: 4.7 | NW183: ecash | NX183: 4.7 | NY183: ecash | NZ183: 4.7 | OA183: ecash | OB183: 4.7 | OC183: ecash | OD183: 4.7 | OE183: ecash | OF183: 4.7 | OG183: ecash | OP183: 4.7 | OQ183: ecash | OR183: 4.7 | OS183: ecash | OT183: 4.7 | OU183: ecash | OV183: 4.7 | OW183: ecash | OX183: 4.7 | OY183: ecash | OZ183: 4.7 | PA183: ecash | PB183: 4.7 | PC183: ecash | PD183: 4.7 | PE183: ecash | PF183: 4.7 | PG183: ecash | PH183: 4.7 | PI183: ecash | PJ183: 4.7 | PK183: ecash
A184: 2018-03-30 | B184: Friday | C184: Good Friday | D184: 0 | MZ184: 0 | NA184: ecash | NB184: 0 | NC184: ecash | ND184: 0 | NE184: ecash | NF184: 0 | NG184: ecash | NH184: 0 | NI184: ecash | NJ184: 0 | NK184: ecash | NL184: 0 | NM184: ecash | NN184: 0 | NO184: ecash | NP184: 0 | NQ184: ecash | NR184: 0 | NS184: ecash | NT184: 0 | NU184: ecash | NV184: 0 | NW184: ecash | NX184: 0 | NY184: ecash | NZ184: 0 | OA184: ecash | OB184: 0 | OC184: ecash | OD184: 0 | OE184: ecash | OF184: 0 | OG184: ecash | OP184: 0 | OQ184: ecash | OR184: 0 | OS184: ecash | OT184: 0 | OU184: ecash | OV184: 0 | OW184: ecash | OX184: 0 | OY184: ecash | OZ184: 0 | PA184: ecash | PB184: 0 | PC184: ecash | PD184: 0 | PE184: ecash | PF184: 0 | PG184: ecash | PH184: 0 | PI184: ecash | PJ184: 0 | PK184: ecash
A185: 2018-03-31 | B185: Saturday | D185: 0 | NB185: 0 | NC185: ecash | ND185: 0 | NE185: ecash | NF185: 0 | NG185: ecash | NH185: 0 | NI185: ecash | NJ185: 0 | NK185: ecash | NL185: 0 | NM185: ecash | NN185: 0 | NO185: ecash | NP185: 0 | NQ185: ecash | NR185: 0 | NS185: ecash | NT185: 0 | NU185: ecash | NV185: 0 | NW185: ecash | NX185: 0 | NY185: ecash | NZ185: 0 | OA185: ecash | OB185: 0 | OC185: ecash | OD185: 0 | OE185: ecash | OF185: 0 | OG185: ecash | OP185: 0 | OQ185: ecash | OR185: 0 | OS185: ecash | OT185: 0 | OU185: ecash | OV185: 0 | OW185: ecash | OX185: 0 | OY185: ecash | OZ185: 0 | PA185: ecash | PB185: 0 | PC185: ecash | PD185: 83.45 | PE185: 28 day e-pass | PF185: 83.45 | PG185: 28 day e-pass | PH185: 83.45 | PI185: 28 day e-pass | PJ185: 83.45 | PK185: 28 day e-pass
A186: 2018-04-01 | B186: Sunday | D186: 0 | ND186: 0 | NE186: ecash | NF186: 0 | NG186: ecash | NH186: 0 | NI186: ecash | NJ186: 0 | NK186: ecash | NL186: 0 | NM186: ecash | NN186: 0 | NO186: ecash | NP186: 0 | NQ186: ecash | NR186: 0 | NS186: ecash | NT186: 0 | NU186: ecash | NV186: 0 | NW186: ecash | NX186: 0 | NY186: ecash | NZ186: 0 | OA186: ecash | OB186: 0 | OC186: ecash | OD186: 0 | OE186: ecash | OF186: 0 | OG186: ecash | OP186: 0 | OQ186: ecash | OR186: 0 | OS186: ecash | OT186: 0 | OU186: ecash | OV186: 0 | OW186: ecash | OX186: 0 | OY186: ecash | OZ186: 0 | PA186: ecash | PB186: 0 | PC186: ecash
A187: 2018-04-02 | B187: Monday | D187: 2 | NF187: 4.7 | NG187: ecash | NH187: 4.7 | NI187: ecash | NJ187: 4.7 | NK187: ecash | NL187: 4.7 | NM187: ecash | NN187: 21.15 | NO187: 5 day e-pass | NP187: 21.15 | NQ187: 5 day e-pass | NR187: 21.15 | NS187: 5 day e-pass | NT187: 21.15 | NU187: 5 day e-pass | NV187: 21.15 | NW187: 5 day e-pass | NX187: 21.15 | NY187: 5 day e-pass | NZ187: 21.15 | OA187: 5 day e-pass | OB187: 21.15 | OC187: 5 day e-pass | OD187: 21.15 | OE187: 5 day e-pass | OF187: 21.15 | OG187: 5 day e-pass | OP187: 21.15 | OQ187: 5 day e-pass | OR187: 21.15 | OS187: 5 day e-pass | OT187: 21.15 | OU187: 5 day e-pass | OV187: 21.15 | OW187: 5 day e-pass | OX187: 21.15 | OY187: 5 day e-pass | OZ187: 21.15 | PA187: 5 day e-pass | PB187: 21.15 | PC187: 5 day e-pass
A188: 2018-04-03 | B188: Tuesday | D188: 2 | NH188: 4.7 | NI188: ecash | NJ188: 4.7 | NK188: ecash | NL188: 4.7 | NM188: ecash
A189: 2018-04-04 | B189: Wednesday | D189: 2 | NJ189: 4.7 | NK189: ecash | NL189: 4.7 | NM189: ecash
A190: 2018-04-05 | B190: Thursday | D190: 2 | NL190: 4.7 | NM190: ecash
A191: 2018-04-06 | B191: Friday | D191: 2
A192: 2018-04-07 | B192: Saturday | D192: 0 | NP192: 0 | NQ192: ecash | NR192: 0 | NS192: ecash | NT192: 0 | NU192: ecash | NV192: 0 | NW192: ecash | NX192: 0 | NY192: ecash | NZ192: 0 | OA192: ecash | OB192: 0 | OC192: ecash | OD192: 0 | OE192: ecash | OF192: 0 | OG192: ecash | OP192: 0 | OQ192: ecash | OR192: 0 | OS192: ecash | OT192: 0 | OU192: ecash | OV192: 0 | OW192: ecash | OX192: 0 | OY192: ecash | OZ192: 0 | PA192: ecash | PB192: 0 | PC192: ecash
A193: 2018-04-08 | B193: Sunday | D193: 0 | NR193: 0 | NS193: ecash | NT193: 0 | NU193: ecash | NV193: 0 | NW193: ecash | NX193: 0 | NY193: ecash | NZ193: 0 | OA193: ecash | OB193: 0 | OC193: ecash | OD193: 0 | OE193: ecash | OF193: 0 | OG193: ecash | OP193: 0 | OQ193: ecash | OR193: 0 | OS193: ecash | OT193: 0 | OU193: ecash | OV193: 0 | OW193: ecash | OX193: 0 | OY193: ecash | OZ193: 0 | PA193: ecash | PB193: 0 | PC193: ecash
A194: 2018-04-09 | B194: Monday | D194: 2 | NT194: 4.7 | NU194: ecash | NV194: 4.7 | NW194: ecash | NX194: 4.7 | NY194: ecash | NZ194: 4.7 | OA194: ecash | OB194: 21.15 | OC194: 5 day e-pass | OD194: 21.15 | OE194: 5 day e-pass | OF194: 21.15 | OG194: 5 day e-pass | OP194: 21.15 | OQ194: 5 day e-pass | OR194: 21.15 | OS194: 5 day e-pass | OT194: 21.15 | OU194: 5 day e-pass | OV194: 21.15 | OW194: 5 day e-pass | OX194: 21.15 | OY194: 5 day e-pass | OZ194: 21.15 | PA194: 5 day e-pass | PB194: 21.15 | PC194: 5 day e-pass
A195: 2018-04-10 | B195: Tuesday | D195: 2 | NV195: 4.7 | NW195: ecash | NX195: 4.7 | NY195: ecash | NZ195: 4.7 | OA195: ecash
A196: 2018-04-11 | B196: Wednesday | D196: 2 | NX196: 4.7 | NY196: ecash | NZ196: 4.7 | OA196: ecash
A197: 2018-04-12 | B197: Thursday | D197: 2 | NZ197: 4.7 | OA197: ecash
A198: 2018-04-13 | B198: =TEXT(A198,"dddd") -> Friday | D198: 2
A199: 2018-04-14 | B199: Saturday | D199: 0 | OD199: 0 | OE199: ecash | OF199: 0 | OG199: ecash | OP199: 0 | OQ199: ecash | OR199: 0 | OS199: ecash | OT199: 0 | OU199: ecash | OV199: 0 | OW199: ecash | OX199: 0 | OY199: ecash | OZ199: 0 | PA199: ecash | PB199: 0 | PC199: ecash
A200: 2018-04-15 | B200: Sunday | D200: 0 | OF200: 0 | OG200: ecash | OP200: 0 | OQ200: ecash | OR200: 0 | OS200: ecash | OT200: 0 | OU200: ecash | OV200: 0 | OW200: ecash | OX200: 0 | OY200: ecash | OZ200: 0 | PA200: ecash | PB200: 0 | PC200: ecash
A201: 2018-04-16 | B201: Monday | D201: 2 | OP201: 21.15 | OQ201: 5 day e-pass | OR201: 21.15 | OS201: 5 day e-pass | OT201: 21.15 | OU201: 5 day e-pass | OV201: 21.15 | OW201: 5 day e-pass | OX201: 21.15 | OY201: 5 day e-pass | OZ201: 21.15 | PA201: 5 day e-pass | PB201: 21.15 | PC201: 5 day e-pass
A202: 2018-04-17 | B202: Tuesday | D202: 2 | OJ202: 4.7 | OK202: ecash
... 13 more rows
